"Body","BodyName","InvoiceDate","ClearanceDate","UniqueReference","SupplierName","SupplierRefNo","Amount","DepartmentExpenseArea","ExpenseType","ExpenseCode","ExtendedDescription","AccountHolder","MerchantCategory"
"http://statistics.data.gov.uk/id/local-authority/43UM","WOKING BOROUGH COUNCIL","01/04/2021","01/04/2021","GPC/00014268","ADOBE ACROPRO SUBS","PROCUREMENT CARD","150.92","INFORMATION TECHNOLOGY - I.T.S. ICT","PC & SERVER SYSTEMS SOFTWARE","G193","ADOBE ACROBAT PRO SUBSCRIPTION","ANDREW GRESHAM","COMPUTER SOFTWARE STORES"
"http://statistics.data.gov.uk/id/local-authority/43UM","WOKING BOROUGH COUNCIL","01/04/2021","01/04/2021","GPC/00014261","ARGOS LTD","PROCUREMENT CARD","44.96","INDEPENDENT LIVING SERVICES - MOORCROFT","REFURBISHMENTS","D104","GARDEN HOSE","RICHARD BUCKENHAM","DISCOUNT STORES"
"http://statistics.data.gov.uk/id/local-authority/43UM","WOKING BOROUGH COUNCIL","01/04/2021","01/04/2021","GPC/00014265","ASHFORD/ST PETERS HOSP","PROCUREMENT CARD","20.00","HOUSING SERVICES - HOMELINK","TRAVEL EXPENSES-OFFICERS","F600","ST PETERS PARKING PERMIT","GARY CORDERY","GOV'T SERV - DEFAULT"
"http://statistics.data.gov.uk/id/local-authority/43UM","WOKING BOROUGH COUNCIL","01/04/2021","01/04/2021","GPC/00014284","CFSNET LTD","PROCUREMENT CARD","133.72","NEIGHBOURHOOD SERVICES - MUSLIM BURIAL GRND PEACE GARDE","R&M BUILDINGS - CONTRACTORS","D100","REPAIR FIBREGLASS ","SANDRA ARCHER","SPORTS/RIDING APPAREL STORE"
"http://statistics.data.gov.uk/id/local-authority/43UM","WOKING BOROUGH COUNCIL","01/04/2021","01/04/2021","GPC/00014262","CO-OP GROUP 310393","PROCUREMENT CARD","8.10","INDEPENDENT LIVING SERVICES - MEALS SERVICE - ST MARYS","PROVISIONS","G410","CAFE MILK STOCK","MR JONNY MOLES","GROCERY STORES"
"http://statistics.data.gov.uk/id/local-authority/43UM","WOKING BOROUGH COUNCIL","01/04/2021","01/04/2021","GPC/00014263","MFG OYSTER LANE","PROCUREMENT CARD","25.00","INDEPENDENT LIVING SERVICES - MEALS ON WHEELS","PETROL","F200","PETROL","MR JONNY MOLES","SERVICE STATIONS"
"http://statistics.data.gov.uk/id/local-authority/43UM","WOKING BOROUGH COUNCIL","01/04/2021","01/04/2021","GPC/00014270","PAYPAL","PROCUREMENT CARD","40.00","PLANNING SERVICES - DEVELOPMENT CONTROL","PROFESSIONAL FEES","A750","RTPI ","MRS CHRISTINE DUPLOCK","CHARITABLE/SOC SERVICE ORGS"
"http://statistics.data.gov.uk/id/local-authority/43UM","WOKING BOROUGH COUNCIL","01/04/2021","01/04/2021","GPC/00014271","WOKING BOROUGH COUNCIL","PROCUREMENT CARD","1.60","ASSET MANAGEMENT - BUILDING SERVICES","PARKING COSTS","F510","PARKING WOKING PARK","DAVID LOVELESS","GOV'T SERV - DEFAULT"
"http://statistics.data.gov.uk/id/local-authority/43UM","WOKING BOROUGH COUNCIL","01/04/2021","01/04/2021","GPC/00014272","WOKING BOROUGH COUNCIL","PROCUREMENT CARD","1.60","ASSET MANAGEMENT - BUILDING SERVICES","PARKING COSTS","F510","PARKING WOKING PARK","DAVID LOVELESS","GOV'T SERV - DEFAULT"
"http://statistics.data.gov.uk/id/local-authority/43UM","WOKING BOROUGH COUNCIL","02/04/2021","02/04/2021","GPC/00014267","AMZNMKTPLACE","PROCUREMENT CARD","32.46","ASSET MANAGEMENT - ASSET MANAGEMENT GENERAL EXPEN","GENERAL SAFETY","G196","SAFETY BOOTS CHRIS NORTON","MR C NORTON","MISC SPECIALITY RETAIL"
"http://statistics.data.gov.uk/id/local-authority/43UM","WOKING BOROUGH COUNCIL","02/04/2021","02/04/2021","GPC/00014264","SP * SAFETY BRANDS UK","PROCUREMENT CARD","24.16","ASSET MANAGEMENT - ASSET MANAGEMENT GENERAL EXPEN","GENERAL SAFETY","G196","SAFETY TRAINERS CHRIS NORTON","MR C NORTON","SHOE STORES"
"http://statistics.data.gov.uk/id/local-authority/43UM","WOKING BOROUGH COUNCIL","02/04/2021","02/04/2021","GPC/00014269","TOOLSTATION WOKING","PROCUREMENT CARD","56.17","CORPORATE STRATEGY - BOROUGH ELECTIONS","EQUIPMENT","G100","GANG EXTENSION LEADS FOR ELECTIONS","IOANNA KOUTSIONI","LUMBER/BUILD SUPPLY STORES"
"http://statistics.data.gov.uk/id/local-authority/43UM","WOKING BOROUGH COUNCIL","02/04/2021","02/04/2021","GPC/00014269","TOOLSTATION WOKING","PROCUREMENT CARD","67.40","CORPORATE STRATEGY - COUNTY ELECTIONS","EQUIPMENT","G100","GANG EXTENSION LEADS FOR ELECTIONS","IOANNA KOUTSIONI","LUMBER/BUILD SUPPLY STORES"
"http://statistics.data.gov.uk/id/local-authority/43UM","WOKING BOROUGH COUNCIL","02/04/2021","02/04/2021","GPC/00014269","TOOLSTATION WOKING","PROCUREMENT CARD","67.40","CORPORATE STRATEGY - POLICE & CRIME COMMISSIONER","EQUIPMENT","G100","GANG EXTENSION LEADS FOR ELECTIONS","IOANNA KOUTSIONI","LUMBER/BUILD SUPPLY STORES"
"http://statistics.data.gov.uk/id/local-authority/43UM","WOKING BOROUGH COUNCIL","04/04/2021","04/04/2021","GPC/00014260","AMZNMKTPLACE AMAZON.CO.UK","PROCUREMENT CARD","16.14","INDEPENDENT LIVING SERVICES - MOORCROFT","REFURBISHMENTS","D104","REFURB ITEM","RICHARD BUCKENHAM","MISC SPECIALITY RETAIL"
"http://statistics.data.gov.uk/id/local-authority/43UM","WOKING BOROUGH COUNCIL","05/04/2021","05/04/2021","GPC/00014266","AMZN MKTP US","PROCUREMENT CARD","16.36","FINANCIAL SERVICES - BROCKHILL SOCIAL FUND","MISCELLANEOUS EXPENSES","X827","KEEP FIT DVD","JULIE FREELAND","MISC SPECIALITY RETAIL"
"http://statistics.data.gov.uk/id/local-authority/43UM","WOKING BOROUGH COUNCIL","06/04/2021","06/04/2021","GPC/00014282","AMZNMKTPLACE","PROCUREMENT CARD","92.22","CORPORATE STRATEGY - WOMENS SUPPORT CENTRE SURREY","ART AWARD","H534","ART AWARDS MATERIALS FOR PRISONS","LEANNE J SPILLER","MISC SPECIALITY RETAIL"
"http://statistics.data.gov.uk/id/local-authority/43UM","WOKING BOROUGH COUNCIL","06/04/2021","06/04/2021","GPC/00014281","AMZNMKTPLACE","PROCUREMENT CARD","35.77","INFORMATION TECHNOLOGY - ICT GENERAL REPLACEMENT 2021/22","REPLACEMENT EQUIPMENT","Q010","FIBRE FOR EXPORT HOUSE","PAUL MURPHY","MISC SPECIALITY RETAIL"
"http://statistics.data.gov.uk/id/local-authority/43UM","WOKING BOROUGH COUNCIL","06/04/2021","06/04/2021","GPC/00014278","AMZNMKTPLACE AMAZON.CO.UK","PROCUREMENT CARD","36.75","INDEPENDENT LIVING SERVICES - MOORCROFT","R&M BUILDINGS - CONTRACTORS","D100","GARDEN EQUIPMENT","RICHARD BUCKENHAM","MISC SPECIALITY RETAIL"
"http://statistics.data.gov.uk/id/local-authority/43UM","WOKING BOROUGH COUNCIL","06/04/2021","06/04/2021","GPC/00014285","COSTA COFFEE 43038215","PROCUREMENT CARD","8.17","INDEPENDENT LIVING SERVICES - FAMILY SUPPORT PROGRAMME","FAMILY ENABLING (FSP PROJECT)","H137","FAMILY ENABLING","MAGGIE HUSSAIN","FAST FOOD RESTAURANTS"
"http://statistics.data.gov.uk/id/local-authority/43UM","WOKING BOROUGH COUNCIL","06/04/2021","06/04/2021","GPC/00014275","PAYPAL","PROCUREMENT CARD","24.95","INDEPENDENT LIVING SERVICES - ST MARY'S DAY CENTRE","REFURBISHMENTS","D104","SPRAY PAINT","MR JONNY MOLES","MISC SPECIALITY RETAIL"
"http://statistics.data.gov.uk/id/local-authority/43UM","WOKING BOROUGH COUNCIL","06/04/2021","06/04/2021","GPC/00014276","POST OFFICE COUNTER","PROCUREMENT CARD","3.85","FINANCIAL SERVICES - BROCKHILL SOCIAL FUND","MISCELLANEOUS EXPENSES","X827","POST OFFICE","JULIE FREELAND","POSTAGE STAMPS"
"http://statistics.data.gov.uk/id/local-authority/43UM","WOKING BOROUGH COUNCIL","06/04/2021","06/04/2021","GPC/00014277","SAINSBURY'S S/MKT","PROCUREMENT CARD","10.10","ASSET MANAGEMENT - PEACOCK WALK MARKET","CLEANING MATERIALS","D920","CLEANING MATERIALS","STEPHEN BARRETT","GROCERY STORES"
"http://statistics.data.gov.uk/id/local-authority/43UM","WOKING BOROUGH COUNCIL","06/04/2021","06/04/2021","GPC/00014283","SCREWFIX DIRECT","PROCUREMENT CARD","34.42","CORPORATE STRATEGY - BOROUGH ELECTIONS","EQUIPMENT","G100","PATCHING LEADS EX HSE ELECTIONS","MR D JONES","LUMBER/BUILD SUPPLY STORES"
"http://statistics.data.gov.uk/id/local-authority/43UM","WOKING BOROUGH COUNCIL","06/04/2021","06/04/2021","GPC/00014283","SCREWFIX DIRECT","PROCUREMENT CARD","34.42","CORPORATE STRATEGY - COUNTY ELECTIONS","EQUIPMENT","G100","PATCHING LEADS EX HSE ELECTIONS","MR D JONES","LUMBER/BUILD SUPPLY STORES"
"http://statistics.data.gov.uk/id/local-authority/43UM","WOKING BOROUGH COUNCIL","06/04/2021","06/04/2021","GPC/00014283","SCREWFIX DIRECT","PROCUREMENT CARD","34.40","CORPORATE STRATEGY - POLICE & CRIME COMMISSIONER","EQUIPMENT","G100","PATCHING LEADS EX HSE ELECTIONS","MR D JONES","LUMBER/BUILD SUPPLY STORES"
"http://statistics.data.gov.uk/id/local-authority/43UM","WOKING BOROUGH COUNCIL","06/04/2021","06/04/2021","GPC/00014274","WH SMITH","PROCUREMENT CARD","8.32","CORPORATE STRATEGY - COVID-19 EMERGENCY SERV ACCOMODATION","PROVISIONS","Q519","MEMORY CARD FOR CCTV INCIDENTS","MR P HOCKLEY","NEWS DEALERS/NEWSSTANDS"
"http://statistics.data.gov.uk/id/local-authority/43UM","WOKING BOROUGH COUNCIL","06/04/2021","06/04/2021","GPC/00014273","WWW.JANCETT.CO.UK","PROCUREMENT CARD","250.00","INDEPENDENT LIVING SERVICES - FAMILY SUPPORT PROGRAMME","TRAINING","H465","TRAINING ","SANDIE BOLGER","PROFESSIONAL SERVICES - DEF"
"http://statistics.data.gov.uk/id/local-authority/43UM","WOKING BOROUGH COUNCIL","06/04/2021","06/04/2021","GPC/00014279","WWW.JANCETT.CO.UK","PROCUREMENT CARD","250.00","INDEPENDENT LIVING SERVICES - FAMILY SUPPORT PROGRAMME","TRAINING","H465","TRAINING S","SANDIE BOLGER","PROFESSIONAL SERVICES - DEF"
"http://statistics.data.gov.uk/id/local-authority/43UM","WOKING BOROUGH COUNCIL","06/04/2021","06/04/2021","GPC/00014280","WWW.REGENCYHAMPERS.COM","PROCUREMENT CARD","99.67","INDEPENDENT LIVING SERVICES - MOORCROFT","PROVISIONS","G410","WELCOME PACKS","RICHARD BUCKENHAM","GIFT CARD NOVELTY STORES"
"http://statistics.data.gov.uk/id/local-authority/43UM","WOKING BOROUGH COUNCIL","19/03/2021","07/04/2021","0000463771/001","AECOM INFRASTRUCTURE&ENVIRONMENT UK LTD","01503100","2,450.00","PLANNING SERVICES - BUILDING REGULATIONS","CONSULTANTS - STRUCTURAL WORKS","H688","CONSULTANTS - STRUCTURAL WORKS","PLANNING SERVICES","CONSULTANCY"
"http://statistics.data.gov.uk/id/local-authority/43UM","WOKING BOROUGH COUNCIL","01/04/2021","07/04/2021","0000463845/001","AIR SOCIAL","40813800","200.00","CORPORATE STRATEGY - TOWN CENTRE FORUM","MARKETING","H406","MARKETING","CORPORATE STRATEGY","FINANCIAL SERVICES"
"http://statistics.data.gov.uk/id/local-authority/43UM","WOKING BOROUGH COUNCIL","01/04/2021","07/04/2021","0000463845/002","AIR SOCIAL","40813800","50.00","CORPORATE STRATEGY - TOWN CENTRE FORUM","MARKETING","H406","MARKETING","CORPORATE STRATEGY","FINANCIAL SERVICES"
"http://statistics.data.gov.uk/id/local-authority/43UM","WOKING BOROUGH COUNCIL","07/04/2021","07/04/2021","GPC/00014305","AMZ*JYD-EUP","PROCUREMENT CARD","-2.49","FINANCIAL SERVICES - BROCKHILL SOCIAL FUND","MISCELLANEOUS INCOME","X829","FAIRY LIGHTS REFUNDED","MRS M CHILCOTT","MISC SPECIALITY RETAIL"
"http://statistics.data.gov.uk/id/local-authority/43UM","WOKING BOROUGH COUNCIL","22/03/2021","07/04/2021","0000463549/001","ATKINSONS GUEST HOUSE","40250600","735.00","HOUSING SERVICES - HOUSING OPTIONS","BED & BREAKFAST EXPENDITURE","H786","BED & BREAKFAST EXPENDITURE","HOUSING SERVICES","HOUSING MANAGEMENT"
"http://statistics.data.gov.uk/id/local-authority/43UM","WOKING BOROUGH COUNCIL","22/03/2021","07/04/2021","0000463550/001","ATKINSONS GUEST HOUSE","40250600","735.00","HOUSING SERVICES - HOUSING OPTIONS","BED & BREAKFAST EXPENDITURE","H786","BED & BREAKFAST EXPENDITURE","HOUSING SERVICES","HOUSING MANAGEMENT"
"http://statistics.data.gov.uk/id/local-authority/43UM","WOKING BOROUGH COUNCIL","12/03/2021","07/04/2021","0000463944/001","AUSTIN MEDICAL PRODUCTS LTD","40937100","115.80","INDEPENDENT LIVING SERVICES - COMMUNITY ALARMS-GF","EQUIPMENT","G100","EQUIPMENT","INDEPENDENT LIVING SERVICES","FURNITURE & SOFT FURNISHINGS"
"http://statistics.data.gov.uk/id/local-authority/43UM","WOKING BOROUGH COUNCIL","01/02/2021","07/04/2021","0000463289/003","BDI SECURITIES","40768200","204.72","NEIGHBOURHOOD SERVICES - WOKING PARK LEISURE CAR PARKS","CASH COLLECTION SERVICE","H600","CASH COLLECTION SERVICE","NEIGHBOURHOOD SERVICES","FINANCIAL SERVICES"
"http://statistics.data.gov.uk/id/local-authority/43UM","WOKING BOROUGH COUNCIL","01/02/2021","07/04/2021","0000463289/001","BDI SECURITIES","40768200","1,919.42","NEIGHBOURHOOD SERVICES - CAR PARKS ADMIN&OPERATIONAL EX","CASH COLLECTION SERVICE","H600","CASH COLLECTION SERVICE","NEIGHBOURHOOD SERVICES","FINANCIAL SERVICES"
"http://statistics.data.gov.uk/id/local-authority/43UM","WOKING BOROUGH COUNCIL","01/02/2021","07/04/2021","0000463289/002","BDI SECURITIES","40768200","643.41","NEIGHBOURHOOD SERVICES - CPZ WBC FROM 25/7/05","CASH COLLECTION SERVICE","H600","CASH COLLECTION SERVICE","NEIGHBOURHOOD SERVICES","FINANCIAL SERVICES"
"http://statistics.data.gov.uk/id/local-authority/43UM","WOKING BOROUGH COUNCIL","30/03/2021","07/04/2021","0000463811/001","BENTLEY MOBILITY SERVICES LTD","40462300","2,217.00","HOUSING SERVICES - DISABLED FACILITIES GRANTS","MANDATORY GRANTS","Q712","MANDATORY GRANTS","HOUSING SERVICES","WORKS (CONSTRUCTION REPAIR MAINTENANCE)"
"http://statistics.data.gov.uk/id/local-authority/43UM","WOKING BOROUGH COUNCIL","07/04/2021","07/04/2021","0000463922/001","BOOM! CREDIT UNION","40344200","256.00","CORPORATE STRATEGY - SURREY SAVE CREDIT UNION","PAYMENTS OVER","S340","PAYMENTS OVER","CORPORATE STRATEGY","FINANCIAL SERVICES"
"http://statistics.data.gov.uk/id/local-authority/43UM","WOKING BOROUGH COUNCIL","26/03/2021","07/04/2021","0000463927/001","BRISTOW & SUTOR","40257600","13.50","REVENUES AND BENEFITS - RENT ALLOWANCES","DEBT COLLECTION AGENCY COMMISS","H910","DEBT COLLECTION AGENCY COMMISS","REVENUES AND BENEFITS","FINANCIAL SERVICES"
"http://statistics.data.gov.uk/id/local-authority/43UM","WOKING BOROUGH COUNCIL","30/03/2021","07/04/2021","0000463814/001","BUSINESS IT SUPPORT TEAM LIMITED (BIST G","40918000","2,810.00","INFORMATION TECHNOLOGY - ICT GENERAL REPLACEMENT 2021/22","ADDITIONAL EQUIPMENT","Q020","ADDITIONAL EQUIPMENT","INFORMATION TECHNOLOGY","INFORMATION COMMUNICATION TECHNOLOGY"
"http://statistics.data.gov.uk/id/local-authority/43UM","WOKING BOROUGH COUNCIL","31/03/2021","07/04/2021","0065000137/001","CHARLOTTE GRIFFITHS","01325400","44.01","CORPORATE STRATEGY - POSTAGE","POSTAGE - STANDARD TARIFF","G700","POSTAGE - STANDARD TARIFF","CORPORATE STRATEGY","FACILITIES & MANAGEMENT SERVICES"
"http://statistics.data.gov.uk/id/local-authority/43UM","WOKING BOROUGH COUNCIL","30/03/2021","07/04/2021","0000463812/001","CHASE INVENTORY SERVICES LIMITED","40239800","85.00","HOUSING SERVICES - TENANCY SUPPORT SCHEME","PROPERTY INSPECTIONS","H772","PROPERTY INSPECTIONS","HOUSING SERVICES","CONSULTANCY"
"http://statistics.data.gov.uk/id/local-authority/43UM","WOKING BOROUGH COUNCIL","30/03/2021","07/04/2021","0000463813/001","CHASE INVENTORY SERVICES LIMITED","40239800","115.00","HOUSING SERVICES - TENANCY SUPPORT SCHEME","PROPERTY INSPECTIONS","H772","PROPERTY INSPECTIONS","HOUSING SERVICES","CONSULTANCY"
"http://statistics.data.gov.uk/id/local-authority/43UM","WOKING BOROUGH COUNCIL","06/04/2021","07/04/2021","0000463940/001","COMPLETE IT SYSTEMS","40591300","100.00","INFORMATION TECHNOLOGY - ICT GENERAL REPLACEMENT 2021/22","ADDITIONAL EQUIPMENT","Q020","ADDITIONAL EQUIPMENT","INFORMATION TECHNOLOGY","INFORMATION COMMUNICATION TECHNOLOGY"
"http://statistics.data.gov.uk/id/local-authority/43UM","WOKING BOROUGH COUNCIL","11/03/2021","07/04/2021","0000463807/001","DIANTHUS TRADING CIC","40257500","3,499.26","CORPORATE STRATEGY - COVID -19 PANDEMIC","CAPITAL BUDGET CODE ONLY","Q000","CAPITAL BUDGET CODE ONLY","CORPORATE STRATEGY","FACILITIES & MANAGEMENT SERVICES"
"http://statistics.data.gov.uk/id/local-authority/43UM","WOKING BOROUGH COUNCIL","28/02/2021","07/04/2021","0000463035/001","DMD COURIERS LIMITED","00957600","860.10","CORPORATE STRATEGY - CORPORATE STRATEGY GENERAL EXP","COURIER SERVICES - EXTERNAL","G618","COURIER SERVICES - EXTERNAL","CORPORATE STRATEGY","MAIL SERVICES"
"http://statistics.data.gov.uk/id/local-authority/43UM","WOKING BOROUGH COUNCIL","25/03/2021","07/04/2021","0000463836/001","EDF ENERGY CUSTOMERS PLC","01451600","57.38","HOUSING SERVICES - ENERGY","ELECTRICITY","D400","ELECTRICITY","HOUSING SERVICES","UTILITIES"
"http://statistics.data.gov.uk/id/local-authority/43UM","WOKING BOROUGH COUNCIL","26/03/2021","07/04/2021","0000463816/001","FAITH RECRUITMENT","01709500","469.95","PLANNING SERVICES - DEVELOPMENT CONTROL","TEMPORARY STAFF","A110","TEMPORARY STAFF","PLANNING SERVICES","HUMAN RESOURCES"
"http://statistics.data.gov.uk/id/local-authority/43UM","WOKING BOROUGH COUNCIL","26/03/2021","07/04/2021","0000463817/001","FAITH RECRUITMENT","01709500","40.93","PLANNING SERVICES - DEVELOPMENT CONTROL","TEMPORARY STAFF","A110","TEMPORARY STAFF","PLANNING SERVICES","HUMAN RESOURCES"
"http://statistics.data.gov.uk/id/local-authority/43UM","WOKING BOROUGH COUNCIL","26/02/2021","07/04/2021","0000462872/001","FRONTLINE PROTECTION SGD LTD","40542500","468.00","CORPORATE STRATEGY - COVID-19 EMERGENCY SERV ACCOMODATION","SECURITY SERVICES","Q272","SECURITY SERVICES","CORPORATE STRATEGY","FACILITIES & MANAGEMENT SERVICES"
"http://statistics.data.gov.uk/id/local-authority/43UM","WOKING BOROUGH COUNCIL","15/03/2021","07/04/2021","0000463803/001","GAZPROM MARKETING & TRADING RETAIL LTD","40670600","1,704.47","ASSET MANAGEMENT - WATERMAN HSE & TA UPGRADE","UTILITIES","Q506","UTILITIES","ASSET MANAGEMENT","UTILITIES"
"http://statistics.data.gov.uk/id/local-authority/43UM","WOKING BOROUGH COUNCIL","30/03/2021","07/04/2021","0000463844/001","GHYLLSIDE LTD","40682000","4,944.00","NEIGHBOURHOOD SERVICES - CAR PARKS ADMIN&OPERATIONAL EX","R&M BUILDINGS - CONTRACTORS","D100","R&M BUILDINGS - CONTRACTORS","NEIGHBOURHOOD SERVICES","SOCIAL COMMUNITY CARE SUPPLIES & SERVICS"
"http://statistics.data.gov.uk/id/local-authority/43UM","WOKING BOROUGH COUNCIL","30/03/2021","07/04/2021","0000463844/002","GHYLLSIDE LTD","40682000","1,692.00","NEIGHBOURHOOD SERVICES - CAR PARKS ADMIN&OPERATIONAL EX","R&M BUILDINGS - CONTRACTORS","D100","R&M BUILDINGS - CONTRACTORS","NEIGHBOURHOOD SERVICES","SOCIAL COMMUNITY CARE SUPPLIES & SERVICS"
"http://statistics.data.gov.uk/id/local-authority/43UM","WOKING BOROUGH COUNCIL","30/03/2021","07/04/2021","0000463844/003","GHYLLSIDE LTD","40682000","1,088.00","NEIGHBOURHOOD SERVICES - CAR PARKS ADMIN&OPERATIONAL EX","R&M BUILDINGS - CONTRACTORS","D100","R&M BUILDINGS - CONTRACTORS","NEIGHBOURHOOD SERVICES","SOCIAL COMMUNITY CARE SUPPLIES & SERVICS"
"http://statistics.data.gov.uk/id/local-authority/43UM","WOKING BOROUGH COUNCIL","01/04/2021","07/04/2021","0000463849/001","GREENWICH CONTRACTS LIMITED","40656500","1,000.00","REVENUES AND BENEFITS - BENEFIT SERVICES","TEMPORARY STAFF","A110","TEMPORARY STAFF","REVENUES AND BENEFITS","CONSULTANCY"
"http://statistics.data.gov.uk/id/local-authority/43UM","WOKING BOROUGH COUNCIL","01/04/2021","07/04/2021","0000463928/001","GREENWICH CONTRACTS LIMITED","40656500","1,000.00","REVENUES AND BENEFITS - BENEFIT SERVICES","TEMPORARY STAFF","A110","TEMPORARY STAFF","REVENUES AND BENEFITS","CONSULTANCY"
"http://statistics.data.gov.uk/id/local-authority/43UM","WOKING BOROUGH COUNCIL","25/02/2021","07/04/2021","0000463852/001","HAMLYNS","01286800","750.00","CORPORATE STRATEGY - CORPORATE MANAGEMENT","INDEPENDENT PANEL","H273","INDEPENDENT PANEL","CORPORATE STRATEGY","LEGAL SERVICES"
"http://statistics.data.gov.uk/id/local-authority/43UM","WOKING BOROUGH COUNCIL","10/02/2021","07/04/2021","0000463833/001","HORSELL COMMON PRESERVATION SOCIETY","40921200","12,500.00","PLANNING SERVICES - HEATHER FARM SANG MAINTENANCE","MAIN CONTRACTOR","Q200","MAIN CONTRACTOR","PLANNING SERVICES","FINANCIAL SERVICES"
"http://statistics.data.gov.uk/id/local-authority/43UM","WOKING BOROUGH COUNCIL","31/03/2021","07/04/2021","0000463931/001","IRON MOUNTAIN (UK) PLC","01035400","324.19","INFORMATION TECHNOLOGY - I.T.S. ICT","OFF SITE SECURE","H769","OFF SITE SECURE","INFORMATION TECHNOLOGY","FACILITIES & MANAGEMENT SERVICES"
"http://statistics.data.gov.uk/id/local-authority/43UM","WOKING BOROUGH COUNCIL","17/03/2021","07/04/2021","0000463791/001","JILL TONKS","40817100","425.00","INDEPENDENT LIVING SERVICES - FAMILY SUPPORT PROGRAMME","CLINICAL SUPERVISION","G505","CLINICAL SUPERVISION","INDEPENDENT LIVING SERVICES","FINANCIAL SERVICES"
"http://statistics.data.gov.uk/id/local-authority/43UM","WOKING BOROUGH COUNCIL","17/03/2021","07/04/2021","0000463671/001","JILL TONKS","40817100","850.00","INDEPENDENT LIVING SERVICES - FAMILY CENTRES","CLINICAL SUPERVISION","G505","CLINICAL SUPERVISION","INDEPENDENT LIVING SERVICES","FINANCIAL SERVICES"
"http://statistics.data.gov.uk/id/local-authority/43UM","WOKING BOROUGH COUNCIL","17/03/2021","07/04/2021","0000463671/002","JILL TONKS","40817100","85.00","LEISURE SERVICES - PLAYLEADERSHIP","PROMOTION COSTS","H650","PROMOTION COSTS","LEISURE SERVICES","FINANCIAL SERVICES"
"http://statistics.data.gov.uk/id/local-authority/43UM","WOKING BOROUGH COUNCIL","10/03/2021","07/04/2021","0000463790/001","JILL TONKS","40817100","255.00","HOUSING SERVICES - SYRIAN REFUGEE FAMILES","CLINICAL SUPERVISION","Q504","CLINICAL SUPERVISION","HOUSING SERVICES","FINANCIAL SERVICES"
"http://statistics.data.gov.uk/id/local-authority/43UM","WOKING BOROUGH COUNCIL","18/03/2021","07/04/2021","0000463614/001","JLL","40940900","2,200.00","NEIGHBOURHOOD SERVICES - OTHER CAR PARKS","RENTS PAYABLE","D500","RENTS PAYABLE","NEIGHBOURHOOD SERVICES","LEGAL SERVICES"
"http://statistics.data.gov.uk/id/local-authority/43UM","WOKING BOROUGH COUNCIL","30/03/2021","07/04/2021","0000463925/001","LUCINDA JANE THOMAS","40689100","275.00","CORPORATE MANAGEMENT GROUP - STAFF TRAINING/GENERAL COSTS","TRAINING - CORPORATE","A910","TRAINING - CORPORATE","CORPORATE MANAGEMENT GROUP","CONSULTANCY"
"http://statistics.data.gov.uk/id/local-authority/43UM","WOKING BOROUGH COUNCIL","23/03/2021","07/04/2021","0000463883/001","MEDIA RESOURCES","01915600","375.20","INFORMATION TECHNOLOGY - I.T.S. ICT","MAGNETIC MEDIA","G214","MAGNETIC MEDIA","INFORMATION TECHNOLOGY","INFORMATION COMMUNICATION TECHNOLOGY"
"http://statistics.data.gov.uk/id/local-authority/43UM","WOKING BOROUGH COUNCIL","23/03/2021","07/04/2021","0000463883/002","MEDIA RESOURCES","01915600","8.00","INFORMATION TECHNOLOGY - I.T.S. ICT","MAGNETIC MEDIA","G214","MAGNETIC MEDIA","INFORMATION TECHNOLOGY","INFORMATION COMMUNICATION TECHNOLOGY"
"http://statistics.data.gov.uk/id/local-authority/43UM","WOKING BOROUGH COUNCIL","12/03/2021","07/04/2021","0000463387/002","MINISTRY OF JUSTICE-HMCTS CAPS","01774100","3,000.00","NEIGHBOURHOOD SERVICES - CAR PARKS ADMIN&OPERATIONAL EX","COURT COSTS","H620","COURT COSTS","NEIGHBOURHOOD SERVICES","FINANCIAL SERVICES"
"http://statistics.data.gov.uk/id/local-authority/43UM","WOKING BOROUGH COUNCIL","12/03/2021","07/04/2021","0000463387/001","MINISTRY OF JUSTICE-HMCTS CAPS","01774100","24,000.00","NEIGHBOURHOOD SERVICES - CPZ WBC FROM 25/7/05","COURT COSTS","H620","COURT COSTS","NEIGHBOURHOOD SERVICES","FINANCIAL SERVICES"
"http://statistics.data.gov.uk/id/local-authority/43UM","WOKING BOROUGH COUNCIL","01/03/2021","07/04/2021","0000463141/001","PARK NOW LTD","40098500","702.38","NEIGHBOURHOOD SERVICES - CAR PARKS ADMIN&OPERATIONAL EX","PAYMENT TO RINGGO SUPPLIER","H693","PAYMENT TO RINGGO SUPPLIER","NEIGHBOURHOOD SERVICES","INFORMATION COMMUNICATION TECHNOLOGY"
"http://statistics.data.gov.uk/id/local-authority/43UM","WOKING BOROUGH COUNCIL","26/02/2021","07/04/2021","0000462977/001","PAUL SHARMAN PROJECT CONSULTANTS LIMITED","40753800","700.00","ASSET MANAGEMENT - PLOT 2 MON WAY WEST","R&M BUILDINGS - CONTRACTORS","D100","R&M BUILDINGS - CONTRACTORS","ASSET MANAGEMENT","WORKS (CONSTRUCTION REPAIR MAINTENANCE)"
"http://statistics.data.gov.uk/id/local-authority/43UM","WOKING BOROUGH COUNCIL","26/02/2021","07/04/2021","0000462978/001","PAUL SHARMAN PROJECT CONSULTANTS LIMITED","40753800","975.00","ASSET MANAGEMENT - DEEWALL HSE 5A MWW OPP PURCHAS","MAIN CONTRACTOR","Q200","MAIN CONTRACTOR","ASSET MANAGEMENT","WORKS (CONSTRUCTION REPAIR MAINTENANCE)"
"http://statistics.data.gov.uk/id/local-authority/43UM","WOKING BOROUGH COUNCIL","31/03/2021","07/04/2021","0000463933/001","PAUL SHARMAN PROJECT CONSULTANTS LIMITED","40753800","1,675.00","ASSET MANAGEMENT - DEEWALL HSE 5A MWW OPP PURCHAS","MAIN CONTRACTOR","Q200","MAIN CONTRACTOR","ASSET MANAGEMENT","WORKS (CONSTRUCTION REPAIR MAINTENANCE)"
"http://statistics.data.gov.uk/id/local-authority/43UM","WOKING BOROUGH COUNCIL","07/01/2021","07/04/2021","0000463917/001","PORTERS","00021300","395.00","INDEPENDENT LIVING SERVICES - REMOVAL COSTS SHEERWATER REGEB","MAIN CONTRACTOR","Q200","MAIN CONTRACTOR","INDEPENDENT LIVING SERVICES","HOUSING MANAGEMENT"
"http://statistics.data.gov.uk/id/local-authority/43UM","WOKING BOROUGH COUNCIL","01/04/2021","07/04/2021","0000463885/001","PRIMARY BUSINESS SUPPORT","40912500","1,500.00","HOUSING SERVICES - HRA MARKET TESTING","CONSULTANTS","H670","CONSULTANTS","HOUSING SERVICES","CONSULTANCY"
"http://statistics.data.gov.uk/id/local-authority/43UM","WOKING BOROUGH COUNCIL","22/03/2021","07/04/2021","0000463609/001","PROJECT114 LTD","40370300","5,850.00","HOUSING SERVICES - HOUSING OPTIONS","BED & BREAKFAST EXPENDITURE","H786","BED & BREAKFAST EXPENDITURE","HOUSING SERVICES","HOUSING MANAGEMENT"
"http://statistics.data.gov.uk/id/local-authority/43UM","WOKING BOROUGH COUNCIL","22/03/2021","07/04/2021","0000463610/001","PROJECT114 LTD","40370300","800.00","HOUSING SERVICES - HOUSING OPTIONS","BED & BREAKFAST EXPENDITURE","H786","BED & BREAKFAST EXPENDITURE","HOUSING SERVICES","HOUSING MANAGEMENT"
"http://statistics.data.gov.uk/id/local-authority/43UM","WOKING BOROUGH COUNCIL","29/03/2021","07/04/2021","0000463725/001","PROJECT114 LTD","40370300","1,050.00","HOUSING SERVICES - HOUSING OPTIONS","BED & BREAKFAST EXPENDITURE","H786","BED & BREAKFAST EXPENDITURE","HOUSING SERVICES","HOUSING MANAGEMENT"
"http://statistics.data.gov.uk/id/local-authority/43UM","WOKING BOROUGH COUNCIL","29/03/2021","07/04/2021","0000463726/001","PROJECT114 LTD","40370300","4,950.00","HOUSING SERVICES - HOUSING OPTIONS","BED & BREAKFAST EXPENDITURE","H786","BED & BREAKFAST EXPENDITURE","HOUSING SERVICES","HOUSING MANAGEMENT"
"http://statistics.data.gov.uk/id/local-authority/43UM","WOKING BOROUGH COUNCIL","30/03/2021","07/04/2021","0000463782/001","PUBLIC I","40363900","3,562.50","CORPORATE STRATEGY - BOROUGH ELECTIONS","EQUIPMENT","G100","EQUIPMENT","CORPORATE STRATEGY","INFORMATION COMMUNICATION TECHNOLOGY"
"http://statistics.data.gov.uk/id/local-authority/43UM","WOKING BOROUGH COUNCIL","04/03/2021","07/04/2021","0000463391/001","RUNNYMEDE BOROUGH COUNCIL","01039000","15,000.00","FINANCIAL SERVICES - FINANCIAL SERVICES","CONSULTANTS","H670","CONSULTANTS","FINANCIAL SERVICES","WORKS (CONSTRUCTION REPAIR MAINTENANCE)"
"http://statistics.data.gov.uk/id/local-authority/43UM","WOKING BOROUGH COUNCIL","17/03/2021","07/04/2021","0000463513/003","SERCO LIMITED","01380600","826.76","HOUSING SERVICES - WOKING BOROUGH HOMES","GROUNDS MAINTENANCE / CLEANING","S674","GROUNDS MAINTENANCE / CLEANING","HOUSING SERVICES","CLEANING & JANITORIAL"
"http://statistics.data.gov.uk/id/local-authority/43UM","WOKING BOROUGH COUNCIL","17/03/2021","07/04/2021","0000463513/004","SERCO LIMITED","01380600","334.33","HOUSING SERVICES - WOKING BOROUGH HOMES","GROUNDS MAINTENANCE / CLEANING","S674","GROUNDS MAINTENANCE / CLEANING","HOUSING SERVICES","CLEANING & JANITORIAL"
"http://statistics.data.gov.uk/id/local-authority/43UM","WOKING BOROUGH COUNCIL","17/03/2021","07/04/2021","0000463513/008","SERCO LIMITED","01380600","168.53","HOUSING SERVICES - TEMPORARY ACCOMMODATION","GROUNDS MAINT-CONTRACTORS","D200","GROUNDS MAINT-CONTRACTORS","HOUSING SERVICES","CLEANING & JANITORIAL"
"http://statistics.data.gov.uk/id/local-authority/43UM","WOKING BOROUGH COUNCIL","25/03/2021","07/04/2021","0000463903/001","SERCO LIMITED","01380600","2,865.00","NEIGHBOURHOOD SERVICES - PARKS-GENERAL","PLAY EQUIPMENT","G167","PLAY EQUIPMENT","NEIGHBOURHOOD SERVICES","CLEANING & JANITORIAL"
"http://statistics.data.gov.uk/id/local-authority/43UM","WOKING BOROUGH COUNCIL","25/03/2021","07/04/2021","0000463908/001","SERCO LIMITED","01380600","517.50","NEIGHBOURHOOD SERVICES - PARKS-GENERAL","PLAY EQUIPMENT","G167","PLAY EQUIPMENT","NEIGHBOURHOOD SERVICES","CLEANING & JANITORIAL"
"http://statistics.data.gov.uk/id/local-authority/43UM","WOKING BOROUGH COUNCIL","25/03/2021","07/04/2021","0000463909/001","SERCO LIMITED","01380600","1,056.85","NEIGHBOURHOOD SERVICES - PARKS-GENERAL","PLAY EQUIPMENT","G167","PLAY EQUIPMENT","NEIGHBOURHOOD SERVICES","CLEANING & JANITORIAL"
"http://statistics.data.gov.uk/id/local-authority/43UM","WOKING BOROUGH COUNCIL","25/03/2021","07/04/2021","0000463902/001","SERCO LIMITED","01380600","2,015.45","NEIGHBOURHOOD SERVICES - CLOSED BURIAL GDS/CHYD","GROUNDS MAINT-CONTRACTORS","D200","GROUNDS MAINT-CONTRACTORS","NEIGHBOURHOOD SERVICES","CLEANING & JANITORIAL"
"http://statistics.data.gov.uk/id/local-authority/43UM","WOKING BOROUGH COUNCIL","25/03/2021","07/04/2021","0000463900/001","SERCO LIMITED","01380600","540.00","NEIGHBOURHOOD SERVICES - STREET FURNITURE","GROUNDS MAINT-CONTRACTORS","D200","GROUNDS MAINT-CONTRACTORS","NEIGHBOURHOOD SERVICES","CLEANING & JANITORIAL"
"http://statistics.data.gov.uk/id/local-authority/43UM","WOKING BOROUGH COUNCIL","25/03/2021","07/04/2021","0000463901/001","SERCO LIMITED","01380600","60.00","NEIGHBOURHOOD SERVICES - STREET FURNITURE","GROUNDS MAINT-CONTRACTORS","D200","GROUNDS MAINT-CONTRACTORS","NEIGHBOURHOOD SERVICES","CLEANING & JANITORIAL"
"http://statistics.data.gov.uk/id/local-authority/43UM","WOKING BOROUGH COUNCIL","25/03/2021","07/04/2021","0000463904/001","SERCO LIMITED","01380600","529.00","NEIGHBOURHOOD SERVICES - STREET FURNITURE","GROUNDS MAINT-CONTRACTORS","D200","GROUNDS MAINT-CONTRACTORS","NEIGHBOURHOOD SERVICES","CLEANING & JANITORIAL"
"http://statistics.data.gov.uk/id/local-authority/43UM","WOKING BOROUGH COUNCIL","25/03/2021","07/04/2021","0000463907/001","SERCO LIMITED","01380600","412.50","NEIGHBOURHOOD SERVICES - STREET FURNITURE","GROUNDS MAINT-CONTRACTORS","D200","GROUNDS MAINT-CONTRACTORS","NEIGHBOURHOOD SERVICES","CLEANING & JANITORIAL"
"http://statistics.data.gov.uk/id/local-authority/43UM","WOKING BOROUGH COUNCIL","25/03/2021","07/04/2021","0000463910/001","SERCO LIMITED","01380600","180.00","NEIGHBOURHOOD SERVICES - STREET FURNITURE","GROUNDS MAINT-CONTRACTORS","D200","GROUNDS MAINT-CONTRACTORS","NEIGHBOURHOOD SERVICES","CLEANING & JANITORIAL"
"http://statistics.data.gov.uk/id/local-authority/43UM","WOKING BOROUGH COUNCIL","25/03/2021","07/04/2021","0000463912/001","SERCO LIMITED","01380600","253.00","NEIGHBOURHOOD SERVICES - STREET FURNITURE","GROUNDS MAINT-CONTRACTORS","D200","GROUNDS MAINT-CONTRACTORS","NEIGHBOURHOOD SERVICES","CLEANING & JANITORIAL"
"http://statistics.data.gov.uk/id/local-authority/43UM","WOKING BOROUGH COUNCIL","17/03/2021","07/04/2021","0000463513/001","SERCO LIMITED","01380600","319,406.94","NEIGHBOURHOOD SERVICES - ENVIRONMENTAL MAINTENANCE CONT","EMC SERVICE CHARGE","T716","EMC SERVICE CHARGE","NEIGHBOURHOOD SERVICES","CLEANING & JANITORIAL"
"http://statistics.data.gov.uk/id/local-authority/43UM","WOKING BOROUGH COUNCIL","23/03/2021","07/04/2021","0000463737/008","SURREY HEATH BOROUGH COUNCIL","00898100","13,144.96","CORPORATE STRATEGY - COVID -19 PANDEMIC","WASTE COSTS","Q291","WASTE COSTS","CORPORATE STRATEGY","WORKS (CONSTRUCTION REPAIR MAINTENANCE)"
"http://statistics.data.gov.uk/id/local-authority/43UM","WOKING BOROUGH COUNCIL","17/03/2021","07/04/2021","0000463513/005","SERCO LIMITED","01380600","-15,514.17","NEIGHBOURHOOD SERVICES - ENVIRONMENTAL MAINTENANCE CONT","EMC SERVICE CHARGE","T716","EMC SERVICE CHARGE","NEIGHBOURHOOD SERVICES","CLEANING & JANITORIAL"
"http://statistics.data.gov.uk/id/local-authority/43UM","WOKING BOROUGH COUNCIL","17/03/2021","07/04/2021","0000463513/006","SERCO LIMITED","01380600","-17,347.41","NEIGHBOURHOOD SERVICES - ENVIRONMENTAL MAINTENANCE CONT","EMC SERVICE CHARGE","T716","EMC SERVICE CHARGE","NEIGHBOURHOOD SERVICES","CLEANING & JANITORIAL"
"http://statistics.data.gov.uk/id/local-authority/43UM","WOKING BOROUGH COUNCIL","17/03/2021","07/04/2021","0000463513/007","SERCO LIMITED","01380600","-496.00","NEIGHBOURHOOD SERVICES - ENVIRONMENTAL MAINTENANCE CONT","EMC SERVICE CHARGE","T716","EMC SERVICE CHARGE","NEIGHBOURHOOD SERVICES","CLEANING & JANITORIAL"
"http://statistics.data.gov.uk/id/local-authority/43UM","WOKING BOROUGH COUNCIL","17/03/2021","07/04/2021","0000463513/002","SERCO LIMITED","01380600","11,543.66","NEIGHBOURHOOD SERVICES - ENVIRONMENTAL MAINTENANCE CONT","EMC MANAGEMENT FEE","T717","EMC MANAGEMENT FEE","NEIGHBOURHOOD SERVICES","CLEANING & JANITORIAL"
"http://statistics.data.gov.uk/id/local-authority/43UM","WOKING BOROUGH COUNCIL","25/03/2021","07/04/2021","0000463899/001","SERCO LIMITED","01380600","2,607.50","PLANNING SERVICES - CIL NEIGHBOURHOOD CONTRIBUTION","MAIN CONTRACTOR","Q200","MAIN CONTRACTOR","PLANNING SERVICES","CLEANING & JANITORIAL"
"http://statistics.data.gov.uk/id/local-authority/43UM","WOKING BOROUGH COUNCIL","17/03/2021","07/04/2021","0000463408/001","SETON","00043000","37.65","INDEPENDENT LIVING SERVICES - ST MARY'S DAY CENTRE","CLOTHING/UNIFORMS","G510","CLOTHING/UNIFORMS","INDEPENDENT LIVING SERVICES","WORKS (CONSTRUCTION REPAIR MAINTENANCE)"
"http://statistics.data.gov.uk/id/local-authority/43UM","WOKING BOROUGH COUNCIL","18/03/2021","07/04/2021","0000463589/001","SOUTHERN BUILDING CONTROL PARTNERSHIP","40723000","384.99","PLANNING SERVICES - BUILDING REGULATIONS","PAYMENTS TO OTHER LA'S","H695","PAYMENTS TO OTHER LA'S","PLANNING SERVICES","WORKS (CONSTRUCTION REPAIR MAINTENANCE)"
"http://statistics.data.gov.uk/id/local-authority/43UM","WOKING BOROUGH COUNCIL","07/04/2021","07/04/2021","GPC/00014300","SPECSAVERSEVOUGB-","PROCUREMENT CARD","-170.00","CORPORATE MANAGEMENT GROUP - STAFF TRAINING/GENERAL COSTS","HEALTH CARE","A780","REFUNDED","MRS SARAH REED","OPTICIANS"
"http://statistics.data.gov.uk/id/local-authority/43UM","WOKING BOROUGH COUNCIL","07/04/2021","07/04/2021","GPC/00014302","SPECSAVERSEVOUGB-","PROCUREMENT CARD","170.00","CORPORATE MANAGEMENT GROUP - STAFF TRAINING/GENERAL COSTS","HEALTH CARE","A780","SPECSAVERS VDU E-VOUCHERS","MRS SARAH REED","OPTICIANS"
"http://statistics.data.gov.uk/id/local-authority/43UM","WOKING BOROUGH COUNCIL","07/04/2021","07/04/2021","GPC/00014306","SPECSAVERSEVOUGB-","PROCUREMENT CARD","170.00","CORPORATE MANAGEMENT GROUP - STAFF TRAINING/GENERAL COSTS","HEALTH CARE","A780","CREDIT NOTE RECEIVED FOR THIS PAYMENT","MRS SARAH REED","OPTICIANS"
"http://statistics.data.gov.uk/id/local-authority/43UM","WOKING BOROUGH COUNCIL","31/03/2021","07/04/2021","0000463802/002","STC ENERGY MANAGEMENT LIMITED","40614500","75.01","INFORMATION TECHNOLOGY - CORPORATE MANAGEMENT-COMMERCIAL","ENERGY BUREAU SERVICE","H489","ENERGY BUREAU SERVICE","INFORMATION TECHNOLOGY","UTILITIES"
"http://statistics.data.gov.uk/id/local-authority/43UM","WOKING BOROUGH COUNCIL","31/03/2021","07/04/2021","0000463802/001","STC ENERGY MANAGEMENT LIMITED","40614500","675.07","HOUSING SERVICES - ENERGY","ENERGY BUREAU SERVICE","H489","ENERGY BUREAU SERVICE","HOUSING SERVICES","UTILITIES"
"http://statistics.data.gov.uk/id/local-authority/43UM","WOKING BOROUGH COUNCIL","29/03/2021","07/04/2021","0000463800/001","STUDIO 44 MEDIA LIMITED","40948200","1,800.00","INDEPENDENT LIVING SERVICES - FAMILY SUPPORT PROGRAMME","FAMILY ENABLING (FSP PROJECT)","H137","FAMILY ENABLING (FSP PROJECT)","INDEPENDENT LIVING SERVICES","FINANCIAL SERVICES"
"http://statistics.data.gov.uk/id/local-authority/43UM","WOKING BOROUGH COUNCIL","23/03/2021","07/04/2021","0000463737/006","SURREY HEATH BOROUGH COUNCIL","00898100","11,427.65","NEIGHBOURHOOD SERVICES - REFUSE COLLECTION","CONTAINER MANAGEMENT","J629","CONTAINER MANAGEMENT","NEIGHBOURHOOD SERVICES","WORKS (CONSTRUCTION REPAIR MAINTENANCE)"
"http://statistics.data.gov.uk/id/local-authority/43UM","WOKING BOROUGH COUNCIL","23/03/2021","07/04/2021","0000463737/004","SURREY HEATH BOROUGH COUNCIL","00898100","1,102.56","NEIGHBOURHOOD SERVICES - CLINICAL WASTE","PYMNT TO CONTRACTOR VARIABLE","J628","PYMNT TO CONTRACTOR VARIABLE","NEIGHBOURHOOD SERVICES","WORKS (CONSTRUCTION REPAIR MAINTENANCE)"
"http://statistics.data.gov.uk/id/local-authority/43UM","WOKING BOROUGH COUNCIL","23/03/2021","07/04/2021","0000463737/001","SURREY HEATH BOROUGH COUNCIL","00898100","19,505.55","NEIGHBOURHOOD SERVICES - GARDEN WASTE COLLECTION","PYMNT TO CONTRACTOR VARIABLE","J628","PYMNT TO CONTRACTOR VARIABLE","NEIGHBOURHOOD SERVICES","WORKS (CONSTRUCTION REPAIR MAINTENANCE)"
"http://statistics.data.gov.uk/id/local-authority/43UM","WOKING BOROUGH COUNCIL","23/03/2021","07/04/2021","0000463737/003","SURREY HEATH BOROUGH COUNCIL","00898100","2,077.69","NEIGHBOURHOOD SERVICES - BULKY WASTE COLLECTIONS","PYMNT TO CONTRACTOR VARIABLE","J628","PYMNT TO CONTRACTOR VARIABLE","NEIGHBOURHOOD SERVICES","WORKS (CONSTRUCTION REPAIR MAINTENANCE)"
"http://statistics.data.gov.uk/id/local-authority/43UM","WOKING BOROUGH COUNCIL","23/03/2021","07/04/2021","0000463737/002","SURREY HEATH BOROUGH COUNCIL","00898100","1,091.39","NEIGHBOURHOOD SERVICES - WHEELED BIN COLLECTION","PYMNT TO CONTRACTOR VARIABLE","J628","PYMNT TO CONTRACTOR VARIABLE","NEIGHBOURHOOD SERVICES","WORKS (CONSTRUCTION REPAIR MAINTENANCE)"
"http://statistics.data.gov.uk/id/local-authority/43UM","WOKING BOROUGH COUNCIL","23/03/2021","07/04/2021","0000463737/005","SURREY HEATH BOROUGH COUNCIL","00898100","11.58","NEIGHBOURHOOD SERVICES - WHEELED BIN COLLECTION","PYMNT TO CONTRACTOR VARIABLE","J628","PYMNT TO CONTRACTOR VARIABLE","NEIGHBOURHOOD SERVICES","WORKS (CONSTRUCTION REPAIR MAINTENANCE)"
"http://statistics.data.gov.uk/id/local-authority/43UM","WOKING BOROUGH COUNCIL","23/03/2021","07/04/2021","0000463737/007","SURREY HEATH BOROUGH COUNCIL","00898100","99.85","NEIGHBOURHOOD SERVICES - WHEELED BIN COLLECTION","PYMNT TO CONTRACTOR VARIABLE","J628","PYMNT TO CONTRACTOR VARIABLE","NEIGHBOURHOOD SERVICES","WORKS (CONSTRUCTION REPAIR MAINTENANCE)"
"http://statistics.data.gov.uk/id/local-authority/43UM","WOKING BOROUGH COUNCIL","01/04/2021","07/04/2021","0000463888/001","TAMESIDE MBC","01407400","1,600.00","REVENUES AND BENEFITS - C'L TAX BENEFIT ADMIN","SUBSCRIPTIONS","H110","SUBSCRIPTIONS","REVENUES AND BENEFITS","FINANCIAL SERVICES"
"http://statistics.data.gov.uk/id/local-authority/43UM","WOKING BOROUGH COUNCIL","21/12/2020","07/04/2021","0000460907/001","THAMESWEY DEVELOPMENTS LIMITED","40301400","427,085.84","ASSET MANAGEMENT - WATERMAN HSE & TA UPGRADE","MAIN CONTRACTOR","Q200","MAIN CONTRACTOR","ASSET MANAGEMENT","WORKS (CONSTRUCTION REPAIR MAINTENANCE)"
"http://statistics.data.gov.uk/id/local-authority/43UM","WOKING BOROUGH COUNCIL","23/03/2021","07/04/2021","0000463770/001","THAMESWEY DEVELOPMENTS LIMITED","40301400","153,763.15","ASSET MANAGEMENT - WATERMAN HSE & TA UPGRADE","MAIN CONTRACTOR","Q200","MAIN CONTRACTOR","ASSET MANAGEMENT","WORKS (CONSTRUCTION REPAIR MAINTENANCE)"
"http://statistics.data.gov.uk/id/local-authority/43UM","WOKING BOROUGH COUNCIL","26/03/2021","07/04/2021","0000463839/001","VIRGIN MEDIA BUSINESS","00316500","40.00","HOUSING SERVICES - ESTATE MANAGEMENT","NETWORK CIRCUITS","G800","NETWORK CIRCUITS","HOUSING SERVICES","INFORMATION COMMUNICATION TECHNOLOGY"
"http://statistics.data.gov.uk/id/local-authority/43UM","WOKING BOROUGH COUNCIL","07/04/2021","07/04/2021","GPC/00014299","W M MORRISON","PROCUREMENT CARD","77.50","HOUSING SERVICES - HOME IMPS & BEN AGENCY","TRAVEL EXPENSES-OFFICERS","F600","FUEL FOR HANDYPERSON VAN","IAN DEANE","SERVICE STATIONS"
"http://statistics.data.gov.uk/id/local-authority/43UM","WOKING BOROUGH COUNCIL","14/03/2021","07/04/2021","0000463522/001","WHISTL UK LIMITED","00367900","166.34","CORPORATE STRATEGY - POSTAGE","POSTAGE - STANDARD TARIFF","G700","POSTAGE - STANDARD TARIFF","CORPORATE STRATEGY","MAIL SERVICES"
"http://statistics.data.gov.uk/id/local-authority/43UM","WOKING BOROUGH COUNCIL","14/03/2021","07/04/2021","0000463523/001","WHISTL UK LIMITED","00367900","1,827.58","CORPORATE STRATEGY - POSTAGE","POSTAGE - STANDARD TARIFF","G700","POSTAGE - STANDARD TARIFF","CORPORATE STRATEGY","MAIL SERVICES"
"http://statistics.data.gov.uk/id/local-authority/43UM","WOKING BOROUGH COUNCIL","07/03/2021","07/04/2021","0000463524/001","WHISTL UK LIMITED","00367900","2,195.31","CORPORATE STRATEGY - POSTAGE","POSTAGE - STANDARD TARIFF","G700","POSTAGE - STANDARD TARIFF","CORPORATE STRATEGY","MAIL SERVICES"
"http://statistics.data.gov.uk/id/local-authority/43UM","WOKING BOROUGH COUNCIL","07/03/2021","07/04/2021","0000463525/001","WHISTL UK LIMITED","00367900","89.80","CORPORATE STRATEGY - POSTAGE","POSTAGE - STANDARD TARIFF","G700","POSTAGE - STANDARD TARIFF","CORPORATE STRATEGY","MAIL SERVICES"
"http://statistics.data.gov.uk/id/local-authority/43UM","WOKING BOROUGH COUNCIL","26/03/2021","07/04/2021","0000463703/001","WIGHTMAN & PARRISH LTD","40474600","22.20","INDEPENDENT LIVING SERVICES - MEALS SERVICE - ST MARYS","CLEANING MATERIALS","D920","CLEANING MATERIALS","INDEPENDENT LIVING SERVICES","CLEANING & JANITORIAL"
"http://statistics.data.gov.uk/id/local-authority/43UM","WOKING BOROUGH COUNCIL","26/03/2021","07/04/2021","0000463703/002","WIGHTMAN & PARRISH LTD","40474600","3.20","INDEPENDENT LIVING SERVICES - MEALS SERVICE - ST MARYS","CLEANING MATERIALS","D920","CLEANING MATERIALS","INDEPENDENT LIVING SERVICES","CLEANING & JANITORIAL"
"http://statistics.data.gov.uk/id/local-authority/43UM","WOKING BOROUGH COUNCIL","26/03/2021","07/04/2021","0000463703/003","WIGHTMAN & PARRISH LTD","40474600","40.92","INDEPENDENT LIVING SERVICES - MEALS SERVICE - ST MARYS","CLEANING MATERIALS","D920","CLEANING MATERIALS","INDEPENDENT LIVING SERVICES","CLEANING & JANITORIAL"
"http://statistics.data.gov.uk/id/local-authority/43UM","WOKING BOROUGH COUNCIL","26/03/2021","07/04/2021","0000463703/004","WIGHTMAN & PARRISH LTD","40474600","24.70","INDEPENDENT LIVING SERVICES - MEALS SERVICE - ST MARYS","CLEANING MATERIALS","D920","CLEANING MATERIALS","INDEPENDENT LIVING SERVICES","CLEANING & JANITORIAL"
"http://statistics.data.gov.uk/id/local-authority/43UM","WOKING BOROUGH COUNCIL","26/03/2021","07/04/2021","0000463703/005","WIGHTMAN & PARRISH LTD","40474600","7.79","INDEPENDENT LIVING SERVICES - MEALS SERVICE - ST MARYS","CLEANING MATERIALS","D920","CLEANING MATERIALS","INDEPENDENT LIVING SERVICES","CLEANING & JANITORIAL"
"http://statistics.data.gov.uk/id/local-authority/43UM","WOKING BOROUGH COUNCIL","26/03/2021","07/04/2021","0000463703/006","WIGHTMAN & PARRISH LTD","40474600","11.08","INDEPENDENT LIVING SERVICES - MEALS SERVICE - ST MARYS","CLEANING MATERIALS","D920","CLEANING MATERIALS","INDEPENDENT LIVING SERVICES","CLEANING & JANITORIAL"
"http://statistics.data.gov.uk/id/local-authority/43UM","WOKING BOROUGH COUNCIL","26/03/2021","07/04/2021","0000463703/007","WIGHTMAN & PARRISH LTD","40474600","18.52","INDEPENDENT LIVING SERVICES - MEALS SERVICE - ST MARYS","CLEANING MATERIALS","D920","CLEANING MATERIALS","INDEPENDENT LIVING SERVICES","CLEANING & JANITORIAL"
"http://statistics.data.gov.uk/id/local-authority/43UM","WOKING BOROUGH COUNCIL","26/03/2021","07/04/2021","0000463703/008","WIGHTMAN & PARRISH LTD","40474600","17.60","INDEPENDENT LIVING SERVICES - MEALS SERVICE - ST MARYS","CLEANING MATERIALS","D920","CLEANING MATERIALS","INDEPENDENT LIVING SERVICES","CLEANING & JANITORIAL"
"http://statistics.data.gov.uk/id/local-authority/43UM","WOKING BOROUGH COUNCIL","26/03/2021","07/04/2021","0000463703/009","WIGHTMAN & PARRISH LTD","40474600","10.49","INDEPENDENT LIVING SERVICES - MEALS SERVICE - ST MARYS","CLEANING MATERIALS","D920","CLEANING MATERIALS","INDEPENDENT LIVING SERVICES","CLEANING & JANITORIAL"
"http://statistics.data.gov.uk/id/local-authority/43UM","WOKING BOROUGH COUNCIL","07/04/2021","07/04/2021","GPC/00014301","WOKING BOROUGH COUNCIL","PROCUREMENT CARD","1.60","ASSET MANAGEMENT - BUILDING SERVICES","PARKING COSTS","F510","PARKING WOKING PARK","DAVID LOVELESS","GOV'T SERV - DEFAULT"
"http://statistics.data.gov.uk/id/local-authority/43UM","WOKING BOROUGH COUNCIL","16/02/2021","07/04/2021","0000463338/001","WPS UNITED KINGDOM LTD","40942300","-17,350.00","ASSET MANAGEMENT - CAR PARK MANAGEMENT SYSTEM","MAIN CONTRACTOR","Q200","MAIN CONTRACTOR","ASSET MANAGEMENT","STREET & TRAFFIC MANAGEMENT"
"http://statistics.data.gov.uk/id/local-authority/43UM","WOKING BOROUGH COUNCIL","25/03/2021","07/04/2021","0000463697/001","WPS UNITED KINGDOM LTD","40942300","8,683.00","ASSET MANAGEMENT - CAR PARK MANAGEMENT SYSTEM","MAIN CONTRACTOR","Q200","MAIN CONTRACTOR","ASSET MANAGEMENT","STREET & TRAFFIC MANAGEMENT"
"http://statistics.data.gov.uk/id/local-authority/43UM","WOKING BOROUGH COUNCIL","25/03/2021","07/04/2021","0000463698/001","WPS UNITED KINGDOM LTD","40942300","19,706.00","ASSET MANAGEMENT - CAR PARK MANAGEMENT SYSTEM","MAIN CONTRACTOR","Q200","MAIN CONTRACTOR","ASSET MANAGEMENT","STREET & TRAFFIC MANAGEMENT"
"http://statistics.data.gov.uk/id/local-authority/43UM","WOKING BOROUGH COUNCIL","07/04/2021","07/04/2021","GPC/00014303","WWW.BANNERUK.COM","PROCUREMENT CARD","4.20","CORPORATE STRATEGY - BOROUGH ELECTIONS","STATIONERY","G620","ELECTIONS STATIONERY","SANDRA ARCHER","STATIONERY/OFFICE SUPPLIES"
"http://statistics.data.gov.uk/id/local-authority/43UM","WOKING BOROUGH COUNCIL","07/04/2021","07/04/2021","GPC/00014303","WWW.BANNERUK.COM","PROCUREMENT CARD","6.77","CORPORATE STRATEGY - BOROUGH ELECTIONS","STATIONERY","G620","ELECTIONS STATIONERY","SANDRA ARCHER","STATIONERY/OFFICE SUPPLIES"
"http://statistics.data.gov.uk/id/local-authority/43UM","WOKING BOROUGH COUNCIL","07/04/2021","07/04/2021","GPC/00014303","WWW.BANNERUK.COM","PROCUREMENT CARD","8.26","CORPORATE STRATEGY - BOROUGH ELECTIONS","STATIONERY","G620","ELECTIONS STATIONERY","SANDRA ARCHER","STATIONERY/OFFICE SUPPLIES"
"http://statistics.data.gov.uk/id/local-authority/43UM","WOKING BOROUGH COUNCIL","07/04/2021","07/04/2021","GPC/00014303","WWW.BANNERUK.COM","PROCUREMENT CARD","8.27","CORPORATE STRATEGY - BOROUGH ELECTIONS","STATIONERY","G620","ELECTIONS STATIONERY","SANDRA ARCHER","STATIONERY/OFFICE SUPPLIES"
"http://statistics.data.gov.uk/id/local-authority/43UM","WOKING BOROUGH COUNCIL","07/04/2021","07/04/2021","GPC/00014303","WWW.BANNERUK.COM","PROCUREMENT CARD","8.27","CORPORATE STRATEGY - BOROUGH ELECTIONS","STATIONERY","G620","ELECTIONS STATIONERY","SANDRA ARCHER","STATIONERY/OFFICE SUPPLIES"
"http://statistics.data.gov.uk/id/local-authority/43UM","WOKING BOROUGH COUNCIL","07/04/2021","07/04/2021","GPC/00014303","WWW.BANNERUK.COM","PROCUREMENT CARD","10.63","CORPORATE STRATEGY - BOROUGH ELECTIONS","STATIONERY","G620","ELECTIONS STATIONERY","SANDRA ARCHER","STATIONERY/OFFICE SUPPLIES"
"http://statistics.data.gov.uk/id/local-authority/43UM","WOKING BOROUGH COUNCIL","07/04/2021","07/04/2021","GPC/00014303","WWW.BANNERUK.COM","PROCUREMENT CARD","19.70","CORPORATE STRATEGY - BOROUGH ELECTIONS","STATIONERY","G620","ELECTIONS STATIONERY","SANDRA ARCHER","STATIONERY/OFFICE SUPPLIES"
"http://statistics.data.gov.uk/id/local-authority/43UM","WOKING BOROUGH COUNCIL","07/04/2021","07/04/2021","GPC/00014303","WWW.BANNERUK.COM","PROCUREMENT CARD","22.20","CORPORATE STRATEGY - BOROUGH ELECTIONS","STATIONERY","G620","ELECTIONS STATIONERY","SANDRA ARCHER","STATIONERY/OFFICE SUPPLIES"
"http://statistics.data.gov.uk/id/local-authority/43UM","WOKING BOROUGH COUNCIL","07/04/2021","07/04/2021","GPC/00014303","WWW.BANNERUK.COM","PROCUREMENT CARD","99.90","CORPORATE STRATEGY - BOROUGH ELECTIONS","STATIONERY","G620","ELECTIONS STATIONERY","SANDRA ARCHER","STATIONERY/OFFICE SUPPLIES"
"http://statistics.data.gov.uk/id/local-authority/43UM","WOKING BOROUGH COUNCIL","07/04/2021","07/04/2021","GPC/00014303","WWW.BANNERUK.COM","PROCUREMENT CARD","4.20","CORPORATE STRATEGY - COUNTY ELECTIONS","STATIONERY","G620","ELECTIONS STATIONERY","SANDRA ARCHER","STATIONERY/OFFICE SUPPLIES"
"http://statistics.data.gov.uk/id/local-authority/43UM","WOKING BOROUGH COUNCIL","07/04/2021","07/04/2021","GPC/00014303","WWW.BANNERUK.COM","PROCUREMENT CARD","6.78","CORPORATE STRATEGY - COUNTY ELECTIONS","STATIONERY","G620","ELECTIONS STATIONERY","SANDRA ARCHER","STATIONERY/OFFICE SUPPLIES"
"http://statistics.data.gov.uk/id/local-authority/43UM","WOKING BOROUGH COUNCIL","07/04/2021","07/04/2021","GPC/00014303","WWW.BANNERUK.COM","PROCUREMENT CARD","8.27","CORPORATE STRATEGY - COUNTY ELECTIONS","STATIONERY","G620","ELECTIONS STATIONERY","SANDRA ARCHER","STATIONERY/OFFICE SUPPLIES"
"http://statistics.data.gov.uk/id/local-authority/43UM","WOKING BOROUGH COUNCIL","07/04/2021","07/04/2021","GPC/00014303","WWW.BANNERUK.COM","PROCUREMENT CARD","10.63","CORPORATE STRATEGY - COUNTY ELECTIONS","STATIONERY","G620","ELECTIONS STATIONERY","SANDRA ARCHER","STATIONERY/OFFICE SUPPLIES"
"http://statistics.data.gov.uk/id/local-authority/43UM","WOKING BOROUGH COUNCIL","07/04/2021","07/04/2021","GPC/00014303","WWW.BANNERUK.COM","PROCUREMENT CARD","19.70","CORPORATE STRATEGY - COUNTY ELECTIONS","STATIONERY","G620","ELECTIONS STATIONERY","SANDRA ARCHER","STATIONERY/OFFICE SUPPLIES"
"http://statistics.data.gov.uk/id/local-authority/43UM","WOKING BOROUGH COUNCIL","07/04/2021","07/04/2021","GPC/00014303","WWW.BANNERUK.COM","PROCUREMENT CARD","22.20","CORPORATE STRATEGY - COUNTY ELECTIONS","STATIONERY","G620","ELECTIONS STATIONERY","SANDRA ARCHER","STATIONERY/OFFICE SUPPLIES"
"http://statistics.data.gov.uk/id/local-authority/43UM","WOKING BOROUGH COUNCIL","07/04/2021","07/04/2021","GPC/00014303","WWW.BANNERUK.COM","PROCUREMENT CARD","99.90","CORPORATE STRATEGY - COUNTY ELECTIONS","STATIONERY","G620","ELECTIONS STATIONERY","SANDRA ARCHER","STATIONERY/OFFICE SUPPLIES"
"http://statistics.data.gov.uk/id/local-authority/43UM","WOKING BOROUGH COUNCIL","07/04/2021","07/04/2021","GPC/00014303","WWW.BANNERUK.COM","PROCUREMENT CARD","4.20","CORPORATE STRATEGY - POLICE & CRIME COMMISSIONER","STATIONERY","G620","ELECTIONS STATIONERY","SANDRA ARCHER","STATIONERY/OFFICE SUPPLIES"
"http://statistics.data.gov.uk/id/local-authority/43UM","WOKING BOROUGH COUNCIL","07/04/2021","07/04/2021","GPC/00014303","WWW.BANNERUK.COM","PROCUREMENT CARD","6.78","CORPORATE STRATEGY - POLICE & CRIME COMMISSIONER","STATIONERY","G620","ELECTIONS STATIONERY","SANDRA ARCHER","STATIONERY/OFFICE SUPPLIES"
"http://statistics.data.gov.uk/id/local-authority/43UM","WOKING BOROUGH COUNCIL","07/04/2021","07/04/2021","GPC/00014303","WWW.BANNERUK.COM","PROCUREMENT CARD","8.27","CORPORATE STRATEGY - POLICE & CRIME COMMISSIONER","STATIONERY","G620","ELECTIONS STATIONERY","SANDRA ARCHER","STATIONERY/OFFICE SUPPLIES"
"http://statistics.data.gov.uk/id/local-authority/43UM","WOKING BOROUGH COUNCIL","07/04/2021","07/04/2021","GPC/00014303","WWW.BANNERUK.COM","PROCUREMENT CARD","8.28","CORPORATE STRATEGY - POLICE & CRIME COMMISSIONER","STATIONERY","G620","ELECTIONS STATIONERY","SANDRA ARCHER","STATIONERY/OFFICE SUPPLIES"
"http://statistics.data.gov.uk/id/local-authority/43UM","WOKING BOROUGH COUNCIL","07/04/2021","07/04/2021","GPC/00014303","WWW.BANNERUK.COM","PROCUREMENT CARD","10.63","CORPORATE STRATEGY - POLICE & CRIME COMMISSIONER","STATIONERY","G620","ELECTIONS STATIONERY","SANDRA ARCHER","STATIONERY/OFFICE SUPPLIES"
"http://statistics.data.gov.uk/id/local-authority/43UM","WOKING BOROUGH COUNCIL","07/04/2021","07/04/2021","GPC/00014303","WWW.BANNERUK.COM","PROCUREMENT CARD","19.70","CORPORATE STRATEGY - POLICE & CRIME COMMISSIONER","STATIONERY","G620","ELECTIONS STATIONERY","SANDRA ARCHER","STATIONERY/OFFICE SUPPLIES"
"http://statistics.data.gov.uk/id/local-authority/43UM","WOKING BOROUGH COUNCIL","07/04/2021","07/04/2021","GPC/00014303","WWW.BANNERUK.COM","PROCUREMENT CARD","22.20","CORPORATE STRATEGY - POLICE & CRIME COMMISSIONER","STATIONERY","G620","ELECTIONS STATIONERY","SANDRA ARCHER","STATIONERY/OFFICE SUPPLIES"
"http://statistics.data.gov.uk/id/local-authority/43UM","WOKING BOROUGH COUNCIL","07/04/2021","07/04/2021","GPC/00014303","WWW.BANNERUK.COM","PROCUREMENT CARD","99.90","CORPORATE STRATEGY - POLICE & CRIME COMMISSIONER","STATIONERY","G620","ELECTIONS STATIONERY","SANDRA ARCHER","STATIONERY/OFFICE SUPPLIES"
"http://statistics.data.gov.uk/id/local-authority/43UM","WOKING BOROUGH COUNCIL","07/04/2021","07/04/2021","GPC/00014304","WWW.BANNERUK.COM","PROCUREMENT CARD","1.60","ASSET MANAGEMENT - CIVIC OFFICES","STATIONERY","G620","CIVIC OFFICE STATIONERY","SANDRA ARCHER","STATIONERY/OFFICE SUPPLIES"
"http://statistics.data.gov.uk/id/local-authority/43UM","WOKING BOROUGH COUNCIL","07/04/2021","07/04/2021","GPC/00014304","WWW.BANNERUK.COM","PROCUREMENT CARD","2.12","ASSET MANAGEMENT - CIVIC OFFICES","STATIONERY","G620","CIVIC OFFICE STATIONERY","SANDRA ARCHER","STATIONERY/OFFICE SUPPLIES"
"http://statistics.data.gov.uk/id/local-authority/43UM","WOKING BOROUGH COUNCIL","07/04/2021","07/04/2021","GPC/00014304","WWW.BANNERUK.COM","PROCUREMENT CARD","2.55","ASSET MANAGEMENT - CIVIC OFFICES","STATIONERY","G620","CIVIC OFFICE STATIONERY","SANDRA ARCHER","STATIONERY/OFFICE SUPPLIES"
"http://statistics.data.gov.uk/id/local-authority/43UM","WOKING BOROUGH COUNCIL","07/04/2021","07/04/2021","GPC/00014304","WWW.BANNERUK.COM","PROCUREMENT CARD","3.08","ASSET MANAGEMENT - CIVIC OFFICES","STATIONERY","G620","CIVIC OFFICE STATIONERY","SANDRA ARCHER","STATIONERY/OFFICE SUPPLIES"
"http://statistics.data.gov.uk/id/local-authority/43UM","WOKING BOROUGH COUNCIL","08/04/2021","08/04/2021","GPC/00014318","121OFFICEFURNITURE.CO.UK","PROCUREMENT CARD","672.17","INDEPENDENT LIVING SERVICES - ST MARY'S DAY CENTRE","NEW EQUIPMENT","G105","NEW ROUND TABLES FOR CENTRE USERS","MR JONNY MOLES","FURNITURE/EQUIP STORES"
"http://statistics.data.gov.uk/id/local-authority/43UM","WOKING BOROUGH COUNCIL","08/04/2021","08/04/2021","GPC/00014317","AMZNMKTPLACE","PROCUREMENT CARD","62.47","HOUSING SERVICES - HOME IMPS & BEN AGENCY","HANDYPERSON MATERIALS","G201","HANDYPERSON MATERIALS","MYCROFT HUNTER","MISC SPECIALITY RETAIL"
"http://statistics.data.gov.uk/id/local-authority/43UM","WOKING BOROUGH COUNCIL","08/04/2021","08/04/2021","GPC/00014316","AMZNMKTPLACE","PROCUREMENT CARD","45.97","INDEPENDENT LIVING SERVICES - FAMILY SUPPORT PROGRAMME","FAMILY ENABLING (FSP PROJECT)","H137","STATIONERY FOR CHILDREN","PALLAVI SHARAN","MISC SPECIALITY RETAIL"
"http://statistics.data.gov.uk/id/local-authority/43UM","WOKING BOROUGH COUNCIL","08/04/2021","08/04/2021","GPC/00014312","AMZNMKTPLACE AMAZON.CO.UK","PROCUREMENT CARD","30.82","INDEPENDENT LIVING SERVICES - BROCKHILL EXTRA CARE","EQUIPMENT","G100","GARDEN ASHTRAY AND DIARY FOR BROCKHILL","MRS M CHILCOTT","MISC SPECIALITY RETAIL"
"http://statistics.data.gov.uk/id/local-authority/43UM","WOKING BOROUGH COUNCIL","08/04/2021","08/04/2021","GPC/00014308","CO-OP GROUP 310393","PROCUREMENT CARD","6.60","INDEPENDENT LIVING SERVICES - MEALS SERVICE - ST MARYS","PROVISIONS","G410","CAFE MILK SUPPLIES","MR JONNY MOLES","GROCERY STORES"
"http://statistics.data.gov.uk/id/local-authority/43UM","WOKING BOROUGH COUNCIL","08/04/2021","08/04/2021","GPC/00014307","MAILCHIMP","PROCUREMENT CARD","51.67","CORPORATE STRATEGY - PUBLIC RELATIONS","GENERAL PUBLIC RELATIONS EXPNS","H915","MAILCHIMP MAILING COSTS","MISS K MAIR","DIGITAL GOODS-MULTI-CATEGORY"
"http://statistics.data.gov.uk/id/local-authority/43UM","WOKING BOROUGH COUNCIL","08/04/2021","08/04/2021","GPC/00014311","MARTIN MCCOLL'S","PROCUREMENT CARD","7.44","INDEPENDENT LIVING SERVICES - MOORCROFT","FIXTURES & FITTINGS - NEW","D800","BABY CHANGE","RICHARD BUCKENHAM","MISC FOOD STORES - DEFAULT"
"http://statistics.data.gov.uk/id/local-authority/43UM","WOKING BOROUGH COUNCIL","08/04/2021","08/04/2021","GPC/00014309","ROBERT DYAS HOLDNG LTD","PROCUREMENT CARD","10.69","CORPORATE STRATEGY - BOROUGH ELECTIONS","STATIONERY","G620","EXTENSION LEADS ELECTIONS","MR D JONES","HARDWARE STORES"
"http://statistics.data.gov.uk/id/local-authority/43UM","WOKING BOROUGH COUNCIL","08/04/2021","08/04/2021","GPC/00014309","ROBERT DYAS HOLDNG LTD","PROCUREMENT CARD","10.70","CORPORATE STRATEGY - COUNTY ELECTIONS","STATIONERY","G620","EXTENSION LEADS ELECTIONS","MR D JONES","HARDWARE STORES"
"http://statistics.data.gov.uk/id/local-authority/43UM","WOKING BOROUGH COUNCIL","08/04/2021","08/04/2021","GPC/00014309","ROBERT DYAS HOLDNG LTD","PROCUREMENT CARD","10.70","CORPORATE STRATEGY - POLICE & CRIME COMMISSIONER","STATIONERY","G620","EXTENSION LEADS ELECTIONS","MR D JONES","HARDWARE STORES"
"http://statistics.data.gov.uk/id/local-authority/43UM","WOKING BOROUGH COUNCIL","08/04/2021","08/04/2021","GPC/00014310","SCREWFIX DIRECT","PROCUREMENT CARD","32.52","CORPORATE STRATEGY - COVID -19 PANDEMIC","MAIN CONTRACTOR","Q200","BROOKWOOD COUNTRY PAVILION SHOWER REPAIRS","RICK HAZLEWOOD","LUMBER/BUILD SUPPLY STORES"
"http://statistics.data.gov.uk/id/local-authority/43UM","WOKING BOROUGH COUNCIL","08/04/2021","08/04/2021","GPC/00014319","SCREWFIX DIRECT","PROCUREMENT CARD","69.68","CORPORATE STRATEGY - COVID -19 PANDEMIC","MAIN CONTRACTOR","Q200","REPAIR MATERIALS","RICK HAZLEWOOD","LUMBER/BUILD SUPPLY STORES"
"http://statistics.data.gov.uk/id/local-authority/43UM","WOKING BOROUGH COUNCIL","08/04/2021","08/04/2021","GPC/00014313","TOOLSTATION WOKING","PROCUREMENT CARD","13.10","CORPORATE STRATEGY - BOROUGH ELECTIONS","EQUIPMENT","G100","GANG EXTENSION LEADS FOR ELECTIONS","IOANNA KOUTSIONI","LUMBER/BUILD SUPPLY STORES"
"http://statistics.data.gov.uk/id/local-authority/43UM","WOKING BOROUGH COUNCIL","08/04/2021","08/04/2021","GPC/00014313","TOOLSTATION WOKING","PROCUREMENT CARD","15.72","CORPORATE STRATEGY - COUNTY ELECTIONS","EQUIPMENT","G100","GANG EXTENSION LEADS FOR ELECTIONS","IOANNA KOUTSIONI","LUMBER/BUILD SUPPLY STORES"
"http://statistics.data.gov.uk/id/local-authority/43UM","WOKING BOROUGH COUNCIL","08/04/2021","08/04/2021","GPC/00014313","TOOLSTATION WOKING","PROCUREMENT CARD","15.74","CORPORATE STRATEGY - POLICE & CRIME COMMISSIONER","EQUIPMENT","G100","GANG EXTENSION LEADS FOR ELECTIONS","IOANNA KOUTSIONI","LUMBER/BUILD SUPPLY STORES"
"http://statistics.data.gov.uk/id/local-authority/43UM","WOKING BOROUGH COUNCIL","08/04/2021","08/04/2021","GPC/00014327","VIKING UK","PROCUREMENT CARD","0.80","CORPORATE STRATEGY - BOROUGH ELECTIONS","STATIONERY","G620","PRINTER PAPER FOR ELECTION","IOANNA KOUTSIONI","STATIONERY/OFFICE SUPPLIES"
"http://statistics.data.gov.uk/id/local-authority/43UM","WOKING BOROUGH COUNCIL","08/04/2021","08/04/2021","GPC/00014327","VIKING UK","PROCUREMENT CARD","1.66","CORPORATE STRATEGY - BOROUGH ELECTIONS","STATIONERY","G620","PRINTER PAPER FOR ELECTION","IOANNA KOUTSIONI","STATIONERY/OFFICE SUPPLIES"
"http://statistics.data.gov.uk/id/local-authority/43UM","WOKING BOROUGH COUNCIL","08/04/2021","08/04/2021","GPC/00014327","VIKING UK","PROCUREMENT CARD","1.66","CORPORATE STRATEGY - BOROUGH ELECTIONS","STATIONERY","G620","PRINTER PAPER FOR ELECTION","IOANNA KOUTSIONI","STATIONERY/OFFICE SUPPLIES"
"http://statistics.data.gov.uk/id/local-authority/43UM","WOKING BOROUGH COUNCIL","08/04/2021","08/04/2021","GPC/00014327","VIKING UK","PROCUREMENT CARD","1.66","CORPORATE STRATEGY - BOROUGH ELECTIONS","STATIONERY","G620","PRINTER PAPER FOR ELECTION","IOANNA KOUTSIONI","STATIONERY/OFFICE SUPPLIES"
"http://statistics.data.gov.uk/id/local-authority/43UM","WOKING BOROUGH COUNCIL","08/04/2021","08/04/2021","GPC/00014327","VIKING UK","PROCUREMENT CARD","0.96","CORPORATE STRATEGY - COUNTY ELECTIONS","STATIONERY","G620","PRINTER PAPER FOR ELECTION","IOANNA KOUTSIONI","STATIONERY/OFFICE SUPPLIES"
"http://statistics.data.gov.uk/id/local-authority/43UM","WOKING BOROUGH COUNCIL","08/04/2021","08/04/2021","GPC/00014327","VIKING UK","PROCUREMENT CARD","2.00","CORPORATE STRATEGY - COUNTY ELECTIONS","STATIONERY","G620","PRINTER PAPER FOR ELECTION","IOANNA KOUTSIONI","STATIONERY/OFFICE SUPPLIES"
"http://statistics.data.gov.uk/id/local-authority/43UM","WOKING BOROUGH COUNCIL","08/04/2021","08/04/2021","GPC/00014327","VIKING UK","PROCUREMENT CARD","2.00","CORPORATE STRATEGY - COUNTY ELECTIONS","STATIONERY","G620","PRINTER PAPER FOR ELECTION","IOANNA KOUTSIONI","STATIONERY/OFFICE SUPPLIES"
"http://statistics.data.gov.uk/id/local-authority/43UM","WOKING BOROUGH COUNCIL","08/04/2021","08/04/2021","GPC/00014327","VIKING UK","PROCUREMENT CARD","2.00","CORPORATE STRATEGY - COUNTY ELECTIONS","STATIONERY","G620","PRINTER PAPER FOR ELECTION","IOANNA KOUTSIONI","STATIONERY/OFFICE SUPPLIES"
"http://statistics.data.gov.uk/id/local-authority/43UM","WOKING BOROUGH COUNCIL","08/04/2021","08/04/2021","GPC/00014327","VIKING UK","PROCUREMENT CARD","0.98","CORPORATE STRATEGY - POLICE & CRIME COMMISSIONER","STATIONERY","G620","PRINTER PAPER FOR ELECTION","IOANNA KOUTSIONI","STATIONERY/OFFICE SUPPLIES"
"http://statistics.data.gov.uk/id/local-authority/43UM","WOKING BOROUGH COUNCIL","08/04/2021","08/04/2021","GPC/00014327","VIKING UK","PROCUREMENT CARD","2.00","CORPORATE STRATEGY - POLICE & CRIME COMMISSIONER","STATIONERY","G620","PRINTER PAPER FOR ELECTION","IOANNA KOUTSIONI","STATIONERY/OFFICE SUPPLIES"
"http://statistics.data.gov.uk/id/local-authority/43UM","WOKING BOROUGH COUNCIL","08/04/2021","08/04/2021","GPC/00014327","VIKING UK","PROCUREMENT CARD","2.00","CORPORATE STRATEGY - POLICE & CRIME COMMISSIONER","STATIONERY","G620","PRINTER PAPER FOR ELECTION","IOANNA KOUTSIONI","STATIONERY/OFFICE SUPPLIES"
"http://statistics.data.gov.uk/id/local-authority/43UM","WOKING BOROUGH COUNCIL","08/04/2021","08/04/2021","GPC/00014327","VIKING UK","PROCUREMENT CARD","2.00","CORPORATE STRATEGY - POLICE & CRIME COMMISSIONER","STATIONERY","G620","PRINTER PAPER FOR ELECTION","IOANNA KOUTSIONI","STATIONERY/OFFICE SUPPLIES"
"http://statistics.data.gov.uk/id/local-authority/43UM","WOKING BOROUGH COUNCIL","08/04/2021","08/04/2021","GPC/00014315","WM MORRISON PETROL OPT","PROCUREMENT CARD","66.73","HOUSING SERVICES - HOME IMPS & BEN AGENCY","TRAVEL EXPENSES-OFFICERS","F600","FUEL FOR HANDYPERSON VAN","LEIGH ROBERTS","AUTOMATED FUEL DISPENSERS"
"http://statistics.data.gov.uk/id/local-authority/43UM","WOKING BOROUGH COUNCIL","08/04/2021","08/04/2021","GPC/00014320","WWW.BANNERUK.COM","PROCUREMENT CARD","57.12","REVENUES AND BENEFITS - C'L TAX BENEFIT ADMIN","STATIONERY","G620","BENEFITS STATIONERY","SANDRA ARCHER","STATIONERY/OFFICE SUPPLIES"
"http://statistics.data.gov.uk/id/local-authority/43UM","WOKING BOROUGH COUNCIL","08/04/2021","08/04/2021","GPC/00014314","WWW.NEWBOLLARDSDIRECT.","PROCUREMENT CARD","265.00","ASSET MANAGEMENT - UNIT 1 LITTLEWICK CARTHOUSE L","R&M BUILDINGS - CONTRACTORS","D100","REPLACEMENT BOLLARD CLIFTONS","MR R D SMITH","INDUSTRIAL SUPPLIES - DEF"
"http://statistics.data.gov.uk/id/local-authority/43UM","WOKING BOROUGH COUNCIL","09/04/2021","09/04/2021","GPC/00014321","ACCU.CO.UK","PROCUREMENT CARD","118.45","CORPORATE STRATEGY - LEISURE MANAGEMENT CONTRACT","R&M BUILDINGS - CONTRACTORS","D100","PIP PERSPEX","MR D JONES","HARDWARE EQUIPMENT/SUPPLIES"
"http://statistics.data.gov.uk/id/local-authority/43UM","WOKING BOROUGH COUNCIL","24/03/2021","09/04/2021","0000463683/001","ALLSTAR BUSINESS SOLUTIONS LTD","01500600","132.09","INDEPENDENT LIVING SERVICES - MEALS ON WHEELS","PETROL","F200","PETROL","INDEPENDENT LIVING SERVICES","UTILITIES"
"http://statistics.data.gov.uk/id/local-authority/43UM","WOKING BOROUGH COUNCIL","23/03/2021","09/04/2021","0000463741/001","ALPHABET (GB) LIMITED","00015200","-73.29","CORPORATE MANAGEMENT GROUP - LEASED CAR DEDUCTIONS","RECOVERABLE COSTS","T162","RECOVERABLE COSTS","CORPORATE MANAGEMENT GROUP","VEHICLE MANAGEMENT"
"http://statistics.data.gov.uk/id/local-authority/43UM","WOKING BOROUGH COUNCIL","23/03/2021","09/04/2021","0000463741/002","ALPHABET (GB) LIMITED","00015200","-7.33","CORPORATE MANAGEMENT GROUP - LEASED CAR DEDUCTIONS","RECOVERABLE COSTS","T162","RECOVERABLE COSTS","CORPORATE MANAGEMENT GROUP","VEHICLE MANAGEMENT"
"http://statistics.data.gov.uk/id/local-authority/43UM","WOKING BOROUGH COUNCIL","29/03/2021","09/04/2021","0000463853/001","ALPHABET (GB) LIMITED","00015200","4,716.88","CORPORATE MANAGEMENT GROUP - LEASED CAR PAYMENTS","PAYMENT TO LESSORS","T170","PAYMENT TO LESSORS","CORPORATE MANAGEMENT GROUP","VEHICLE MANAGEMENT"
"http://statistics.data.gov.uk/id/local-authority/43UM","WOKING BOROUGH COUNCIL","29/03/2021","09/04/2021","0000463853/002","ALPHABET (GB) LIMITED","00015200","24.00","CORPORATE MANAGEMENT GROUP - LEASED CAR PAYMENTS","PAYMENT TO LESSORS","T170","PAYMENT TO LESSORS","CORPORATE MANAGEMENT GROUP","VEHICLE MANAGEMENT"
"http://statistics.data.gov.uk/id/local-authority/43UM","WOKING BOROUGH COUNCIL","29/03/2021","09/04/2021","0000463853/003","ALPHABET (GB) LIMITED","00015200","-430.00","CORPORATE MANAGEMENT GROUP - LEASED CAR PAYMENTS","PAYMENT TO LESSORS","T170","PAYMENT TO LESSORS","CORPORATE MANAGEMENT GROUP","VEHICLE MANAGEMENT"
"http://statistics.data.gov.uk/id/local-authority/43UM","WOKING BOROUGH COUNCIL","29/03/2021","09/04/2021","0000463853/004","ALPHABET (GB) LIMITED","00015200","-24.00","CORPORATE MANAGEMENT GROUP - LEASED CAR RELIEF","REVENUE CONTRIBUTIONS","T775","REVENUE CONTRIBUTIONS","CORPORATE MANAGEMENT GROUP","VEHICLE MANAGEMENT"
"http://statistics.data.gov.uk/id/local-authority/43UM","WOKING BOROUGH COUNCIL","28/02/2021","09/04/2021","0000463603/001","ALPHABET (GB) LIMITED","00015200","1,380.45","ASSET MANAGEMENT - LEASED CAR INSURANCE","GARAGE REPAIR COSTS","T167","GARAGE REPAIR COSTS","ASSET MANAGEMENT","VEHICLE MANAGEMENT"
"http://statistics.data.gov.uk/id/local-authority/43UM","WOKING BOROUGH COUNCIL","09/04/2021","09/04/2021","GPC/00014322","AMAZON.CO.UK","PROCUREMENT CARD","98.33","INDEPENDENT LIVING SERVICES - BROCKHILL EXTRA CARE","EQUIPMENT","G100","HOOVER","SALLY PETRIE","MISC SPECIALITY RETAIL"
"http://statistics.data.gov.uk/id/local-authority/43UM","WOKING BOROUGH COUNCIL","09/04/2021","09/04/2021","GPC/00014331","AMAZON.CO.UK","PROCUREMENT CARD","34.40","INDEPENDENT LIVING SERVICES - INDEPENDENT LIV SERV GEN EXPEN","FREDA EBEL BEQUEST","H352","BEDDING FOR GUEST FLAT","SALLY PETRIE","OTHER DIRECT MARKETERS"
"http://statistics.data.gov.uk/id/local-authority/43UM","WOKING BOROUGH COUNCIL","09/04/2021","09/04/2021","GPC/00014328","AMZNMKTPLACE AMAZON.CO.UK","PROCUREMENT CARD","106.40","INDEPENDENT LIVING SERVICES - ST MARY'S DAY CENTRE","NEW EQUIPMENT","G105","ST MARYS CENTRE NEW FURNITURE","MR JONNY MOLES","MISC SPECIALITY RETAIL"
"http://statistics.data.gov.uk/id/local-authority/43UM","WOKING BOROUGH COUNCIL","07/04/2021","09/04/2021","0000464008/001","ARTICLE SEVEN","00942800","112.50","INFORMATION TECHNOLOGY - I.T.S. ICT","HOSTED SYSTEMS","G198","HOSTED SYSTEMS","INFORMATION TECHNOLOGY","FACILITIES & MANAGEMENT SERVICES"
"http://statistics.data.gov.uk/id/local-authority/43UM","WOKING BOROUGH COUNCIL","28/03/2021","09/04/2021","0000463939/001","AXIS SECURITY SERVICES LTD","40429500","1,016.82","INDEPENDENT LIVING SERVICES - SHEERWATER SECURITY PATROL","MAIN CONTRACTOR","Q200","MAIN CONTRACTOR","INDEPENDENT LIVING SERVICES","CONSULTANCY"
"http://statistics.data.gov.uk/id/local-authority/43UM","WOKING BOROUGH COUNCIL","06/04/2021","09/04/2021","0030002788/001","BARCLAYS CAPITAL","00132800","99,020.55","FINANCIAL SERVICES - INTEREST PAYABLE & SIMILAR CHG","L.O.B.O. LOAN","U113","L.O.B.O. LOAN","FINANCIAL SERVICES","FINANCIAL SERVICES"
"http://statistics.data.gov.uk/id/local-authority/43UM","WOKING BOROUGH COUNCIL","01/04/2021","09/04/2021","0000463975/001","CAIN BIO-ENGINEERING LTD","40932300","3,965.00","ASSET MANAGEMENT - WOODEND - LAND AT REAR","LAND MANAGEMENT COSTS","D511","LAND MANAGEMENT COSTS","ASSET MANAGEMENT","ENVIRONMENTAL SERVICES"
"http://statistics.data.gov.uk/id/local-authority/43UM","WOKING BOROUGH COUNCIL","01/04/2021","09/04/2021","0000463976/001","CAIN BIO-ENGINEERING LTD","40932300","1,860.00","ASSET MANAGEMENT - WOODEND - LAND AT REAR","LAND MANAGEMENT COSTS","D511","LAND MANAGEMENT COSTS","ASSET MANAGEMENT","ENVIRONMENTAL SERVICES"
"http://statistics.data.gov.uk/id/local-authority/43UM","WOKING BOROUGH COUNCIL","01/04/2021","09/04/2021","0000463977/001","CAIN BIO-ENGINEERING LTD","40932300","2,840.00","ASSET MANAGEMENT - WOODEND - LAND AT REAR","LAND MANAGEMENT COSTS","D511","LAND MANAGEMENT COSTS","ASSET MANAGEMENT","ENVIRONMENTAL SERVICES"
"http://statistics.data.gov.uk/id/local-authority/43UM","WOKING BOROUGH COUNCIL","01/04/2021","09/04/2021","0000463978/001","CAIN BIO-ENGINEERING LTD","40932300","4,675.00","ASSET MANAGEMENT - WOODEND - LAND AT REAR","LAND MANAGEMENT COSTS","D511","LAND MANAGEMENT COSTS","ASSET MANAGEMENT","ENVIRONMENTAL SERVICES"
"http://statistics.data.gov.uk/id/local-authority/43UM","WOKING BOROUGH COUNCIL","01/04/2021","09/04/2021","0000463979/001","CAIN BIO-ENGINEERING LTD","40932300","2,685.00","ASSET MANAGEMENT - WOODEND - LAND AT REAR","LAND MANAGEMENT COSTS","D511","LAND MANAGEMENT COSTS","ASSET MANAGEMENT","ENVIRONMENTAL SERVICES"
"http://statistics.data.gov.uk/id/local-authority/43UM","WOKING BOROUGH COUNCIL","01/04/2021","09/04/2021","0000463980/001","CAIN BIO-ENGINEERING LTD","40932300","3,845.00","ASSET MANAGEMENT - WOODEND - LAND AT REAR","LAND MANAGEMENT COSTS","D511","LAND MANAGEMENT COSTS","ASSET MANAGEMENT","ENVIRONMENTAL SERVICES"
"http://statistics.data.gov.uk/id/local-authority/43UM","WOKING BOROUGH COUNCIL","24/03/2021","09/04/2021","0000463838/001","CASTLE WATER LIMITED","40650200","414.96","ASSET MANAGEMENT - SHEERWATER COMMUNITY CENTRE","WATER","D700","WATER","ASSET MANAGEMENT","UTILITIES"
"http://statistics.data.gov.uk/id/local-authority/43UM","WOKING BOROUGH COUNCIL","04/04/2021","09/04/2021","0000464016/001","CHRIS BANKS T/A BANKS SOLUTIONS","40295900","325.00","PLANNING SERVICES - LOCAL DEVELOPMENT FRAMEWORK","OTHER CONSULTANTS","Q430","OTHER CONSULTANTS","PLANNING SERVICES","CONSULTANCY"
"http://statistics.data.gov.uk/id/local-authority/43UM","WOKING BOROUGH COUNCIL","01/04/2021","09/04/2021","0000463847/001","CMIS-UK LIMITED","40655600","120.00","CORPORATE STRATEGY - TOWN CENTRE FORUM","ECDEV INWARD INVESTMENT PLAN","H409","ECDEV INWARD INVESTMENT PLAN","CORPORATE STRATEGY","INFORMATION COMMUNICATION TECHNOLOGY"
"http://statistics.data.gov.uk/id/local-authority/43UM","WOKING BOROUGH COUNCIL","09/04/2021","09/04/2021","GPC/00014335","COSTA COFFEE 43038215","PROCUREMENT CARD","5.37","INDEPENDENT LIVING SERVICES - FAMILY SUPPORT PROGRAMME","FAMILY ENABLING (FSP PROJECT)","H137","FAMILY ENABLING","MAGGIE HUSSAIN","FAST FOOD RESTAURANTS"
"http://statistics.data.gov.uk/id/local-authority/43UM","WOKING BOROUGH COUNCIL","06/04/2021","09/04/2021","0030002789/001","DANSKE BANK","01657400","119,075.34","FINANCIAL SERVICES - INTEREST PAYABLE & SIMILAR CHG","L.O.B.O. LOAN","U113","L.O.B.O. LOAN","FINANCIAL SERVICES","FINANCIAL SERVICES"
"http://statistics.data.gov.uk/id/local-authority/43UM","WOKING BOROUGH COUNCIL","08/04/2021","09/04/2021","0030002793/001","DAVITT JONES BOULD","40370200","422,935.00","FINANCIAL SERVICES - LOAN ADV THL SW PROPERTY PURCH","LONG TERM LOAN","S864","LONG TERM LOAN","FINANCIAL SERVICES","LEGAL SERVICES"
"http://statistics.data.gov.uk/id/local-authority/43UM","WOKING BOROUGH COUNCIL","19/03/2021","09/04/2021","0000463752/001","DAVITT JONES BOULD LTD - SOLICITORS","01490800","50.70","CORPORATE STRATEGY - LEGAL","AD HOC WORK","H781","AD HOC WORK","CORPORATE STRATEGY","LEGAL SERVICES"
"http://statistics.data.gov.uk/id/local-authority/43UM","WOKING BOROUGH COUNCIL","19/03/2021","09/04/2021","0000463753/001","DAVITT JONES BOULD LTD - SOLICITORS","01490800","31.40","CORPORATE STRATEGY - LEGAL","AD HOC WORK","H781","AD HOC WORK","CORPORATE STRATEGY","LEGAL SERVICES"
"http://statistics.data.gov.uk/id/local-authority/43UM","WOKING BOROUGH COUNCIL","19/03/2021","09/04/2021","0000463754/001","DAVITT JONES BOULD LTD - SOLICITORS","01490800","31.40","CORPORATE STRATEGY - LEGAL","AD HOC WORK","H781","AD HOC WORK","CORPORATE STRATEGY","LEGAL SERVICES"
"http://statistics.data.gov.uk/id/local-authority/43UM","WOKING BOROUGH COUNCIL","19/03/2021","09/04/2021","0000463755/001","DAVITT JONES BOULD LTD - SOLICITORS","01490800","94.20","CORPORATE STRATEGY - LEGAL","AD HOC WORK","H781","AD HOC WORK","CORPORATE STRATEGY","LEGAL SERVICES"
"http://statistics.data.gov.uk/id/local-authority/43UM","WOKING BOROUGH COUNCIL","19/03/2021","09/04/2021","0000463756/001","DAVITT JONES BOULD LTD - SOLICITORS","01490800","78.50","CORPORATE STRATEGY - LEGAL","AD HOC WORK","H781","AD HOC WORK","CORPORATE STRATEGY","LEGAL SERVICES"
"http://statistics.data.gov.uk/id/local-authority/43UM","WOKING BOROUGH COUNCIL","19/03/2021","09/04/2021","0000463757/001","DAVITT JONES BOULD LTD - SOLICITORS","01490800","266.90","CORPORATE STRATEGY - LEGAL","AD HOC WORK","H781","AD HOC WORK","CORPORATE STRATEGY","LEGAL SERVICES"
"http://statistics.data.gov.uk/id/local-authority/43UM","WOKING BOROUGH COUNCIL","19/03/2021","09/04/2021","0000463758/001","DAVITT JONES BOULD LTD - SOLICITORS","01490800","47.10","CORPORATE STRATEGY - LEGAL","AD HOC WORK","H781","AD HOC WORK","CORPORATE STRATEGY","LEGAL SERVICES"
"http://statistics.data.gov.uk/id/local-authority/43UM","WOKING BOROUGH COUNCIL","19/03/2021","09/04/2021","0000463761/001","DAVITT JONES BOULD LTD - SOLICITORS","01490800","31.40","CORPORATE STRATEGY - LEGAL","AD HOC WORK","H781","AD HOC WORK","CORPORATE STRATEGY","LEGAL SERVICES"
"http://statistics.data.gov.uk/id/local-authority/43UM","WOKING BOROUGH COUNCIL","06/04/2021","09/04/2021","0030002790/001","DEXIA CREDIT LOCAL","01657300","118,424.66","FINANCIAL SERVICES - INTEREST PAYABLE & SIMILAR CHG","L.O.B.O. LOAN","U113","L.O.B.O. LOAN","FINANCIAL SERVICES","FINANCIAL SERVICES"
"http://statistics.data.gov.uk/id/local-authority/43UM","WOKING BOROUGH COUNCIL","30/03/2021","09/04/2021","0000463889/001","DMH STALLARD LLP","40276600","4,221.00","PLANNING SERVICES - TOWN PLANNING GENERAL","CONSULTANTS","H670","CONSULTANTS","PLANNING SERVICES","FINANCIAL SERVICES"
"http://statistics.data.gov.uk/id/local-authority/43UM","WOKING BOROUGH COUNCIL","31/03/2021","09/04/2021","0000463890/001","DMH STALLARD LLP","40276600","13,164.50","PLANNING SERVICES - TOWN PLANNING GENERAL","CONSULTANTS","H670","CONSULTANTS","PLANNING SERVICES","FINANCIAL SERVICES"
"http://statistics.data.gov.uk/id/local-authority/43UM","WOKING BOROUGH COUNCIL","31/03/2021","09/04/2021","0000463929/001","EUROTECH MONITORING SERVICES LTD","00643100","358.98","ASSET MANAGEMENT - UNIT 15A MON WAY EAST","CONTRACT SECURITY","H602","CONTRACT SECURITY","ASSET MANAGEMENT","FACILITIES & MANAGEMENT SERVICES"
"http://statistics.data.gov.uk/id/local-authority/43UM","WOKING BOROUGH COUNCIL","08/02/2021","09/04/2021","0000462296/001","FRANCOTYP POSTALIA LTD","01756000","10.00","CORPORATE STRATEGY - POSTAGE","POSTAGE - FRANKING MACHINE","G720","POSTAGE - FRANKING MACHINE","CORPORATE STRATEGY","MAIL SERVICES"
"http://statistics.data.gov.uk/id/local-authority/43UM","WOKING BOROUGH COUNCIL","29/03/2021","09/04/2021","0000463832/001","FRIENDS OF THE ELDERLY","00328900","1,250.00","CORPORATE STRATEGY - COMMUNITY FUND","EXPEND FROM FUND","T750","EXPEND FROM FUND","CORPORATE STRATEGY","ARTS & LEISURE SERVICES"
"http://statistics.data.gov.uk/id/local-authority/43UM","WOKING BOROUGH COUNCIL","05/04/2021","09/04/2021","0000463999/001","FRONTLINE PROTECTION SGD LTD","40542500","4,368.00","CORPORATE STRATEGY - COVID-19 EMERGENCY SERV ACCOMODATION","SECURITY SERVICES","Q272","SECURITY SERVICES","CORPORATE STRATEGY","FACILITIES & MANAGEMENT SERVICES"
"http://statistics.data.gov.uk/id/local-authority/43UM","WOKING BOROUGH COUNCIL","29/03/2021","09/04/2021","0000463834/001","GIBBS & DANDY","40335300","65.16","HOUSING SERVICES - HOME IMPS & BEN AGENCY","HANDYPERSON MATERIALS","G201","HANDYPERSON MATERIALS","HOUSING SERVICES","BUILDING CONSTRUCTION MATERIALS"
"http://statistics.data.gov.uk/id/local-authority/43UM","WOKING BOROUGH COUNCIL","30/03/2021","09/04/2021","0000463886/001","GIBBS & DANDY","40335300","119.52","HOUSING SERVICES - HOME IMPS & BEN AGENCY","HANDYPERSON MATERIALS","G201","HANDYPERSON MATERIALS","HOUSING SERVICES","BUILDING CONSTRUCTION MATERIALS"
"http://statistics.data.gov.uk/id/local-authority/43UM","WOKING BOROUGH COUNCIL","30/03/2021","09/04/2021","0000463887/001","GIBBS & DANDY","40335300","22.82","HOUSING SERVICES - HOME IMPS & BEN AGENCY","HANDYPERSON MATERIALS","G201","HANDYPERSON MATERIALS","HOUSING SERVICES","BUILDING CONSTRUCTION MATERIALS"
"http://statistics.data.gov.uk/id/local-authority/43UM","WOKING BOROUGH COUNCIL","09/04/2021","09/04/2021","0000464019/001","GREENWICH CONTRACTS LIMITED","40656500","1,000.00","REVENUES AND BENEFITS - BENEFIT SERVICES","TEMPORARY STAFF","A110","TEMPORARY STAFF","REVENUES AND BENEFITS","CONSULTANCY"
"http://statistics.data.gov.uk/id/local-authority/43UM","WOKING BOROUGH COUNCIL","07/04/2021","09/04/2021","0030002791/001","KATY COX LIMITED","40950900","6,400.00","INDEPENDENT LIVING SERVICES - WELL BEING","TEMPORARY STAFF","H687","TEMPORARY STAFF","INDEPENDENT LIVING SERVICES","CONSULTANCY"
"http://statistics.data.gov.uk/id/local-authority/43UM","WOKING BOROUGH COUNCIL","01/04/2021","09/04/2021","0030002783/001","LAND REGISTRY","00018400","634.00","CORPORATE STRATEGY - LEGAL","LAND REGISTRY FEE","H425","LAND REGISTRY FEE","CORPORATE STRATEGY","LEGAL SERVICES"
"http://statistics.data.gov.uk/id/local-authority/43UM","WOKING BOROUGH COUNCIL","26/03/2021","09/04/2021","0000463840/001","LICENCE BUREAU LIMITED","40848100","119.00","CORPORATE MANAGEMENT GROUP - STAFF TRAINING/GENERAL COSTS","HEALTH CARE","A780","HEALTH CARE","CORPORATE MANAGEMENT GROUP","CONSULTANCY"
"http://statistics.data.gov.uk/id/local-authority/43UM","WOKING BOROUGH COUNCIL","09/04/2021","09/04/2021","GPC/00014333","LIDL GB LONDON","PROCUREMENT CARD","15.12","INDEPENDENT LIVING SERVICES - MEALS SERVICE - ST MARYS","PROVISIONS","G410","CAFE STOCK ITEMS","MR JONNY MOLES","GROCERY STORES"
"http://statistics.data.gov.uk/id/local-authority/43UM","WOKING BOROUGH COUNCIL","30/03/2021","09/04/2021","0000463970/001","OYSTER PARTNERSHIP","40443300","1,767.63","PLANNING SERVICES - DEVELOPMENT CONTROL","TEMPORARY STAFF","A110","TEMPORARY STAFF","PLANNING SERVICES","HUMAN RESOURCES"
"http://statistics.data.gov.uk/id/local-authority/43UM","WOKING BOROUGH COUNCIL","07/04/2021","09/04/2021","0000463971/001","OYSTER PARTNERSHIP","40443300","1,099.29","PLANNING SERVICES - DEVELOPMENT CONTROL","TEMPORARY STAFF","A110","TEMPORARY STAFF","PLANNING SERVICES","HUMAN RESOURCES"
"http://statistics.data.gov.uk/id/local-authority/43UM","WOKING BOROUGH COUNCIL","07/04/2021","09/04/2021","0000463972/001","OYSTER PARTNERSHIP","40443300","368.54","PLANNING SERVICES - DEVELOPMENT CONTROL","TEMPORARY STAFF","A110","TEMPORARY STAFF","PLANNING SERVICES","HUMAN RESOURCES"
"http://statistics.data.gov.uk/id/local-authority/43UM","WOKING BOROUGH COUNCIL","25/03/2021","09/04/2021","0000463728/001","PORTERS","00021300","395.00","HOUSING SERVICES - TENANTS REMOVAL EXPENS","REMOVAL EXPENSES","H775","REMOVAL EXPENSES","HOUSING SERVICES","HOUSING MANAGEMENT"
"http://statistics.data.gov.uk/id/local-authority/43UM","WOKING BOROUGH COUNCIL","06/04/2021","09/04/2021","0030002784/001","PUBLIC WORKS LOAN BOARD","00021400","118,750.00","FINANCIAL SERVICES - INTEREST PAYABLE & SIMILAR CHG","PWLB MATURITY LOAN","U112","PWLB MATURITY LOAN","FINANCIAL SERVICES","FINANCIAL SERVICES"
"http://statistics.data.gov.uk/id/local-authority/43UM","WOKING BOROUGH COUNCIL","06/04/2021","09/04/2021","0030002785/001","PUBLIC WORKS LOAN BOARD","00021400","118,750.00","FINANCIAL SERVICES - INTEREST PAYABLE & SIMILAR CHG","PWLB MATURITY LOAN","U112","PWLB MATURITY LOAN","FINANCIAL SERVICES","FINANCIAL SERVICES"
"http://statistics.data.gov.uk/id/local-authority/43UM","WOKING BOROUGH COUNCIL","06/04/2021","09/04/2021","0030002786/001","PUBLIC WORKS LOAN BOARD","00021400","11,152.90","FINANCIAL SERVICES - INTEREST PAYABLE & SIMILAR CHG","PWLB MATURITY LOAN","U112","PWLB MATURITY LOAN","FINANCIAL SERVICES","FINANCIAL SERVICES"
"http://statistics.data.gov.uk/id/local-authority/43UM","WOKING BOROUGH COUNCIL","06/04/2021","09/04/2021","0030002787/001","PUBLIC WORKS LOAN BOARD","00021400","106,500.00","FINANCIAL SERVICES - INTEREST PAYABLE & SIMILAR CHG","PWLB MATURITY LOAN","U112","PWLB MATURITY LOAN","FINANCIAL SERVICES","FINANCIAL SERVICES"
"http://statistics.data.gov.uk/id/local-authority/43UM","WOKING BOROUGH COUNCIL","26/03/2021","09/04/2021","0000463868/001","RAYNES ROOFING LIMITED","40480600","792.00","HOUSING SERVICES - PRIVATE SECTOR RENEWAL GRANT","WARM AT HOME GRANTS","Q729","WARM AT HOME GRANTS","HOUSING SERVICES","WORKS (CONSTRUCTION REPAIR MAINTENANCE)"
"http://statistics.data.gov.uk/id/local-authority/43UM","WOKING BOROUGH COUNCIL","31/03/2021","09/04/2021","0000463837/001","REDACTED PERSONAL DATA","40950000","4,000.00","INDEPENDENT LIVING SERVICES - SW REGEN DISTURBANCE PAYMENTS","MAIN CONTRACTOR","Q200","MAIN CONTRACTOR","INDEPENDENT LIVING SERVICES","FINANCIAL SERVICES"
"http://statistics.data.gov.uk/id/local-authority/43UM","WOKING BOROUGH COUNCIL","24/03/2021","09/04/2021","0000463956/001","SCOTTISHPOWER","01563000","1,212.78","ASSET MANAGEMENT - CLEARY COURT","ELECTRICITY","D400","ELECTRICITY","ASSET MANAGEMENT","UTILITIES"
"http://statistics.data.gov.uk/id/local-authority/43UM","WOKING BOROUGH COUNCIL","25/03/2021","09/04/2021","0000463913/002","SERCO LIMITED","01380600","432.28","NEIGHBOURHOOD SERVICES - PARKS-GENERAL","GROUNDS MAINT-CONTRACTORS","D200","GROUNDS MAINT-CONTRACTORS","NEIGHBOURHOOD SERVICES","CLEANING & JANITORIAL"
"http://statistics.data.gov.uk/id/local-authority/43UM","WOKING BOROUGH COUNCIL","25/03/2021","09/04/2021","0000463913/001","SERCO LIMITED","01380600","34.15","NEIGHBOURHOOD SERVICES - PARKS-GENERAL","PLAY EQUIPMENT","G167","PLAY EQUIPMENT","NEIGHBOURHOOD SERVICES","CLEANING & JANITORIAL"
"http://statistics.data.gov.uk/id/local-authority/43UM","WOKING BOROUGH COUNCIL","25/03/2021","09/04/2021","0000463913/003","SERCO LIMITED","01380600","572.85","NEIGHBOURHOOD SERVICES - STREET FURNITURE","GROUNDS MAINT-CONTRACTORS","D200","GROUNDS MAINT-CONTRACTORS","NEIGHBOURHOOD SERVICES","CLEANING & JANITORIAL"
"http://statistics.data.gov.uk/id/local-authority/43UM","WOKING BOROUGH COUNCIL","25/03/2021","09/04/2021","0000463989/001","SERCO LIMITED","01380600","450.00","NEIGHBOURHOOD SERVICES - STREET FURNITURE","GROUNDS MAINT-CONTRACTORS","D200","GROUNDS MAINT-CONTRACTORS","NEIGHBOURHOOD SERVICES","CLEANING & JANITORIAL"
"http://statistics.data.gov.uk/id/local-authority/43UM","WOKING BOROUGH COUNCIL","25/03/2021","09/04/2021","0000463911/001","SERCO LIMITED","01380600","3,450.00","NEIGHBOURHOOD SERVICES - ENVIRONMENTAL MAINTENANCE CONT","EMC SERVICE CHARGE","T716","EMC SERVICE CHARGE","NEIGHBOURHOOD SERVICES","CLEANING & JANITORIAL"
"http://statistics.data.gov.uk/id/local-authority/43UM","WOKING BOROUGH COUNCIL","07/04/2021","09/04/2021","0000463967/001","SETON","00043000","23.85","INDEPENDENT LIVING SERVICES - MOORCROFT","FIXTURES & FITTINGS - NEW","D800","FIXTURES & FITTINGS - NEW","INDEPENDENT LIVING SERVICES","WORKS (CONSTRUCTION REPAIR MAINTENANCE)"
"http://statistics.data.gov.uk/id/local-authority/43UM","WOKING BOROUGH COUNCIL","30/03/2021","09/04/2021","0000463848/001","SHENA GRIGOR","40056300","150.00","NEIGHBOURHOOD SERVICES - SPORTS DEVELOPMENT","COACH EDUCATION","H657","COACH EDUCATION","NEIGHBOURHOOD SERVICES","ARTS & LEISURE SERVICES"
"http://statistics.data.gov.uk/id/local-authority/43UM","WOKING BOROUGH COUNCIL","30/03/2021","09/04/2021","0000463918/001","SIEMENS MOBILITY LTD","40922800","694.03","ASSET MANAGEMENT - INTEGRATED TRANSPORT PLAN","MISCELLANEOUS EXPENSES","Q660","MISCELLANEOUS EXPENSES","ASSET MANAGEMENT","STREET & TRAFFIC MANAGEMENT"
"http://statistics.data.gov.uk/id/local-authority/43UM","WOKING BOROUGH COUNCIL","08/04/2021","09/04/2021","0000463964/001","SMART ELECTRONS LTD","40944400","160.00","ASSET MANAGEMENT - 67 COMMERCIAL WAY","R&M BUILDINGS - CONTRACTORS","D100","R&M BUILDINGS - CONTRACTORS","ASSET MANAGEMENT","FACILITIES & MANAGEMENT SERVICES"
"http://statistics.data.gov.uk/id/local-authority/43UM","WOKING BOROUGH COUNCIL","25/03/2021","09/04/2021","0000463955/001","SSE PLC","40619300","182.34","HOUSING SERVICES - LANDLORDS EXPENSES","ELECTRICITY","D400","ELECTRICITY","HOUSING SERVICES","UTILITIES"
"http://statistics.data.gov.uk/id/local-authority/43UM","WOKING BOROUGH COUNCIL","09/04/2021","09/04/2021","GPC/00014325","TESCO STORE 2160","PROCUREMENT CARD","25.00","INDEPENDENT LIVING SERVICES - FAMILY SUPPORT PROGRAMME","FAMILY ENABLING (FSP PROJECT)","H137","FAMILY ENABLING","MAGGIE HUSSAIN","GROCERY STORES"
"http://statistics.data.gov.uk/id/local-authority/43UM","WOKING BOROUGH COUNCIL","15/03/2021","09/04/2021","0000463379/001","THAMESWEY DEVELOPMENTS LIMITED","40301400","3,345.92","HOUSING SERVICES - LOCKWOOD PATH","MAIN CONTRACTOR","Q200","MAIN CONTRACTOR","HOUSING SERVICES","WORKS (CONSTRUCTION REPAIR MAINTENANCE)"
"http://statistics.data.gov.uk/id/local-authority/43UM","WOKING BOROUGH COUNCIL","18/03/2021","09/04/2021","0000463483/001","THE CREATIVE COLONY","40487500","1,637.50","CORPORATE MANAGEMENT GROUP - STAFF TRAINING/GENERAL COSTS","HEALTH CARE","A780","HEALTH CARE","CORPORATE MANAGEMENT GROUP","FACILITIES & MANAGEMENT SERVICES"
"http://statistics.data.gov.uk/id/local-authority/43UM","WOKING BOROUGH COUNCIL","09/04/2021","09/04/2021","GPC/00014326","THE RANGE","PROCUREMENT CARD","12.46","ASSET MANAGEMENT - PEACOCK WALK MARKET","EQUIPMENT","G100","HI-VIS VESTS","STEPHEN BARRETT","DEPARTMENT STORES"
"http://statistics.data.gov.uk/id/local-authority/43UM","WOKING BOROUGH COUNCIL","09/04/2021","09/04/2021","GPC/00014334","UNBEATABLE BLINDS LTD","PROCUREMENT CARD","95.87","INDEPENDENT LIVING SERVICES - YOUTH DEVELOPMENT","GRANTS","H100","SURREY CARE TRUST BLINDS","RICHARD BUCKENHAM","FURNITURE/EQUIP STORES"
"http://statistics.data.gov.uk/id/local-authority/43UM","WOKING BOROUGH COUNCIL","01/04/2021","09/04/2021","0000463884/001","VAIL WILLIAMS LLP GENERAL CLIENT ACCOUNT","40901400","67,920.39","ASSET MANAGEMENT - MIDAS HSE OFFICES GRORTH RD","SERVICE CHARGE","D510","SERVICE CHARGE","ASSET MANAGEMENT","LEGAL SERVICES"
"http://statistics.data.gov.uk/id/local-authority/43UM","WOKING BOROUGH COUNCIL","09/04/2021","09/04/2021","GPC/00014330","VICTORIA WAY","PROCUREMENT CARD","0.08","NEIGHBOURHOOD SERVICES - CAR PARKS ADMIN&OPERATIONAL EX","PARKING FEES","N220","TEST FOR NEW SYSTEM","HAYLEY HEWITT-DUTTON","AUTO PARKING LOTS/GARAGES"
"http://statistics.data.gov.uk/id/local-authority/43UM","WOKING BOROUGH COUNCIL","23/03/2021","09/04/2021","0000463739/001","WEX EUROPE SERVICES (UK) LIMITED","01160600","96.54","NEIGHBOURHOOD SERVICES - CPZ WBC FROM 25/7/05","PETROL","F200","PETROL","NEIGHBOURHOOD SERVICES","VEHICLE MANAGEMENT"
"http://statistics.data.gov.uk/id/local-authority/43UM","WOKING BOROUGH COUNCIL","23/03/2021","09/04/2021","0000463739/002","WEX EUROPE SERVICES (UK) LIMITED","01160600","104.52","NEIGHBOURHOOD SERVICES - SURREY HEATH ON STREET PARKING","PETROL","F200","PETROL","NEIGHBOURHOOD SERVICES","VEHICLE MANAGEMENT"
"http://statistics.data.gov.uk/id/local-authority/43UM","WOKING BOROUGH COUNCIL","06/04/2021","09/04/2021","0000463983/001","WILKS HEAD & EVE LLP","40581600","8,800.00","ASSET MANAGEMENT - PROPERTY SERVICES","CONSULTANTS","H670","CONSULTANTS","ASSET MANAGEMENT","CONSULTANCY"
"http://statistics.data.gov.uk/id/local-authority/43UM","WOKING BOROUGH COUNCIL","01/04/2021","09/04/2021","0000463865/001","WOKING NEWS & MAIL LIMITED","40249900","100.00","CORPORATE STRATEGY - TOWN CENTRE FORUM","MARKETING","H406","MARKETING","CORPORATE STRATEGY","FACILITIES & MANAGEMENT SERVICES"
"http://statistics.data.gov.uk/id/local-authority/43UM","WOKING BOROUGH COUNCIL","09/04/2021","09/04/2021","GPC/00014332","WWW.BANNERUK.COM","PROCUREMENT CARD","7.40","CORPORATE STRATEGY - BOROUGH ELECTIONS","STATIONERY","G620","ELECTIONS STATIONERY","SANDRA ARCHER","STATIONERY/OFFICE SUPPLIES"
"http://statistics.data.gov.uk/id/local-authority/43UM","WOKING BOROUGH COUNCIL","09/04/2021","09/04/2021","GPC/00014332","WWW.BANNERUK.COM","PROCUREMENT CARD","8.85","CORPORATE STRATEGY - BOROUGH ELECTIONS","STATIONERY","G620","ELECTIONS STATIONERY","SANDRA ARCHER","STATIONERY/OFFICE SUPPLIES"
"http://statistics.data.gov.uk/id/local-authority/43UM","WOKING BOROUGH COUNCIL","09/04/2021","09/04/2021","GPC/00014332","WWW.BANNERUK.COM","PROCUREMENT CARD","7.40","CORPORATE STRATEGY - COUNTY ELECTIONS","STATIONERY","G620","ELECTIONS STATIONERY","SANDRA ARCHER","STATIONERY/OFFICE SUPPLIES"
"http://statistics.data.gov.uk/id/local-authority/43UM","WOKING BOROUGH COUNCIL","09/04/2021","09/04/2021","GPC/00014332","WWW.BANNERUK.COM","PROCUREMENT CARD","8.85","CORPORATE STRATEGY - COUNTY ELECTIONS","STATIONERY","G620","ELECTIONS STATIONERY","SANDRA ARCHER","STATIONERY/OFFICE SUPPLIES"
"http://statistics.data.gov.uk/id/local-authority/43UM","WOKING BOROUGH COUNCIL","09/04/2021","09/04/2021","GPC/00014332","WWW.BANNERUK.COM","PROCUREMENT CARD","7.40","CORPORATE STRATEGY - POLICE & CRIME COMMISSIONER","STATIONERY","G620","ELECTIONS STATIONERY","SANDRA ARCHER","STATIONERY/OFFICE SUPPLIES"
"http://statistics.data.gov.uk/id/local-authority/43UM","WOKING BOROUGH COUNCIL","09/04/2021","09/04/2021","GPC/00014332","WWW.BANNERUK.COM","PROCUREMENT CARD","8.86","CORPORATE STRATEGY - POLICE & CRIME COMMISSIONER","STATIONERY","G620","ELECTIONS STATIONERY","SANDRA ARCHER","STATIONERY/OFFICE SUPPLIES"
"http://statistics.data.gov.uk/id/local-authority/43UM","WOKING BOROUGH COUNCIL","09/04/2021","09/04/2021","GPC/00014324","WWW.SHAWS.CO.UK","PROCUREMENT CARD","344.00","CORPORATE STRATEGY - LEGAL","STATIONERY","G620","STATIONERY ","JOANNE MCINTOSH","MISC PUBLISHING AND PRINTING"
"http://statistics.data.gov.uk/id/local-authority/43UM","WOKING BOROUGH COUNCIL","09/04/2021","09/04/2021","GPC/00014337","ZOOM.US 888-799-9666","PROCUREMENT CARD","766.64","INFORMATION TECHNOLOGY - I.T.S. ICT","HOSTED SYSTEMS","G198","5 ZOOM LICENCES","ADELE DEVON","PHONE SERV/EQUIP UTILITY"
"http://statistics.data.gov.uk/id/local-authority/43UM","WOKING BOROUGH COUNCIL","11/04/2021","11/04/2021","GPC/00014329","AMAZON.CO.UK","PROCUREMENT CARD","35.37","CORPORATE STRATEGY - BOROUGH ELECTIONS","EQUIPMENT","G100","EXTENSION LEADS FOR ELECTION","IOANNA KOUTSIONI","OTHER DIRECT MARKETERS"
"http://statistics.data.gov.uk/id/local-authority/43UM","WOKING BOROUGH COUNCIL","11/04/2021","11/04/2021","GPC/00014329","AMAZON.CO.UK","PROCUREMENT CARD","42.44","CORPORATE STRATEGY - COUNTY ELECTIONS","EQUIPMENT","G100","EXTENSION LEADS FOR ELECTION","IOANNA KOUTSIONI","OTHER DIRECT MARKETERS"
"http://statistics.data.gov.uk/id/local-authority/43UM","WOKING BOROUGH COUNCIL","11/04/2021","11/04/2021","GPC/00014329","AMAZON.CO.UK","PROCUREMENT CARD","42.45","CORPORATE STRATEGY - POLICE & CRIME COMMISSIONER","EQUIPMENT","G100","EXTENSION LEADS FOR ELECTION","IOANNA KOUTSIONI","OTHER DIRECT MARKETERS"
"http://statistics.data.gov.uk/id/local-authority/43UM","WOKING BOROUGH COUNCIL","11/04/2021","11/04/2021","GPC/00014323","AMAZON.CO.UK","PROCUREMENT CARD","8.63","ASSET MANAGEMENT - CIVIC OFFICES","R&M BUILDINGS - CONTRACTORS","D100","PUSH BAR EXIT ","MR D JONES","MISC SPECIALITY RETAIL"
"http://statistics.data.gov.uk/id/local-authority/43UM","WOKING BOROUGH COUNCIL","11/04/2021","11/04/2021","GPC/00014336","AMZNMKTPLACE","PROCUREMENT CARD","93.48","INFORMATION TECHNOLOGY - ICT GENERAL REPLACEMENT 2021/22","ADDITIONAL EQUIPMENT","Q020","6 X USB C TO DVI & 6 X HDMI TO DVI CABLES","MR G S SANDHU","MISC SPECIALITY RETAIL"
"http://statistics.data.gov.uk/id/local-authority/43UM","WOKING BOROUGH COUNCIL","11/04/2021","11/04/2021","GPC/00014338","BOOKERECOMM","PROCUREMENT CARD","12.98","INDEPENDENT LIVING SERVICES - BROCKHILL EXTRA CARE","EQUIPMENT","G100","GROCERIES FOR CENTRES","REBECCA STEVENS","CATERERS"
"http://statistics.data.gov.uk/id/local-authority/43UM","WOKING BOROUGH COUNCIL","11/04/2021","11/04/2021","GPC/00014338","BOOKERECOMM","PROCUREMENT CARD","56.18","INDEPENDENT LIVING SERVICES - MEALS SERVICE - BROCKHILL","PROVISIONS","G410","GROCERIES FOR CENTRES","REBECCA STEVENS","CATERERS"
"http://statistics.data.gov.uk/id/local-authority/43UM","WOKING BOROUGH COUNCIL","11/04/2021","11/04/2021","GPC/00014338","BOOKERECOMM","PROCUREMENT CARD","162.23","INDEPENDENT LIVING SERVICES - MEALS SERVICE - BROCKHILL","PROVISIONS","G410","GROCERIES FOR CENTRES","REBECCA STEVENS","CATERERS"
"http://statistics.data.gov.uk/id/local-authority/43UM","WOKING BOROUGH COUNCIL","12/04/2021","12/04/2021","GPC/00014345","ACCA","PROCUREMENT CARD","164.00","CORPORATE MANAGEMENT GROUP - STAFF TRAINING/GENERAL COSTS","TRAINING - CORPORATE","A910","ACCA EXAM ENTRY","LORRAINE ELFORD","CIVIC/SOCIAL/FRATERNAL ASSC"
"http://statistics.data.gov.uk/id/local-authority/43UM","WOKING BOROUGH COUNCIL","12/04/2021","12/04/2021","GPC/00014339","ARGOS LTD","PROCUREMENT CARD","41.62","ASSET MANAGEMENT - CIVIC OFFICES","VENDING SERVICES","G420","KETTLES","MRS F M WALTHER","DISCOUNT STORES"
"http://statistics.data.gov.uk/id/local-authority/43UM","WOKING BOROUGH COUNCIL","12/04/2021","12/04/2021","GPC/00014342","BOOKERECOMM","PROCUREMENT CARD","-15.98","INDEPENDENT LIVING SERVICES - MEALS SERVICE - BROCKHILL","PROVISIONS","G410","REFUND FOR MUFFINS","REBECCA STEVENS","CATERERS"
"http://statistics.data.gov.uk/id/local-authority/43UM","WOKING BOROUGH COUNCIL","12/04/2021","12/04/2021","GPC/00014340","CO-OP GROUP 500987","PROCUREMENT CARD","13.50","HOUSING SERVICES - HOUSING OPTIONS","EQUIPMENT","G100","EMERGENCY FOOD FOR A DIABETIC ","JANET COURTNEY","GROCERY STORES"
"http://statistics.data.gov.uk/id/local-authority/43UM","WOKING BOROUGH COUNCIL","12/04/2021","12/04/2021","GPC/00014346","PAYPAL","PROCUREMENT CARD","567.00","INFORMATION TECHNOLOGY - I.T.S. ICT","PC & SERVER SYSTEMS SOFTWARE","G193","EXCHANGE SSL CERTIFICATES","ANDREW GRESHAM","PHONE SERV/EQUIP NON-UTIL"
"http://statistics.data.gov.uk/id/local-authority/43UM","WOKING BOROUGH COUNCIL","12/04/2021","12/04/2021","GPC/00014365","PRIMARK","PROCUREMENT CARD","45.00","INDEPENDENT LIVING SERVICES - PPPF PERSONALISATION & PREV FD","MAIN CONTRACTOR","Q200","SHELTERED SCHEME COMMON ROOM REFRESH","HANNAH ANDREWS","FAMILY CLOTHING STORES"
"http://statistics.data.gov.uk/id/local-authority/43UM","WOKING BOROUGH COUNCIL","12/04/2021","12/04/2021","GPC/00014341","SAINSBURYS S/MKTS","PROCUREMENT CARD","3.00","INDEPENDENT LIVING SERVICES - MEALS MANAGEMENT","NEW EQUIPMENT","G105","POSTAGE BUBBLE PACKS","ASHLEY BOYLE","GROCERY STORES"
"http://statistics.data.gov.uk/id/local-authority/43UM","WOKING BOROUGH COUNCIL","12/04/2021","12/04/2021","GPC/00014343","SCREWFIX DIRECT","PROCUREMENT CARD","3.99","CORPORATE STRATEGY - COVID -19 PANDEMIC","MAIN CONTRACTOR","Q200","EXT LIGHTS W PK PAVN","RICK HAZLEWOOD","LUMBER/BUILD SUPPLY STORES"
"http://statistics.data.gov.uk/id/local-authority/43UM","WOKING BOROUGH COUNCIL","12/04/2021","12/04/2021","GPC/00014352","SURREY CC CARD PAY","PROCUREMENT CARD","9.17","NEIGHBOURHOOD SERVICES - NAT ASST ACT BURIALS","H BRAKE","S980","DEATH CERTIFICATE FROM SCC ","TARA STEVENSON","COMPUTER NETWORK/INFORMATION SERVICES"
"http://statistics.data.gov.uk/id/local-authority/43UM","WOKING BOROUGH COUNCIL","12/04/2021","12/04/2021","GPC/00014357","TESCO PFS 4046","PROCUREMENT CARD","71.62","HOUSING SERVICES - HOME IMPS & BEN AGENCY","TRAVEL EXPENSES-OFFICERS","F600","FUEL FOR HANDYPERSON VAN","ROBERT ELDRIDGE","SERVICE STATIONS"
"http://statistics.data.gov.uk/id/local-authority/43UM","WOKING BOROUGH COUNCIL","12/04/2021","12/04/2021","GPC/00014353","WWW.KAPLANFOULKSLYNCH.","PROCUREMENT CARD","40.83","CORPORATE MANAGEMENT GROUP - STAFF TRAINING/GENERAL COSTS","TRAINING - CORPORATE","A910","ACCA MODULE","LORRAINE ELFORD","SCHOOLS - DEFAULT"
"http://statistics.data.gov.uk/id/local-authority/43UM","WOKING BOROUGH COUNCIL","12/04/2021","12/04/2021","GPC/00014353","WWW.KAPLANFOULKSLYNCH.","PROCUREMENT CARD","150.00","CORPORATE MANAGEMENT GROUP - STAFF TRAINING/GENERAL COSTS","TRAINING - CORPORATE","A910","ACCA MODULE","LORRAINE ELFORD","SCHOOLS - DEFAULT"
"http://statistics.data.gov.uk/id/local-authority/43UM","WOKING BOROUGH COUNCIL","12/04/2021","12/04/2021","GPC/00014492","WWW.KAPLANFOULKSLYNCH.","PROCUREMENT CARD","-69.00","CORPORATE MANAGEMENT GROUP - STAFF TRAINING/GENERAL COSTS","TRAINING - CORPORATE","A910","ACCA REFUND ON DUPLICATES","LORRAINE ELFORD","SCHOOLS - DEFAULT"
"http://statistics.data.gov.uk/id/local-authority/43UM","WOKING BOROUGH COUNCIL","12/04/2021","12/04/2021","GPC/00014344","WWW.RRPACKAGING.CO.UK","PROCUREMENT CARD","210.70","INDEPENDENT LIVING SERVICES - MEALS SERVICE - BROCKHILL","PROVISIONS","G410","SANDWICH BAGS","REBECCA STEVENS","MISC GEN MERCHANDISE - DEF"
"http://statistics.data.gov.uk/id/local-authority/43UM","WOKING BOROUGH COUNCIL","13/04/2021","13/04/2021","GPC/00014368","AMAZON.CO.UK","PROCUREMENT CARD","24.24","HOUSING SERVICES - HOME IMPS & BEN AGENCY","HANDYPERSON MATERIALS","G201","HANDYPERSON MATERIALS","IAN DEANE","MISC SPECIALITY RETAIL"
"http://statistics.data.gov.uk/id/local-authority/43UM","WOKING BOROUGH COUNCIL","13/04/2021","13/04/2021","GPC/00014348","AMAZON.CO.UK","PROCUREMENT CARD","3.33","CORPORATE MANAGEMENT GROUP - STAFF TRAINING/GENERAL COSTS","HEALTH CARE","A780","SUPERGLUE","LISA HARRINGTON","OTHER DIRECT MARKETERS"
"http://statistics.data.gov.uk/id/local-authority/43UM","WOKING BOROUGH COUNCIL","13/04/2021","13/04/2021","GPC/00014351","AMZ*GETCHWORLD","PROCUREMENT CARD","-32.46","ASSET MANAGEMENT - ASSET MANAGEMENT GENERAL EXPEN","GENERAL SAFETY","G196","CREDIT SAFETY BOOTS C NORTON","MR C NORTON","MISC SPECIALITY RETAIL"
"http://statistics.data.gov.uk/id/local-authority/43UM","WOKING BOROUGH COUNCIL","13/04/2021","13/04/2021","GPC/00014358","AMZNMKTPLACE","PROCUREMENT CARD","2.50","FINANCIAL SERVICES - BROCKHILL SOCIAL FUND","MISCELLANEOUS EXPENSES","X827","DEMENTIA ACTION WEEK CAKE TOPPERS","RIANNA MEME","MISC SPECIALITY RETAIL"
"http://statistics.data.gov.uk/id/local-authority/43UM","WOKING BOROUGH COUNCIL","13/04/2021","13/04/2021","GPC/00014359","AMZNMKTPLACE","PROCUREMENT CARD","70.82","ASSET MANAGEMENT - BUILDING SERVICES","PROCUREMENT CARD","H990","FRIDGE","MRS F M WALTHER","MISC SPECIALITY RETAIL"
"http://statistics.data.gov.uk/id/local-authority/43UM","WOKING BOROUGH COUNCIL","13/04/2021","13/04/2021","GPC/00014347","AMZNMKTPLACE","PROCUREMENT CARD","14.15","HOUSING SERVICES - HOME IMPS & BEN AGENCY","HANDYPERSON MATERIALS","G201","GRAPH PAPER FOR HOMELINK ","MYCROFT HUNTER","MISC SPECIALITY RETAIL"
"http://statistics.data.gov.uk/id/local-authority/43UM","WOKING BOROUGH COUNCIL","13/04/2021","13/04/2021","GPC/00014361","AMZNMKTPLACE","PROCUREMENT CARD","11.14","INDEPENDENT LIVING SERVICES - MEALS SERVICE - BROCKHILL","PROVISIONS","G410","FRUIT POTS","REBECCA STEVENS","MISC SPECIALITY RETAIL"
"http://statistics.data.gov.uk/id/local-authority/43UM","WOKING BOROUGH COUNCIL","13/04/2021","13/04/2021","GPC/00014355","AMZNMKTPLACE AMAZON.CO.UK","PROCUREMENT CARD","1.50","FINANCIAL SERVICES - BROCKHILL SOCIAL FUND","MISCELLANEOUS EXPENSES","X827","ST GEORGES DAY CAKE TOPPERS","RIANNA MEME","MISC SPECIALITY RETAIL"
"http://statistics.data.gov.uk/id/local-authority/43UM","WOKING BOROUGH COUNCIL","13/04/2021","13/04/2021","GPC/00014364","AMZNMKTPLACE AMAZON.CO.UK","PROCUREMENT CARD","114.96","INDEPENDENT LIVING SERVICES - YOUTH DEVELOPMENT","GRANTS","H100","PRINTER","RICHARD BUCKENHAM","MISC SPECIALITY RETAIL"
"http://statistics.data.gov.uk/id/local-authority/43UM","WOKING BOROUGH COUNCIL","13/04/2021","13/04/2021","GPC/00014350","CO-OP GROUP FOOD","PROCUREMENT CARD","5.45","INDEPENDENT LIVING SERVICES - HOME SUPPORT SERVICE","EQUIPMENT","G100","EMERGENCY SHOPPING","HANNAH ANDREWS","GROCERY STORES"
"http://statistics.data.gov.uk/id/local-authority/43UM","WOKING BOROUGH COUNCIL","13/04/2021","13/04/2021","GPC/00014354","HOME BARGAINS BYFLEET","PROCUREMENT CARD","6.65","INDEPENDENT LIVING SERVICES - PPPF PERSONALISATION & PREV FD","MAIN CONTRACTOR","Q200","SHELTERED SCHEME COMMON ROOM REFRESH","HANNAH ANDREWS","HARDWARE STORES"
"http://statistics.data.gov.uk/id/local-authority/43UM","WOKING BOROUGH COUNCIL","13/04/2021","13/04/2021","GPC/00014349","MARGNOR FASTENERS","PROCUREMENT CARD","50.07","NEIGHBOURHOOD SERVICES - CAR PARKS ADMIN&OPERATIONAL EX","R&M FIXED PLANT-CONTRACTORS","D300","BOLTS 3G CPK VANDALISM REPAIR","MR D JONES","MISC SPECIALITY RETAIL"
"http://statistics.data.gov.uk/id/local-authority/43UM","WOKING BOROUGH COUNCIL","13/04/2021","13/04/2021","GPC/00014363","RSS KNAPHILL","PROCUREMENT CARD","66.07","HOUSING SERVICES - HOME IMPS & BEN AGENCY","HANDYPERSON MATERIALS","G201","HANDYPERSON MATERIALS","JASON BALCHIN","SERVICE STATIONS"
"http://statistics.data.gov.uk/id/local-authority/43UM","WOKING BOROUGH COUNCIL","13/04/2021","13/04/2021","GPC/00014362","SAINSBURYS PETROL","PROCUREMENT CARD","30.84","INDEPENDENT LIVING SERVICES - MEALS ON WHEELS","PETROL","F200","PETROL MOW","CARMELA STRONG","SERVICE STATIONS"
"http://statistics.data.gov.uk/id/local-authority/43UM","WOKING BOROUGH COUNCIL","13/04/2021","13/04/2021","GPC/00014356","SCREWFIX DIRECT","PROCUREMENT CARD","100.47","HOUSING SERVICES - HOME IMPS & BEN AGENCY","HANDYPERSON MATERIALS","G201","HANDYPERSON MATERIALS","IAN DEANE","LUMBER/BUILD SUPPLY STORES"
"http://statistics.data.gov.uk/id/local-authority/43UM","WOKING BOROUGH COUNCIL","13/04/2021","13/04/2021","GPC/00014360","WWW.NISBETS.COM","PROCUREMENT CARD","32.97","INDEPENDENT LIVING SERVICES - MEALS SERVICE - BROCKHILL","EQUIPMENT","G100","BOWLS FOR BROCKHILL","REBECCA STEVENS","CATALOG MERCHANT"
"http://statistics.data.gov.uk/id/local-authority/43UM","WOKING BOROUGH COUNCIL","06/04/2021","14/04/2021","0000464141/001","ADRIAN LEVANO","40778800","11,847.00","HOUSING SERVICES - PRIVATE SECTOR LEASING SCHEME","LEASE PAYMENTS TO LANDLORD","H787","LEASE PAYMENTS TO LANDLORD","HOUSING SERVICES","FINANCIAL SERVICES"
"http://statistics.data.gov.uk/id/local-authority/43UM","WOKING BOROUGH COUNCIL","01/04/2021","14/04/2021","0000464001/001","ADRIAN WAITE(INDEPEND.CONSULT.SERVS)LTD","40517500","250.00","INDEPENDENT LIVING SERVICES - SHEERWATER SOCIAL SUPPORT","OTHER CONSULTANTS","Q430","OTHER CONSULTANTS","INDEPENDENT LIVING SERVICES","HUMAN RESOURCES"
"http://statistics.data.gov.uk/id/local-authority/43UM","WOKING BOROUGH COUNCIL","14/04/2021","14/04/2021","GPC/00014369","AMZ","PROCUREMENT CARD","-35.37","CORPORATE STRATEGY - BOROUGH ELECTIONS","EQUIPMENT","G100","REFUND FOR EXTENSION LEADS ELECTION","IOANNA KOUTSIONI","OTHER DIRECT MARKETERS"
"http://statistics.data.gov.uk/id/local-authority/43UM","WOKING BOROUGH COUNCIL","14/04/2021","14/04/2021","GPC/00014369","AMZ","PROCUREMENT CARD","-42.44","CORPORATE STRATEGY - COUNTY ELECTIONS","EQUIPMENT","G100","REFUND FOR EXTENSION LEADS ELECTION","IOANNA KOUTSIONI","OTHER DIRECT MARKETERS"
"http://statistics.data.gov.uk/id/local-authority/43UM","WOKING BOROUGH COUNCIL","14/04/2021","14/04/2021","GPC/00014369","AMZ","PROCUREMENT CARD","-42.45","CORPORATE STRATEGY - POLICE & CRIME COMMISSIONER","EQUIPMENT","G100","REFUND FOR EXTENSION LEADS ELECTION","IOANNA KOUTSIONI","OTHER DIRECT MARKETERS"
"http://statistics.data.gov.uk/id/local-authority/43UM","WOKING BOROUGH COUNCIL","14/04/2021","14/04/2021","GPC/00014371","AMZNMKTPLACE","PROCUREMENT CARD","15.81","FINANCIAL SERVICES - BROCKHILL SOCIAL FUND","MISCELLANEOUS EXPENSES","X827","ST GEORGES DAY DECORATIONS","RIANNA MEME","MISC SPECIALITY RETAIL"
"http://statistics.data.gov.uk/id/local-authority/43UM","WOKING BOROUGH COUNCIL","14/04/2021","14/04/2021","GPC/00014370","AMZNMKTPLACE AMAZON.CO.UK","PROCUREMENT CARD","3.57","INDEPENDENT LIVING SERVICES - MOORCROFT","R&M BUILDINGS - CONTRACTORS","D100","DOOR LOCK","RICHARD BUCKENHAM","MISC SPECIALITY RETAIL"
"http://statistics.data.gov.uk/id/local-authority/43UM","WOKING BOROUGH COUNCIL","05/04/2021","14/04/2021","0000464000/001","ANA-MARIA ION","40950500","10.00","CORPORATE STRATEGY - WAVS","INTERPRETATION & TRANSLATION","H636","INTERPRETATION & TRANSLATION","CORPORATE STRATEGY","FINANCIAL SERVICES"
"http://statistics.data.gov.uk/id/local-authority/43UM","WOKING BOROUGH COUNCIL","05/04/2021","14/04/2021","0000464032/001","ANDREW HILL","01986900","848.00","PLANNING SERVICES - TOWN PLANNING GENERAL","CONSULTANTS","H670","CONSULTANTS","PLANNING SERVICES","CONSULTANCY"
"http://statistics.data.gov.uk/id/local-authority/43UM","WOKING BOROUGH COUNCIL","04/03/2021","14/04/2021","0000464109/001","ARDMORE ADVERTISING & MARKETING","40677900","2,893.41","CORPORATE STRATEGY - WE ARE WOKING","MAIN CONTRACTOR","Q200","MAIN CONTRACTOR","CORPORATE STRATEGY","FACILITIES & MANAGEMENT SERVICES"
"http://statistics.data.gov.uk/id/local-authority/43UM","WOKING BOROUGH COUNCIL","04/03/2021","14/04/2021","0000464110/001","ARDMORE ADVERTISING & MARKETING","40677900","8,951.90","CORPORATE STRATEGY - WE ARE WOKING","MAIN CONTRACTOR","Q200","MAIN CONTRACTOR","CORPORATE STRATEGY","FACILITIES & MANAGEMENT SERVICES"
"http://statistics.data.gov.uk/id/local-authority/43UM","WOKING BOROUGH COUNCIL","04/03/2021","14/04/2021","0000464111/001","ARDMORE ADVERTISING & MARKETING","40677900","2,762.00","CORPORATE STRATEGY - WE ARE WOKING","MAIN CONTRACTOR","Q200","MAIN CONTRACTOR","CORPORATE STRATEGY","FACILITIES & MANAGEMENT SERVICES"
"http://statistics.data.gov.uk/id/local-authority/43UM","WOKING BOROUGH COUNCIL","04/03/2021","14/04/2021","0000464112/001","ARDMORE ADVERTISING & MARKETING","40677900","1,792.05","CORPORATE STRATEGY - WE ARE WOKING","MAIN CONTRACTOR","Q200","MAIN CONTRACTOR","CORPORATE STRATEGY","FACILITIES & MANAGEMENT SERVICES"
"http://statistics.data.gov.uk/id/local-authority/43UM","WOKING BOROUGH COUNCIL","04/03/2021","14/04/2021","0000464113/001","ARDMORE ADVERTISING & MARKETING","40677900","3,915.00","CORPORATE STRATEGY - WE ARE WOKING","MAIN CONTRACTOR","Q200","MAIN CONTRACTOR","CORPORATE STRATEGY","FACILITIES & MANAGEMENT SERVICES"
"http://statistics.data.gov.uk/id/local-authority/43UM","WOKING BOROUGH COUNCIL","05/03/2021","14/04/2021","0000464114/001","ARDMORE ADVERTISING & MARKETING","40677900","26,200.50","CORPORATE STRATEGY - WE ARE WOKING","MAIN CONTRACTOR","Q200","MAIN CONTRACTOR","CORPORATE STRATEGY","FACILITIES & MANAGEMENT SERVICES"
"http://statistics.data.gov.uk/id/local-authority/43UM","WOKING BOROUGH COUNCIL","21/10/2020","14/04/2021","0000459462/001","BASELINE TECHNOLOGIES","40883500","-266.00","INFORMATION TECHNOLOGY - ICT GENERAL REPLACEMENT 2020/21","REPLACEMENT EQUIPMENT","Q010","REPLACEMENT EQUIPMENT","INFORMATION TECHNOLOGY","INFORMATION COMMUNICATION TECHNOLOGY"
"http://statistics.data.gov.uk/id/local-authority/43UM","WOKING BOROUGH COUNCIL","03/03/2021","14/04/2021","0000464010/001","BASELINE TECHNOLOGIES","40883500","490.00","INFORMATION TECHNOLOGY - ICT GENERAL REPLACEMENT 2020/21","ADDITIONAL EQUIPMENT","Q020","ADDITIONAL EQUIPMENT","INFORMATION TECHNOLOGY","INFORMATION COMMUNICATION TECHNOLOGY"
"http://statistics.data.gov.uk/id/local-authority/43UM","WOKING BOROUGH COUNCIL","03/03/2021","14/04/2021","0000464010/002","BASELINE TECHNOLOGIES","40883500","10.00","INFORMATION TECHNOLOGY - ICT GENERAL REPLACEMENT 2020/21","ADDITIONAL EQUIPMENT","Q020","ADDITIONAL EQUIPMENT","INFORMATION TECHNOLOGY","INFORMATION COMMUNICATION TECHNOLOGY"
"http://statistics.data.gov.uk/id/local-authority/43UM","WOKING BOROUGH COUNCIL","01/04/2021","14/04/2021","0000464011/001","BASELINE TECHNOLOGIES","40883500","245.00","INFORMATION TECHNOLOGY - ICT GENERAL REPLACEMENT 2020/21","ADDITIONAL EQUIPMENT","Q020","ADDITIONAL EQUIPMENT","INFORMATION TECHNOLOGY","INFORMATION COMMUNICATION TECHNOLOGY"
"http://statistics.data.gov.uk/id/local-authority/43UM","WOKING BOROUGH COUNCIL","04/04/2021","14/04/2021","0000464036/001","BRISTOW & SUTOR","40257600","40.55","REVENUES AND BENEFITS - RENT ALLOWANCES","DEBT COLLECTION AGENCY COMMISS","H910","DEBT COLLECTION AGENCY COMMISS","REVENUES AND BENEFITS","FINANCIAL SERVICES"
"http://statistics.data.gov.uk/id/local-authority/43UM","WOKING BOROUGH COUNCIL","26/03/2021","14/04/2021","0000463835/001","BRITISH GAS BUSINESS","00065700","44.49","ASSET MANAGEMENT - PLOT 5A MON WAY WEST","GAS","D420","GAS","ASSET MANAGEMENT","UTILITIES"
"http://statistics.data.gov.uk/id/local-authority/43UM","WOKING BOROUGH COUNCIL","25/03/2021","14/04/2021","0000464135/001","BROMSGROVE & REDDITCH TROPHIES LTD","40951100","227.37","CORPORATE STRATEGY - CIVIC EXPENSES","GIFTS","H655","GIFTS","CORPORATE STRATEGY","FINANCIAL SERVICES"
"http://statistics.data.gov.uk/id/local-authority/43UM","WOKING BOROUGH COUNCIL","31/03/2021","14/04/2021","0000464018/001","BRUTON KNOWLES","00413900","2,375.00","ASSET MANAGEMENT - PROPERTY SERVICES","CONSULTANTS","H670","CONSULTANTS","ASSET MANAGEMENT","CONSULTANCY"
"http://statistics.data.gov.uk/id/local-authority/43UM","WOKING BOROUGH COUNCIL","07/04/2021","14/04/2021","0000463966/001","BT BUSINESS DIRECT","01898800","1,800.00","INFORMATION TECHNOLOGY - ICT GENERAL REPLACEMENT 2021/22","ADDITIONAL EQUIPMENT","Q020","ADDITIONAL EQUIPMENT","INFORMATION TECHNOLOGY","INFORMATION COMMUNICATION TECHNOLOGY"
"http://statistics.data.gov.uk/id/local-authority/43UM","WOKING BOROUGH COUNCIL","07/04/2021","14/04/2021","0000463968/001","BT BUSINESS DIRECT","01898800","910.00","INFORMATION TECHNOLOGY - ICT GENERAL REPLACEMENT 2021/22","ADDITIONAL EQUIPMENT","Q020","ADDITIONAL EQUIPMENT","INFORMATION TECHNOLOGY","INFORMATION COMMUNICATION TECHNOLOGY"
"http://statistics.data.gov.uk/id/local-authority/43UM","WOKING BOROUGH COUNCIL","25/03/2021","14/04/2021","0000463881/001","BT GLOBAL SERVICES","01298100","1,039.75","INFORMATION TECHNOLOGY - COMMUNICATIONS","NETWORK CIRCUITS","G800","NETWORK CIRCUITS","INFORMATION TECHNOLOGY","INFORMATION COMMUNICATION TECHNOLOGY"
"http://statistics.data.gov.uk/id/local-authority/43UM","WOKING BOROUGH COUNCIL","14/04/2021","14/04/2021","GPC/00014367","BURNS OF WOKING","PROCUREMENT CARD","25.97","HOUSING SERVICES - HOME IMPS & BEN AGENCY","HANDYPERSON MATERIALS","G201","HANDYPERSON MATERIALS","IAN DEANE","PLUMBING/HEATING EQUIPMENT"
"http://statistics.data.gov.uk/id/local-authority/43UM","WOKING BOROUGH COUNCIL","05/04/2021","14/04/2021","0000464116/001","CASTLE WATER LIMITED","40650200","749.67","ASSET MANAGEMENT - 19A HIGH STREET","WATER","D700","WATER","ASSET MANAGEMENT","UTILITIES"
"http://statistics.data.gov.uk/id/local-authority/43UM","WOKING BOROUGH COUNCIL","08/04/2021","14/04/2021","0000464123/001","CASTLE WATER LIMITED","40650200","9.76","ASSET MANAGEMENT - TOWN CENTRE LEISURE","WATER","D700","WATER","ASSET MANAGEMENT","UTILITIES"
"http://statistics.data.gov.uk/id/local-authority/43UM","WOKING BOROUGH COUNCIL","07/04/2021","14/04/2021","0000464125/001","CASTLE WATER LIMITED","40650200","97.16","ASSET MANAGEMENT - GOLDWATER LODGE","WATER","D700","WATER","ASSET MANAGEMENT","UTILITIES"
"http://statistics.data.gov.uk/id/local-authority/43UM","WOKING BOROUGH COUNCIL","06/04/2021","14/04/2021","0000464122/001","CASTLE WATER LIMITED","40650200","73.39","ASSET MANAGEMENT - PEACOCKS - GLOCS CHAMB","WATER","D700","WATER","ASSET MANAGEMENT","UTILITIES"
"http://statistics.data.gov.uk/id/local-authority/43UM","WOKING BOROUGH COUNCIL","03/03/2021","14/04/2021","0000464157/001","CASTLE WATER LIMITED","40650200","66.89","ASSET MANAGEMENT - PEACOCKS - GLOCS CHAMB","WATER","D700","WATER","ASSET MANAGEMENT","UTILITIES"
"http://statistics.data.gov.uk/id/local-authority/43UM","WOKING BOROUGH COUNCIL","05/04/2021","14/04/2021","0000464118/001","CASTLE WATER LIMITED","40650200","1,097.09","ASSET MANAGEMENT - KINGFIELD ROAD COMMUNITY BLDG","WATER","D700","WATER","ASSET MANAGEMENT","UTILITIES"
"http://statistics.data.gov.uk/id/local-authority/43UM","WOKING BOROUGH COUNCIL","05/04/2021","14/04/2021","0000464119/001","CASTLE WATER LIMITED","40650200","110.90","INDEPENDENT LIVING SERVICES - ST MARY'S DAY CENTRE","WATER","D700","WATER","INDEPENDENT LIVING SERVICES","UTILITIES"
"http://statistics.data.gov.uk/id/local-authority/43UM","WOKING BOROUGH COUNCIL","05/04/2021","14/04/2021","0000464120/001","CASTLE WATER LIMITED","40650200","802.99","HOUSING SERVICES - LANDLORDS EXPENSES","WATER","D700","WATER","HOUSING SERVICES","UTILITIES"
"http://statistics.data.gov.uk/id/local-authority/43UM","WOKING BOROUGH COUNCIL","08/04/2021","14/04/2021","0000464126/001","CASTLE WATER LIMITED","40650200","182.15","HOUSING SERVICES - LANDLORDS EXPENSES","WATER","D700","WATER","HOUSING SERVICES","UTILITIES"
"http://statistics.data.gov.uk/id/local-authority/43UM","WOKING BOROUGH COUNCIL","07/04/2021","14/04/2021","0000463987/001","CHASE INVENTORY SERVICES LIMITED","40239800","85.00","HOUSING SERVICES - TENANCY SUPPORT SCHEME","PROPERTY INSPECTIONS","H772","PROPERTY INSPECTIONS","HOUSING SERVICES","CONSULTANCY"
"http://statistics.data.gov.uk/id/local-authority/43UM","WOKING BOROUGH COUNCIL","03/04/2021","14/04/2021","0000463930/001","CHEESMAN BROTHERS LTD","01050500","28.31","INDEPENDENT LIVING SERVICES - MEALS SERVICE -THE VYNE","PROVISIONS","G410","PROVISIONS","INDEPENDENT LIVING SERVICES","CATERING"
"http://statistics.data.gov.uk/id/local-authority/43UM","WOKING BOROUGH COUNCIL","30/03/2021","14/04/2021","0000463831/001","COFFEE 2U COMPANY LTD T/A THE ECO COFFEE","40906400","36.00","INDEPENDENT LIVING SERVICES - MEALS SERVICE - BROCKHILL","PROVISIONS","G410","PROVISIONS","INDEPENDENT LIVING SERVICES","FACILITIES & MANAGEMENT SERVICES"
"http://statistics.data.gov.uk/id/local-authority/43UM","WOKING BOROUGH COUNCIL","01/04/2021","14/04/2021","0000463854/001","COFFEE 2U COMPANY LTD T/A THE ECO COFFEE","40906400","76.74","INDEPENDENT LIVING SERVICES - MEALS SERVICE - BROCKHILL","PROVISIONS","G410","PROVISIONS","INDEPENDENT LIVING SERVICES","FACILITIES & MANAGEMENT SERVICES"
"http://statistics.data.gov.uk/id/local-authority/43UM","WOKING BOROUGH COUNCIL","01/04/2021","14/04/2021","0000463857/001","COFFEE 2U COMPANY LTD T/A THE ECO COFFEE","40906400","139.58","INDEPENDENT LIVING SERVICES - MEALS SERVICE - ST MARYS","NEW EQUIPMENT","G105","NEW EQUIPMENT","INDEPENDENT LIVING SERVICES","FACILITIES & MANAGEMENT SERVICES"
"http://statistics.data.gov.uk/id/local-authority/43UM","WOKING BOROUGH COUNCIL","30/03/2021","14/04/2021","0000463829/001","COFFEE 2U COMPANY LTD T/A THE ECO COFFEE","40906400","453.79","INDEPENDENT LIVING SERVICES - MEALS SERVICE - ST MARYS","PROVISIONS","G410","PROVISIONS","INDEPENDENT LIVING SERVICES","FACILITIES & MANAGEMENT SERVICES"
"http://statistics.data.gov.uk/id/local-authority/43UM","WOKING BOROUGH COUNCIL","01/04/2021","14/04/2021","0000463861/001","COFFEE 2U COMPANY LTD T/A THE ECO COFFEE","40906400","115.74","INDEPENDENT LIVING SERVICES - MEALS SERVICE -THE VYNE","NEW EQUIPMENT","G105","NEW EQUIPMENT","INDEPENDENT LIVING SERVICES","FACILITIES & MANAGEMENT SERVICES"
"http://statistics.data.gov.uk/id/local-authority/43UM","WOKING BOROUGH COUNCIL","30/03/2021","14/04/2021","0000463830/001","COFFEE 2U COMPANY LTD T/A THE ECO COFFEE","40906400","79.00","INDEPENDENT LIVING SERVICES - MEALS SERVICE -THE VYNE","PROVISIONS","G410","PROVISIONS","INDEPENDENT LIVING SERVICES","FACILITIES & MANAGEMENT SERVICES"
"http://statistics.data.gov.uk/id/local-authority/43UM","WOKING BOROUGH COUNCIL","01/04/2021","14/04/2021","0000463859/001","COFFEE 2U COMPANY LTD T/A THE ECO COFFEE","40906400","115.74","INDEPENDENT LIVING SERVICES - MEALS SERVICE - PARKVIEW","NEW EQUIPMENT","G105","NEW EQUIPMENT","INDEPENDENT LIVING SERVICES","FACILITIES & MANAGEMENT SERVICES"
"http://statistics.data.gov.uk/id/local-authority/43UM","WOKING BOROUGH COUNCIL","31/03/2021","14/04/2021","0000463823/001","COLYER REPROPOINT","40603200","709.35","CORPORATE STRATEGY - CORPORATE STRATEGY GENERAL EXP","PRINTING EXTERNAL","G600","PRINTING EXTERNAL","CORPORATE STRATEGY","STATIONERY"
"http://statistics.data.gov.uk/id/local-authority/43UM","WOKING BOROUGH COUNCIL","23/02/2021","14/04/2021","0000463982/001","COLYER REPROPOINT","40603200","115.00","CORPORATE STRATEGY - CORPORATE STRATEGY GENERAL EXP","PRINTING EXTERNAL","G600","PRINTING EXTERNAL","CORPORATE STRATEGY","STATIONERY"
"http://statistics.data.gov.uk/id/local-authority/43UM","WOKING BOROUGH COUNCIL","14/04/2021","14/04/2021","GPC/00014373","CO-OP GROUP 310393","PROCUREMENT CARD","8.60","INDEPENDENT LIVING SERVICES - MEALS SERVICE - ST MARYS","PROVISIONS","G410","CAFE MILK","MR JONNY MOLES","GROCERY STORES"
"http://statistics.data.gov.uk/id/local-authority/43UM","WOKING BOROUGH COUNCIL","01/04/2021","14/04/2021","0000464028/001","CROSSROADS CARE","40825100","2,710.00","CORPORATE STRATEGY - GRANTS TO ORGANISATION","GRANTS","H100","GRANTS","CORPORATE STRATEGY","FINANCIAL SERVICES"
"http://statistics.data.gov.uk/id/local-authority/43UM","WOKING BOROUGH COUNCIL","01/04/2021","14/04/2021","0000464105/001","DAISY CORPORATE SERVICES TRADING LTD","40680200","723.15","INFORMATION TECHNOLOGY - COMMUNICATIONS","NETWORK CIRCUITS","G800","NETWORK CIRCUITS","INFORMATION TECHNOLOGY","INFORMATION COMMUNICATION TECHNOLOGY"
"http://statistics.data.gov.uk/id/local-authority/43UM","WOKING BOROUGH COUNCIL","19/03/2021","14/04/2021","0000463750/001","DAVITT JONES BOULD LTD - SOLICITORS","01490800","5,239.00","CORPORATE STRATEGY - LEGAL","AD HOC WORK","H781","AD HOC WORK","CORPORATE STRATEGY","LEGAL SERVICES"
"http://statistics.data.gov.uk/id/local-authority/43UM","WOKING BOROUGH COUNCIL","19/03/2021","14/04/2021","0000463751/001","DAVITT JONES BOULD LTD - SOLICITORS","01490800","62.80","CORPORATE STRATEGY - LEGAL","AD HOC WORK","H781","AD HOC WORK","CORPORATE STRATEGY","LEGAL SERVICES"
"http://statistics.data.gov.uk/id/local-authority/43UM","WOKING BOROUGH COUNCIL","19/03/2021","14/04/2021","0000463759/001","DAVITT JONES BOULD LTD - SOLICITORS","01490800","959.70","CORPORATE STRATEGY - LEGAL","AD HOC WORK","H781","AD HOC WORK","CORPORATE STRATEGY","LEGAL SERVICES"
"http://statistics.data.gov.uk/id/local-authority/43UM","WOKING BOROUGH COUNCIL","19/03/2021","14/04/2021","0000463760/001","DAVITT JONES BOULD LTD - SOLICITORS","01490800","67.60","CORPORATE STRATEGY - LEGAL","AD HOC WORK","H781","AD HOC WORK","CORPORATE STRATEGY","LEGAL SERVICES"
"http://statistics.data.gov.uk/id/local-authority/43UM","WOKING BOROUGH COUNCIL","08/04/2021","14/04/2021","0000464134/001","DR BEATRICE ALLEGRANTI","40927900","2,716.00","NEIGHBOURHOOD SERVICES - ARTS PARTNERSHIP SURREY","MISCELLANEOUS EXPENSES","X827","MISCELLANEOUS EXPENSES","NEIGHBOURHOOD SERVICES","FINANCIAL SERVICES"
"http://statistics.data.gov.uk/id/local-authority/43UM","WOKING BOROUGH COUNCIL","11/03/2021","14/04/2021","0000464107/001","E.ON ENERGY SOLUTIONS LIMITED","40812400","66.07","ASSET MANAGEMENT - WOLSEY PLACE","ELECTRICITY","D400","ELECTRICITY","ASSET MANAGEMENT","UTILITIES"
"http://statistics.data.gov.uk/id/local-authority/43UM","WOKING BOROUGH COUNCIL","31/03/2021","14/04/2021","0000463815/001","EDWARD PEARCE LLP","40755800","1,620.00","ASSET MANAGEMENT - FACILITIES MANAGEMENT","FACILITIES MANAGEMENT REPAIRS","D908","FACILITIES MANAGEMENT REPAIRS","ASSET MANAGEMENT","CONSULTANCY"
"http://statistics.data.gov.uk/id/local-authority/43UM","WOKING BOROUGH COUNCIL","01/04/2021","14/04/2021","0000463998/001","ENTERPRISE RENT-A-CAR","40570900","27.80","CORPORATE STRATEGY - ENVIRONMENTAL PROJECTS","CAR HIRE","F405","CAR HIRE","CORPORATE STRATEGY","VEHICLE MANAGEMENT"
"http://statistics.data.gov.uk/id/local-authority/43UM","WOKING BOROUGH COUNCIL","31/03/2021","14/04/2021","0000464002/001","ENTERPRISE RENT-A-CAR","40570900","867.08","CORPORATE STRATEGY - ENVIRONMENTAL PROJECTS","CAR HIRE","F405","CAR HIRE","CORPORATE STRATEGY","VEHICLE MANAGEMENT"
"http://statistics.data.gov.uk/id/local-authority/43UM","WOKING BOROUGH COUNCIL","12/04/2021","14/04/2021","0000464148/001","EUROFFICE LTD","40943900","28.44","ASSET MANAGEMENT - CIVIC OFFICES","CONSUMABLES","G630","CONSUMABLES","ASSET MANAGEMENT","STATIONERY"
"http://statistics.data.gov.uk/id/local-authority/43UM","WOKING BOROUGH COUNCIL","12/04/2021","14/04/2021","0000464148/002","EUROFFICE LTD","40943900","20.10","ASSET MANAGEMENT - CIVIC OFFICES","CONSUMABLES","G630","CONSUMABLES","ASSET MANAGEMENT","STATIONERY"
"http://statistics.data.gov.uk/id/local-authority/43UM","WOKING BOROUGH COUNCIL","12/04/2021","14/04/2021","0000464153/001","EUROFFICE LTD","40943900","46.81","ASSET MANAGEMENT - CIVIC OFFICES","CONSUMABLES","G630","CONSUMABLES","ASSET MANAGEMENT","STATIONERY"
"http://statistics.data.gov.uk/id/local-authority/43UM","WOKING BOROUGH COUNCIL","02/04/2021","14/04/2021","0000464035/001","FAITH RECRUITMENT","01709500","40.93","PLANNING SERVICES - DEVELOPMENT CONTROL","TEMPORARY STAFF","A110","TEMPORARY STAFF","PLANNING SERVICES","HUMAN RESOURCES"
"http://statistics.data.gov.uk/id/local-authority/43UM","WOKING BOROUGH COUNCIL","02/04/2021","14/04/2021","0000464037/001","FAITH RECRUITMENT","01709500","187.98","PLANNING SERVICES - DEVELOPMENT CONTROL","TEMPORARY STAFF","A110","TEMPORARY STAFF","PLANNING SERVICES","HUMAN RESOURCES"
"http://statistics.data.gov.uk/id/local-authority/43UM","WOKING BOROUGH COUNCIL","02/04/2021","14/04/2021","0000464038/001","FAITH RECRUITMENT","01709500","96.01","PLANNING SERVICES - DEVELOPMENT CONTROL","TEMPORARY STAFF","A110","TEMPORARY STAFF","PLANNING SERVICES","HUMAN RESOURCES"
"http://statistics.data.gov.uk/id/local-authority/43UM","WOKING BOROUGH COUNCIL","12/04/2021","14/04/2021","0000464089/001","FATMA MEHMET","40663600","67.50","CORPORATE STRATEGY - WAVS","INTERPRETATION & TRANSLATION","H636","INTERPRETATION & TRANSLATION","CORPORATE STRATEGY","CONSULTANCY"
"http://statistics.data.gov.uk/id/local-authority/43UM","WOKING BOROUGH COUNCIL","12/04/2021","14/04/2021","0000464090/001","FATMA MEHMET","40663600","51.50","CORPORATE STRATEGY - WAVS","INTERPRETATION & TRANSLATION","H636","INTERPRETATION & TRANSLATION","CORPORATE STRATEGY","CONSULTANCY"
"http://statistics.data.gov.uk/id/local-authority/43UM","WOKING BOROUGH COUNCIL","12/04/2021","14/04/2021","0000464091/001","FATMA MEHMET","40663600","25.20","CORPORATE STRATEGY - WAVS","INTERPRETATION & TRANSLATION","H636","INTERPRETATION & TRANSLATION","CORPORATE STRATEGY","CONSULTANCY"
"http://statistics.data.gov.uk/id/local-authority/43UM","WOKING BOROUGH COUNCIL","12/04/2021","14/04/2021","0000464092/001","FATMA MEHMET","40663600","55.50","CORPORATE STRATEGY - WAVS","INTERPRETATION & TRANSLATION","H636","INTERPRETATION & TRANSLATION","CORPORATE STRATEGY","CONSULTANCY"
"http://statistics.data.gov.uk/id/local-authority/43UM","WOKING BOROUGH COUNCIL","12/04/2021","14/04/2021","0000464115/001","FATMA MEHMET","40663600","44.00","CORPORATE STRATEGY - WAVS","INTERPRETATION & TRANSLATION","H636","INTERPRETATION & TRANSLATION","CORPORATE STRATEGY","CONSULTANCY"
"http://statistics.data.gov.uk/id/local-authority/43UM","WOKING BOROUGH COUNCIL","01/04/2021","14/04/2021","0000463992/001","FRAZERS SURVEYORS LTD","00076400","133.33","HOUSING SERVICES - SALE COUNCIL HOUSES","OTHER CONSULTANTS","Q430","OTHER CONSULTANTS","HOUSING SERVICES","HOUSING MANAGEMENT"
"http://statistics.data.gov.uk/id/local-authority/43UM","WOKING BOROUGH COUNCIL","06/04/2021","14/04/2021","0000464059/001","FRAZERS SURVEYORS LTD","00076400","175.00","HOUSING SERVICES - SALE COUNCIL HOUSES","OTHER CONSULTANTS","Q430","OTHER CONSULTANTS","HOUSING SERVICES","HOUSING MANAGEMENT"
"http://statistics.data.gov.uk/id/local-authority/43UM","WOKING BOROUGH COUNCIL","07/04/2021","14/04/2021","0065000138/001","GOLDSWORTH ROAD DEVELOPMENT LLP","40853400","6,553.33","NEIGHBOURHOOD SERVICES - 30-32 GOLDSWORTH ROAD CAR PARK","RENTS PAYABLE","D500","RENTS PAYABLE","NEIGHBOURHOOD SERVICES","VEHICLE MANAGEMENT"
"http://statistics.data.gov.uk/id/local-authority/43UM","WOKING BOROUGH COUNCIL","09/04/2021","14/04/2021","0000464030/001","GRAVITAS RECRUITMENT GROUP LIMITED","40721300","4,130.00","INFORMATION TECHNOLOGY - OPEN HOUSING IMPLEMETATION","SERVICES","Q053","SERVICES","INFORMATION TECHNOLOGY","HUMAN RESOURCES"
"http://statistics.data.gov.uk/id/local-authority/43UM","WOKING BOROUGH COUNCIL","09/04/2021","14/04/2021","0000464084/001","GREENWICH CONTRACTS LIMITED","40656500","1,000.00","REVENUES AND BENEFITS - BENEFIT SERVICES","TEMPORARY STAFF","A110","TEMPORARY STAFF","REVENUES AND BENEFITS","CONSULTANCY"
"http://statistics.data.gov.uk/id/local-authority/43UM","WOKING BOROUGH COUNCIL","07/04/2021","14/04/2021","0000464074/001","HAYMARKET MEDIA GROUP LIMITED","00345100","3,695.00","PLANNING SERVICES - PLANNING SERVICES GENERAL EXPE","SUBSCRIPTIONS","H110","SUBSCRIPTIONS","PLANNING SERVICES","CONSULTANCY"
"http://statistics.data.gov.uk/id/local-authority/43UM","WOKING BOROUGH COUNCIL","06/04/2021","14/04/2021","0000463997/001","JAMES POTTER","40849300","2,007.50","ASSET MANAGEMENT - VALUATION SERVICES","TEMPORARY STAFF","A110","TEMPORARY STAFF","ASSET MANAGEMENT","ENVIRONMENTAL SERVICES"
"http://statistics.data.gov.uk/id/local-authority/43UM","WOKING BOROUGH COUNCIL","01/04/2021","14/04/2021","0000464066/001","JAYKANT RAMANLAL SHAH","40779800","11,847.00","HOUSING SERVICES - PRIVATE SECTOR LEASING SCHEME","LEASE PAYMENTS TO LANDLORD","H787","LEASE PAYMENTS TO LANDLORD","HOUSING SERVICES","FINANCIAL SERVICES"
"http://statistics.data.gov.uk/id/local-authority/43UM","WOKING BOROUGH COUNCIL","01/04/2021","14/04/2021","0000464156/001","JAYKANT RAMANLAL SHAH","40779800","14,809.00","HOUSING SERVICES - PRIVATE SECTOR LEASING SCHEME","LEASE PAYMENTS TO LANDLORD","H787","LEASE PAYMENTS TO LANDLORD","HOUSING SERVICES","FINANCIAL SERVICES"
"http://statistics.data.gov.uk/id/local-authority/43UM","WOKING BOROUGH COUNCIL","02/04/2021","14/04/2021","0000463996/001","JAYNE COOKE","40671500","120.00","CORPORATE STRATEGY - WAVS","INTERPRETATION & TRANSLATION","H636","INTERPRETATION & TRANSLATION","CORPORATE STRATEGY","CONSULTANCY"
"http://statistics.data.gov.uk/id/local-authority/43UM","WOKING BOROUGH COUNCIL","09/04/2021","14/04/2021","0000464023/001","KENT FINANCIAL SERVICES","40484900","45.00","REVENUES AND BENEFITS - C'L TAX BENEFIT ADMIN","DEBT COLLECTION AGENCY COMMISS","H910","DEBT COLLECTION AGENCY COMMISS","REVENUES AND BENEFITS","FINANCIAL SERVICES"
"http://statistics.data.gov.uk/id/local-authority/43UM","WOKING BOROUGH COUNCIL","06/04/2021","14/04/2021","0000463994/001","LAILA BRICE","40857000","8.20","CORPORATE STRATEGY - WAVS","INTERPRETATION & TRANSLATION","H636","INTERPRETATION & TRANSLATION","CORPORATE STRATEGY","HUMAN RESOURCES"
"http://statistics.data.gov.uk/id/local-authority/43UM","WOKING BOROUGH COUNCIL","01/04/2021","14/04/2021","0000464029/001","LAKEVIEW COMMUNITY ACTION GROUP","01936600","3,890.75","CORPORATE STRATEGY - GRANTS TO ORGANISATION","GRANTS","H100","GRANTS","CORPORATE STRATEGY","FINANCIAL SERVICES"
"http://statistics.data.gov.uk/id/local-authority/43UM","WOKING BOROUGH COUNCIL","30/03/2021","14/04/2021","0000464075/001","LEMON FRESH LAUNDRY","40885800","321.00","CORPORATE STRATEGY - COVID -19 LAUNDRY SERVICE","MAIN CONTRACTOR","Q200","MAIN CONTRACTOR","CORPORATE STRATEGY","ARTS & LEISURE SERVICES"
"http://statistics.data.gov.uk/id/local-authority/43UM","WOKING BOROUGH COUNCIL","01/04/2021","14/04/2021","0000463915/001","LUMINITA GUTOIU","40942700","65.20","CORPORATE STRATEGY - WAVS","INTERPRETATION & TRANSLATION","H636","INTERPRETATION & TRANSLATION","CORPORATE STRATEGY","FINANCIAL SERVICES"
"http://statistics.data.gov.uk/id/local-authority/43UM","WOKING BOROUGH COUNCIL","31/03/2021","14/04/2021","0000463843/001","MAIL BOXES ETC","01633600","241.50","CORPORATE STRATEGY - POSTAGE","COURIER SERVICES - EXTERNAL","G618","COURIER SERVICES - EXTERNAL","CORPORATE STRATEGY","FACILITIES & MANAGEMENT SERVICES"
"http://statistics.data.gov.uk/id/local-authority/43UM","WOKING BOROUGH COUNCIL","06/04/2021","14/04/2021","0000463995/001","MARIA DANUTA JURENKO","40665500","83.60","CORPORATE STRATEGY - WAVS","INTERPRETATION & TRANSLATION","H636","INTERPRETATION & TRANSLATION","CORPORATE STRATEGY","CONSULTANCY"
"http://statistics.data.gov.uk/id/local-authority/43UM","WOKING BOROUGH COUNCIL","15/03/2021","14/04/2021","0000463855/001","MARTIN CONWAY","01025900","385.00","HOUSING SERVICES - HOUSING OPTIONS","BED & BREAKFAST EXPENDITURE","H786","BED & BREAKFAST EXPENDITURE","HOUSING SERVICES","HOUSING MANAGEMENT"
"http://statistics.data.gov.uk/id/local-authority/43UM","WOKING BOROUGH COUNCIL","15/03/2021","14/04/2021","0000463856/001","MARTIN CONWAY","01025900","385.00","HOUSING SERVICES - HOUSING OPTIONS","BED & BREAKFAST EXPENDITURE","H786","BED & BREAKFAST EXPENDITURE","HOUSING SERVICES","HOUSING MANAGEMENT"
"http://statistics.data.gov.uk/id/local-authority/43UM","WOKING BOROUGH COUNCIL","15/03/2021","14/04/2021","0000463858/001","MARTIN CONWAY","01025900","165.00","HOUSING SERVICES - HOUSING OPTIONS","BED & BREAKFAST EXPENDITURE","H786","BED & BREAKFAST EXPENDITURE","HOUSING SERVICES","HOUSING MANAGEMENT"
"http://statistics.data.gov.uk/id/local-authority/43UM","WOKING BOROUGH COUNCIL","15/03/2021","14/04/2021","0000463860/001","MARTIN CONWAY","01025900","385.00","HOUSING SERVICES - HOUSING OPTIONS","BED & BREAKFAST EXPENDITURE","H786","BED & BREAKFAST EXPENDITURE","HOUSING SERVICES","HOUSING MANAGEMENT"
"http://statistics.data.gov.uk/id/local-authority/43UM","WOKING BOROUGH COUNCIL","15/03/2021","14/04/2021","0000463862/001","MARTIN CONWAY","01025900","385.00","HOUSING SERVICES - HOUSING OPTIONS","BED & BREAKFAST EXPENDITURE","H786","BED & BREAKFAST EXPENDITURE","HOUSING SERVICES","HOUSING MANAGEMENT"
"http://statistics.data.gov.uk/id/local-authority/43UM","WOKING BOROUGH COUNCIL","15/03/2021","14/04/2021","0000463863/001","MARTIN CONWAY","01025900","385.00","HOUSING SERVICES - HOUSING OPTIONS","BED & BREAKFAST EXPENDITURE","H786","BED & BREAKFAST EXPENDITURE","HOUSING SERVICES","HOUSING MANAGEMENT"
"http://statistics.data.gov.uk/id/local-authority/43UM","WOKING BOROUGH COUNCIL","15/03/2021","14/04/2021","0000463864/001","MARTIN CONWAY","01025900","525.00","HOUSING SERVICES - HOUSING OPTIONS","BED & BREAKFAST EXPENDITURE","H786","BED & BREAKFAST EXPENDITURE","HOUSING SERVICES","HOUSING MANAGEMENT"
"http://statistics.data.gov.uk/id/local-authority/43UM","WOKING BOROUGH COUNCIL","15/03/2021","14/04/2021","0000463866/001","MARTIN CONWAY","01025900","455.00","HOUSING SERVICES - HOUSING OPTIONS","BED & BREAKFAST EXPENDITURE","H786","BED & BREAKFAST EXPENDITURE","HOUSING SERVICES","HOUSING MANAGEMENT"
"http://statistics.data.gov.uk/id/local-authority/43UM","WOKING BOROUGH COUNCIL","15/03/2021","14/04/2021","0000463867/001","MARTIN CONWAY","01025900","490.00","HOUSING SERVICES - HOUSING OPTIONS","BED & BREAKFAST EXPENDITURE","H786","BED & BREAKFAST EXPENDITURE","HOUSING SERVICES","HOUSING MANAGEMENT"
"http://statistics.data.gov.uk/id/local-authority/43UM","WOKING BOROUGH COUNCIL","15/03/2021","14/04/2021","0000463869/001","MARTIN CONWAY","01025900","385.00","HOUSING SERVICES - HOUSING OPTIONS","BED & BREAKFAST EXPENDITURE","H786","BED & BREAKFAST EXPENDITURE","HOUSING SERVICES","HOUSING MANAGEMENT"
"http://statistics.data.gov.uk/id/local-authority/43UM","WOKING BOROUGH COUNCIL","15/03/2021","14/04/2021","0000463870/001","MARTIN CONWAY","01025900","220.00","HOUSING SERVICES - HOUSING OPTIONS","BED & BREAKFAST EXPENDITURE","H786","BED & BREAKFAST EXPENDITURE","HOUSING SERVICES","HOUSING MANAGEMENT"
"http://statistics.data.gov.uk/id/local-authority/43UM","WOKING BOROUGH COUNCIL","22/03/2021","14/04/2021","0000463871/001","MARTIN CONWAY","01025900","385.00","HOUSING SERVICES - HOUSING OPTIONS","BED & BREAKFAST EXPENDITURE","H786","BED & BREAKFAST EXPENDITURE","HOUSING SERVICES","HOUSING MANAGEMENT"
"http://statistics.data.gov.uk/id/local-authority/43UM","WOKING BOROUGH COUNCIL","22/03/2021","14/04/2021","0000463872/001","MARTIN CONWAY","01025900","385.00","HOUSING SERVICES - HOUSING OPTIONS","BED & BREAKFAST EXPENDITURE","H786","BED & BREAKFAST EXPENDITURE","HOUSING SERVICES","HOUSING MANAGEMENT"
"http://statistics.data.gov.uk/id/local-authority/43UM","WOKING BOROUGH COUNCIL","22/03/2021","14/04/2021","0000463873/001","MARTIN CONWAY","01025900","460.00","HOUSING SERVICES - HOUSING OPTIONS","BED & BREAKFAST EXPENDITURE","H786","BED & BREAKFAST EXPENDITURE","HOUSING SERVICES","HOUSING MANAGEMENT"
"http://statistics.data.gov.uk/id/local-authority/43UM","WOKING BOROUGH COUNCIL","22/03/2021","14/04/2021","0000463874/001","MARTIN CONWAY","01025900","385.00","HOUSING SERVICES - HOUSING OPTIONS","BED & BREAKFAST EXPENDITURE","H786","BED & BREAKFAST EXPENDITURE","HOUSING SERVICES","HOUSING MANAGEMENT"
"http://statistics.data.gov.uk/id/local-authority/43UM","WOKING BOROUGH COUNCIL","22/03/2021","14/04/2021","0000463875/001","MARTIN CONWAY","01025900","385.00","HOUSING SERVICES - HOUSING OPTIONS","BED & BREAKFAST EXPENDITURE","H786","BED & BREAKFAST EXPENDITURE","HOUSING SERVICES","HOUSING MANAGEMENT"
"http://statistics.data.gov.uk/id/local-authority/43UM","WOKING BOROUGH COUNCIL","22/03/2021","14/04/2021","0000463876/001","MARTIN CONWAY","01025900","385.00","HOUSING SERVICES - HOUSING OPTIONS","BED & BREAKFAST EXPENDITURE","H786","BED & BREAKFAST EXPENDITURE","HOUSING SERVICES","HOUSING MANAGEMENT"
"http://statistics.data.gov.uk/id/local-authority/43UM","WOKING BOROUGH COUNCIL","22/03/2021","14/04/2021","0000463877/001","MARTIN CONWAY","01025900","385.00","HOUSING SERVICES - HOUSING OPTIONS","BED & BREAKFAST EXPENDITURE","H786","BED & BREAKFAST EXPENDITURE","HOUSING SERVICES","HOUSING MANAGEMENT"
"http://statistics.data.gov.uk/id/local-authority/43UM","WOKING BOROUGH COUNCIL","22/03/2021","14/04/2021","0000463878/001","MARTIN CONWAY","01025900","525.00","HOUSING SERVICES - HOUSING OPTIONS","BED & BREAKFAST EXPENDITURE","H786","BED & BREAKFAST EXPENDITURE","HOUSING SERVICES","HOUSING MANAGEMENT"
"http://statistics.data.gov.uk/id/local-authority/43UM","WOKING BOROUGH COUNCIL","22/03/2021","14/04/2021","0000463879/001","MARTIN CONWAY","01025900","455.00","HOUSING SERVICES - HOUSING OPTIONS","BED & BREAKFAST EXPENDITURE","H786","BED & BREAKFAST EXPENDITURE","HOUSING SERVICES","HOUSING MANAGEMENT"
"http://statistics.data.gov.uk/id/local-authority/43UM","WOKING BOROUGH COUNCIL","22/03/2021","14/04/2021","0000463880/001","MARTIN CONWAY","01025900","490.00","HOUSING SERVICES - HOUSING OPTIONS","BED & BREAKFAST EXPENDITURE","H786","BED & BREAKFAST EXPENDITURE","HOUSING SERVICES","HOUSING MANAGEMENT"
"http://statistics.data.gov.uk/id/local-authority/43UM","WOKING BOROUGH COUNCIL","29/03/2021","14/04/2021","0000463945/001","MARTIN CONWAY","01025900","385.00","HOUSING SERVICES - HOUSING OPTIONS","BED & BREAKFAST EXPENDITURE","H786","BED & BREAKFAST EXPENDITURE","HOUSING SERVICES","HOUSING MANAGEMENT"
"http://statistics.data.gov.uk/id/local-authority/43UM","WOKING BOROUGH COUNCIL","29/03/2021","14/04/2021","0000463946/001","MARTIN CONWAY","01025900","385.00","HOUSING SERVICES - HOUSING OPTIONS","BED & BREAKFAST EXPENDITURE","H786","BED & BREAKFAST EXPENDITURE","HOUSING SERVICES","HOUSING MANAGEMENT"
"http://statistics.data.gov.uk/id/local-authority/43UM","WOKING BOROUGH COUNCIL","29/03/2021","14/04/2021","0000463947/001","MARTIN CONWAY","01025900","330.00","HOUSING SERVICES - HOUSING OPTIONS","BED & BREAKFAST EXPENDITURE","H786","BED & BREAKFAST EXPENDITURE","HOUSING SERVICES","HOUSING MANAGEMENT"
"http://statistics.data.gov.uk/id/local-authority/43UM","WOKING BOROUGH COUNCIL","29/03/2021","14/04/2021","0000463948/001","MARTIN CONWAY","01025900","385.00","HOUSING SERVICES - HOUSING OPTIONS","BED & BREAKFAST EXPENDITURE","H786","BED & BREAKFAST EXPENDITURE","HOUSING SERVICES","HOUSING MANAGEMENT"
"http://statistics.data.gov.uk/id/local-authority/43UM","WOKING BOROUGH COUNCIL","29/03/2021","14/04/2021","0000463949/001","MARTIN CONWAY","01025900","385.00","HOUSING SERVICES - HOUSING OPTIONS","BED & BREAKFAST EXPENDITURE","H786","BED & BREAKFAST EXPENDITURE","HOUSING SERVICES","HOUSING MANAGEMENT"
"http://statistics.data.gov.uk/id/local-authority/43UM","WOKING BOROUGH COUNCIL","29/03/2021","14/04/2021","0000463950/001","MARTIN CONWAY","01025900","385.00","HOUSING SERVICES - HOUSING OPTIONS","BED & BREAKFAST EXPENDITURE","H786","BED & BREAKFAST EXPENDITURE","HOUSING SERVICES","HOUSING MANAGEMENT"
"http://statistics.data.gov.uk/id/local-authority/43UM","WOKING BOROUGH COUNCIL","29/03/2021","14/04/2021","0000463951/001","MARTIN CONWAY","01025900","385.00","HOUSING SERVICES - HOUSING OPTIONS","BED & BREAKFAST EXPENDITURE","H786","BED & BREAKFAST EXPENDITURE","HOUSING SERVICES","HOUSING MANAGEMENT"
"http://statistics.data.gov.uk/id/local-authority/43UM","WOKING BOROUGH COUNCIL","29/03/2021","14/04/2021","0000463952/001","MARTIN CONWAY","01025900","525.00","HOUSING SERVICES - HOUSING OPTIONS","BED & BREAKFAST EXPENDITURE","H786","BED & BREAKFAST EXPENDITURE","HOUSING SERVICES","HOUSING MANAGEMENT"
"http://statistics.data.gov.uk/id/local-authority/43UM","WOKING BOROUGH COUNCIL","29/03/2021","14/04/2021","0000463953/001","MARTIN CONWAY","01025900","455.00","HOUSING SERVICES - HOUSING OPTIONS","BED & BREAKFAST EXPENDITURE","H786","BED & BREAKFAST EXPENDITURE","HOUSING SERVICES","HOUSING MANAGEMENT"
"http://statistics.data.gov.uk/id/local-authority/43UM","WOKING BOROUGH COUNCIL","29/03/2021","14/04/2021","0000463954/001","MARTIN CONWAY","01025900","70.00","HOUSING SERVICES - HOUSING OPTIONS","BED & BREAKFAST EXPENDITURE","H786","BED & BREAKFAST EXPENDITURE","HOUSING SERVICES","HOUSING MANAGEMENT"
"http://statistics.data.gov.uk/id/local-authority/43UM","WOKING BOROUGH COUNCIL","31/03/2021","14/04/2021","0000464026/001","MASCOT","40589400","7,175.00","CORPORATE STRATEGY - GRANTS TO ORGANISATION","GRANTS","H100","GRANTS","CORPORATE STRATEGY","ARTS & LEISURE SERVICES"
"http://statistics.data.gov.uk/id/local-authority/43UM","WOKING BOROUGH COUNCIL","14/04/2021","14/04/2021","GPC/00014378","MATALAN","PROCUREMENT CARD","46.67","INDEPENDENT LIVING SERVICES - INDEPENDENT LIV SERV GEN EXPEN","FREDA EBEL BEQUEST","H352","NEW BLANKETS AND CUSHIONS FOR LOUNGE","RIANNA MEME","MEN'S AND WOMEN'S CLOTHING STORES"
"http://statistics.data.gov.uk/id/local-authority/43UM","WOKING BOROUGH COUNCIL","04/01/2021","14/04/2021","0000463916/001","MIRIAM DA COSTA MACHADO","40680600","20.00","CORPORATE STRATEGY - WAVS","INTERPRETATION & TRANSLATION","H636","INTERPRETATION & TRANSLATION","CORPORATE STRATEGY","CONSULTANCY"
"http://statistics.data.gov.uk/id/local-authority/43UM","WOKING BOROUGH COUNCIL","07/04/2021","14/04/2021","0000464067/001","MRS SEHBA MUSHARRAF","40916100","6,249.99","ASSET MANAGEMENT - 16-17 HIGH STREET WOKING","RENTS PAYABLE","D500","RENTS PAYABLE","ASSET MANAGEMENT","HOUSING MANAGEMENT"
"http://statistics.data.gov.uk/id/local-authority/43UM","WOKING BOROUGH COUNCIL","31/03/2021","14/04/2021","0000464021/001","NOWMEDICAL","01771600","160.00","CORPORATE STRATEGY - PRIVATE CAR HIRE LICENCE","MEDICAL ADVICE","H782","MEDICAL ADVICE","CORPORATE STRATEGY","HEALTHCARE"
"http://statistics.data.gov.uk/id/local-authority/43UM","WOKING BOROUGH COUNCIL","31/03/2021","14/04/2021","0000464021/002","NOWMEDICAL","01771600","40.00","CORPORATE STRATEGY - TAXI LICENCES","MEDICAL ADVICE","H782","MEDICAL ADVICE","CORPORATE STRATEGY","HEALTHCARE"
"http://statistics.data.gov.uk/id/local-authority/43UM","WOKING BOROUGH COUNCIL","31/03/2021","14/04/2021","0000464078/001","PARK AVENUE RECRUITMENT","40691800","1,517.00","PLANNING SERVICES - DEVELOPMENT CONTROL","TEMPORARY STAFF","A110","TEMPORARY STAFF","PLANNING SERVICES","HUMAN RESOURCES"
"http://statistics.data.gov.uk/id/local-authority/43UM","WOKING BOROUGH COUNCIL","15/03/2021","14/04/2021","0000463361/001","PEOPLESAFE","40472000","45.00","HOUSING SERVICES - HOUSING SERVICES GENERAL EXPEN","EQUIPMENT","G100","EQUIPMENT","HOUSING SERVICES","HEALTH & SAFETY"
"http://statistics.data.gov.uk/id/local-authority/43UM","WOKING BOROUGH COUNCIL","01/04/2021","14/04/2021","0000463851/001","PEOPLESAFE","40472000","116.40","HOUSING SERVICES - HOUSING SERVICES GENERAL EXPEN","EQUIPMENT","G100","EQUIPMENT","HOUSING SERVICES","HEALTH & SAFETY"
"http://statistics.data.gov.uk/id/local-authority/43UM","WOKING BOROUGH COUNCIL","24/03/2021","14/04/2021","0000463804/001","PRIORY HERITAGE LTD","40790700","679.60","ASSET MANAGEMENT - WOKING OLD PALACE MAIN","GROUNDS MAINT-CONTRACTORS","D200","GROUNDS MAINT-CONTRACTORS","ASSET MANAGEMENT","FINANCIAL SERVICES"
"http://statistics.data.gov.uk/id/local-authority/43UM","WOKING BOROUGH COUNCIL","29/03/2021","14/04/2021","0000463891/001","PROF. FEES OF MR TIMOTHY STRAKER, Q.C.","00046500","1,666.67","PLANNING SERVICES - T.P. GEN.-APPEALS&ENQS","WOKING FC PLANNING ENQUIRY","H762","WOKING FC PLANNING ENQUIRY","PLANNING SERVICES","LEGAL SERVICES"
"http://statistics.data.gov.uk/id/local-authority/43UM","WOKING BOROUGH COUNCIL","06/04/2021","14/04/2021","0000463934/001","PROJECT114 LTD","40370300","5,990.00","HOUSING SERVICES - HOUSING OPTIONS","BED & BREAKFAST EXPENDITURE","H786","BED & BREAKFAST EXPENDITURE","HOUSING SERVICES","HOUSING MANAGEMENT"
"http://statistics.data.gov.uk/id/local-authority/43UM","WOKING BOROUGH COUNCIL","06/04/2021","14/04/2021","0000463935/001","PROJECT114 LTD","40370300","1,050.00","HOUSING SERVICES - HOUSING OPTIONS","BED & BREAKFAST EXPENDITURE","H786","BED & BREAKFAST EXPENDITURE","HOUSING SERVICES","HOUSING MANAGEMENT"
"http://statistics.data.gov.uk/id/local-authority/43UM","WOKING BOROUGH COUNCIL","01/04/2021","14/04/2021","0000463993/001","QUIFU HURLEY","40912900","44.50","CORPORATE STRATEGY - WAVS","INTERPRETATION & TRANSLATION","H636","INTERPRETATION & TRANSLATION","CORPORATE STRATEGY","FINANCIAL SERVICES"
"http://statistics.data.gov.uk/id/local-authority/43UM","WOKING BOROUGH COUNCIL","01/04/2021","14/04/2021","0000464013/001","R & A PLUMBING & HEATING","40457200","2,810.00","HOUSING SERVICES - DISABLED FACILITIES GRANTS","MANDATORY GRANTS","Q712","MANDATORY GRANTS","HOUSING SERVICES","FINANCIAL SERVICES"
"http://statistics.data.gov.uk/id/local-authority/43UM","WOKING BOROUGH COUNCIL","01/04/2021","14/04/2021","0000464027/001","RASASC GUILDFORD LTD","40897800","2,500.00","CORPORATE STRATEGY - COMMUNITY FUND","EXPEND FROM FUND","T750","EXPEND FROM FUND","CORPORATE STRATEGY","LEGAL SERVICES"
"http://statistics.data.gov.uk/id/local-authority/43UM","WOKING BOROUGH COUNCIL","19/03/2021","14/04/2021","0000463652/001","ROYAL MAIL GROUP LTD","00040000","341.67","CORPORATE STRATEGY - POSTAGE","POSTAGE - REPLY PAID","G710","POSTAGE - REPLY PAID","CORPORATE STRATEGY","MAIL SERVICES"
"http://statistics.data.gov.uk/id/local-authority/43UM","WOKING BOROUGH COUNCIL","12/04/2021","14/04/2021","0065000140/001","REDACTED PERSONAL DATA","40951600","1,000.00","HOUSING SERVICES - TENANTS REMOVAL EXPENS","REMOVAL EXPENSES","H775","REMOVAL EXPENSES","HOUSING SERVICES","FINANCIAL SERVICES"
"http://statistics.data.gov.uk/id/local-authority/43UM","WOKING BOROUGH COUNCIL","22/03/2021","14/04/2021","0000464162/001","SCCI ALPHATRACK LTD","40103400","397.20","HOUSING SERVICES - NTL","R&M BUILDINGS - CONTRACTORS","D100","R&M BUILDINGS - CONTRACTORS","HOUSING SERVICES","WORKS (CONSTRUCTION REPAIR MAINTENANCE)"
"http://statistics.data.gov.uk/id/local-authority/43UM","WOKING BOROUGH COUNCIL","23/03/2021","14/04/2021","0000464163/001","SCCI ALPHATRACK LTD","40103400","911.10","HOUSING SERVICES - NTL","R&M BUILDINGS - CONTRACTORS","D100","R&M BUILDINGS - CONTRACTORS","HOUSING SERVICES","WORKS (CONSTRUCTION REPAIR MAINTENANCE)"
"http://statistics.data.gov.uk/id/local-authority/43UM","WOKING BOROUGH COUNCIL","22/03/2021","14/04/2021","0000464165/001","SCCI ALPHATRACK LTD","40103400","77.00","HOUSING SERVICES - NTL","R&M BUILDINGS - CONTRACTORS","D100","R&M BUILDINGS - CONTRACTORS","HOUSING SERVICES","WORKS (CONSTRUCTION REPAIR MAINTENANCE)"
"http://statistics.data.gov.uk/id/local-authority/43UM","WOKING BOROUGH COUNCIL","22/03/2021","14/04/2021","0000464166/001","SCCI ALPHATRACK LTD","40103400","80.85","HOUSING SERVICES - NTL","R&M BUILDINGS - CONTRACTORS","D100","R&M BUILDINGS - CONTRACTORS","HOUSING SERVICES","WORKS (CONSTRUCTION REPAIR MAINTENANCE)"
"http://statistics.data.gov.uk/id/local-authority/43UM","WOKING BOROUGH COUNCIL","22/03/2021","14/04/2021","0000464167/001","SCCI ALPHATRACK LTD","40103400","77.00","HOUSING SERVICES - NTL","R&M BUILDINGS - CONTRACTORS","D100","R&M BUILDINGS - CONTRACTORS","HOUSING SERVICES","WORKS (CONSTRUCTION REPAIR MAINTENANCE)"
"http://statistics.data.gov.uk/id/local-authority/43UM","WOKING BOROUGH COUNCIL","22/03/2021","14/04/2021","0000464169/001","SCCI ALPHATRACK LTD","40103400","77.00","HOUSING SERVICES - NTL","R&M BUILDINGS - CONTRACTORS","D100","R&M BUILDINGS - CONTRACTORS","HOUSING SERVICES","WORKS (CONSTRUCTION REPAIR MAINTENANCE)"
"http://statistics.data.gov.uk/id/local-authority/43UM","WOKING BOROUGH COUNCIL","30/03/2021","14/04/2021","0000464172/001","SCCI ALPHATRACK LTD","40103400","77.00","HOUSING SERVICES - NTL","R&M BUILDINGS - CONTRACTORS","D100","R&M BUILDINGS - CONTRACTORS","HOUSING SERVICES","WORKS (CONSTRUCTION REPAIR MAINTENANCE)"
"http://statistics.data.gov.uk/id/local-authority/43UM","WOKING BOROUGH COUNCIL","30/03/2021","14/04/2021","0000464173/001","SCCI ALPHATRACK LTD","40103400","77.00","HOUSING SERVICES - NTL","R&M BUILDINGS - CONTRACTORS","D100","R&M BUILDINGS - CONTRACTORS","HOUSING SERVICES","WORKS (CONSTRUCTION REPAIR MAINTENANCE)"
"http://statistics.data.gov.uk/id/local-authority/43UM","WOKING BOROUGH COUNCIL","30/03/2021","14/04/2021","0000464174/001","SCCI ALPHATRACK LTD","40103400","127.70","HOUSING SERVICES - NTL","R&M BUILDINGS - CONTRACTORS","D100","R&M BUILDINGS - CONTRACTORS","HOUSING SERVICES","WORKS (CONSTRUCTION REPAIR MAINTENANCE)"
"http://statistics.data.gov.uk/id/local-authority/43UM","WOKING BOROUGH COUNCIL","30/03/2021","14/04/2021","0000464175/001","SCCI ALPHATRACK LTD","40103400","127.70","HOUSING SERVICES - NTL","R&M BUILDINGS - CONTRACTORS","D100","R&M BUILDINGS - CONTRACTORS","HOUSING SERVICES","WORKS (CONSTRUCTION REPAIR MAINTENANCE)"
"http://statistics.data.gov.uk/id/local-authority/43UM","WOKING BOROUGH COUNCIL","14/04/2021","14/04/2021","GPC/00014376","SCREWFIX DIRECT","PROCUREMENT CARD","28.21","CORPORATE STRATEGY - COVID -19 PANDEMIC","MAIN CONTRACTOR","Q200","PLUMBING MATERIALS ","MR D JONES","LUMBER/BUILD SUPPLY STORES"
"http://statistics.data.gov.uk/id/local-authority/43UM","WOKING BOROUGH COUNCIL","25/03/2021","14/04/2021","0000463905/001","SERCO LIMITED","01380600","1,288.00","NEIGHBOURHOOD SERVICES - ENVIRONMENTAL MAINTENANCE CONT","EMC SERVICE CHARGE","T716","EMC SERVICE CHARGE","NEIGHBOURHOOD SERVICES","CLEANING & JANITORIAL"
"http://statistics.data.gov.uk/id/local-authority/43UM","WOKING BOROUGH COUNCIL","25/03/2021","14/04/2021","0000463906/001","SERCO LIMITED","01380600","1,647.06","NEIGHBOURHOOD SERVICES - ENVIRONMENTAL MAINTENANCE CONT","EMC SERVICE CHARGE","T716","EMC SERVICE CHARGE","NEIGHBOURHOOD SERVICES","CLEANING & JANITORIAL"
"http://statistics.data.gov.uk/id/local-authority/43UM","WOKING BOROUGH COUNCIL","09/03/2021","14/04/2021","0000464164/001","SHCE LTD T/A THE SHERIFFS OFFICE","40556500","75.00","REVENUES AND BENEFITS - RENT ALLOWANCES","DEBT COLLECTION AGENCY COMMISS","H910","DEBT COLLECTION AGENCY COMMISS","REVENUES AND BENEFITS","FINANCIAL SERVICES"
"http://statistics.data.gov.uk/id/local-authority/43UM","WOKING BOROUGH COUNCIL","11/03/2021","14/04/2021","0000464033/001","SOUTHERN BUILDING CONTROL PARTNERSHIP","40723000","691.67","PLANNING SERVICES - BUILDING REGULATIONS","PAYMENTS TO OTHER LA'S","H695","PAYMENTS TO OTHER LA'S","PLANNING SERVICES","WORKS (CONSTRUCTION REPAIR MAINTENANCE)"
"http://statistics.data.gov.uk/id/local-authority/43UM","WOKING BOROUGH COUNCIL","07/04/2021","14/04/2021","0000464009/001","SURREY DRUG & ALCOHOL CARE LTD","40824200","1,500.00","CORPORATE STRATEGY - GRANTS TO ORGANISATION","GRANTS","H100","GRANTS","CORPORATE STRATEGY","FINANCIAL SERVICES"
"http://statistics.data.gov.uk/id/local-authority/43UM","WOKING BOROUGH COUNCIL","31/03/2021","14/04/2021","0000464024/001","SURREY NORTH AREA CRUSE BEREAVEMENT CARE","40742700","907.50","CORPORATE STRATEGY - GRANTS TO ORGANISATION","GRANTS","H100","GRANTS","CORPORATE STRATEGY","SOCIAL COMMUNITY CARE SUPPLIES & SERVICS"
"http://statistics.data.gov.uk/id/local-authority/43UM","WOKING BOROUGH COUNCIL","19/03/2021","14/04/2021","0000463705/001","TERRY'S NEWSAGENTS","00036000","11.00","CORPORATE STRATEGY - CORPORATE STRATEGY GENERAL EXP","NEWSPAPERS","G660","NEWSPAPERS","CORPORATE STRATEGY","FACILITIES & MANAGEMENT SERVICES"
"http://statistics.data.gov.uk/id/local-authority/43UM","WOKING BOROUGH COUNCIL","09/04/2021","14/04/2021","0065000139/001","TOPMARK CLAIMS MANAGEMENTS (TMS)","40947200","7,750.00","HOUSING SERVICES - DISABLED FACILITIES GRANTS","DISCRETIONARY GRANTS","Q713","DISCRETIONARY GRANTS","HOUSING SERVICES","FINANCIAL SERVICES"
"http://statistics.data.gov.uk/id/local-authority/43UM","WOKING BOROUGH COUNCIL","06/04/2021","14/04/2021","0000464020/001","TOTAL GAS & POWER LIMITED","40456400","430.77","ASSET MANAGEMENT - WOLSEY PLACE","ELECTRICITY","D400","ELECTRICITY","ASSET MANAGEMENT","UTILITIES"
"http://statistics.data.gov.uk/id/local-authority/43UM","WOKING BOROUGH COUNCIL","28/03/2021","14/04/2021","0000463914/001","UNITY RECRUITMENT LTD","40160500","721.88","NEIGHBOURHOOD SERVICES - PARKING SERVICES","TEMPORARY STAFF","A110","TEMPORARY STAFF","NEIGHBOURHOOD SERVICES","HUMAN RESOURCES"
"http://statistics.data.gov.uk/id/local-authority/43UM","WOKING BOROUGH COUNCIL","28/03/2021","14/04/2021","0000463914/002","UNITY RECRUITMENT LTD","40160500","721.88","NEIGHBOURHOOD SERVICES - PARKING SERVICES","TEMPORARY STAFF","A110","TEMPORARY STAFF","NEIGHBOURHOOD SERVICES","HUMAN RESOURCES"
"http://statistics.data.gov.uk/id/local-authority/43UM","WOKING BOROUGH COUNCIL","28/03/2021","14/04/2021","0000463914/003","UNITY RECRUITMENT LTD","40160500","866.25","NEIGHBOURHOOD SERVICES - PARKING SERVICES","TEMPORARY STAFF","A110","TEMPORARY STAFF","NEIGHBOURHOOD SERVICES","HUMAN RESOURCES"
"http://statistics.data.gov.uk/id/local-authority/43UM","WOKING BOROUGH COUNCIL","30/03/2021","14/04/2021","0000464053/001","VENN GROUP LIMITED","40383900","320.00","REVENUES AND BENEFITS - BENEFIT SERVICES","TEMPORARY STAFF","A110","TEMPORARY STAFF","REVENUES AND BENEFITS","HUMAN RESOURCES"
"http://statistics.data.gov.uk/id/local-authority/43UM","WOKING BOROUGH COUNCIL","23/02/2021","14/04/2021","0000464034/001","WAVERLEY BOROUGH COUNCIL","00331100","233.75","PLANNING SERVICES - BUILDING REGULATIONS","PAYMENTS TO OTHER LA'S","H695","PAYMENTS TO OTHER LA'S","PLANNING SERVICES","WORKS (CONSTRUCTION REPAIR MAINTENANCE)"
"http://statistics.data.gov.uk/id/local-authority/43UM","WOKING BOROUGH COUNCIL","09/04/2021","14/04/2021","0000464063/001","WERONIKA KLAPTOCZ","40669000","30.70","CORPORATE STRATEGY - WAVS","INTERPRETATION & TRANSLATION","H636","INTERPRETATION & TRANSLATION","CORPORATE STRATEGY","CONSULTANCY"
"http://statistics.data.gov.uk/id/local-authority/43UM","WOKING BOROUGH COUNCIL","08/02/2021","14/04/2021","0000464068/001","WERONIKA KLAPTOCZ","40669000","32.00","CORPORATE STRATEGY - WAVS","INTERPRETATION & TRANSLATION","H636","INTERPRETATION & TRANSLATION","CORPORATE STRATEGY","CONSULTANCY"
"http://statistics.data.gov.uk/id/local-authority/43UM","WOKING BOROUGH COUNCIL","12/04/2021","14/04/2021","0000464095/001","WERONIKA KLAPTOCZ","40669000","35.45","CORPORATE STRATEGY - WAVS","INTERPRETATION & TRANSLATION","H636","INTERPRETATION & TRANSLATION","CORPORATE STRATEGY","CONSULTANCY"
"http://statistics.data.gov.uk/id/local-authority/43UM","WOKING BOROUGH COUNCIL","28/03/2021","14/04/2021","0000463797/001","WHISTL UK LIMITED","00367900","2,176.38","CORPORATE STRATEGY - POSTAGE","POSTAGE - STANDARD TARIFF","G700","POSTAGE - STANDARD TARIFF","CORPORATE STRATEGY","MAIL SERVICES"
"http://statistics.data.gov.uk/id/local-authority/43UM","WOKING BOROUGH COUNCIL","28/03/2021","14/04/2021","0000463798/001","WHISTL UK LIMITED","00367900","103.47","CORPORATE STRATEGY - POSTAGE","POSTAGE - STANDARD TARIFF","G700","POSTAGE - STANDARD TARIFF","CORPORATE STRATEGY","MAIL SERVICES"
"http://statistics.data.gov.uk/id/local-authority/43UM","WOKING BOROUGH COUNCIL","04/04/2021","14/04/2021","0000463937/001","WHISTL UK LIMITED","00367900","4,117.81","CORPORATE STRATEGY - POSTAGE","POSTAGE - STANDARD TARIFF","G700","POSTAGE - STANDARD TARIFF","CORPORATE STRATEGY","MAIL SERVICES"
"http://statistics.data.gov.uk/id/local-authority/43UM","WOKING BOROUGH COUNCIL","04/04/2021","14/04/2021","0000463938/001","WHISTL UK LIMITED","00367900","98.62","CORPORATE STRATEGY - POSTAGE","POSTAGE - STANDARD TARIFF","G700","POSTAGE - STANDARD TARIFF","CORPORATE STRATEGY","MAIL SERVICES"
"http://statistics.data.gov.uk/id/local-authority/43UM","WOKING BOROUGH COUNCIL","14/04/2021","14/04/2021","GPC/00014366","WICKES BUILDING","PROCUREMENT CARD","21.17","INDEPENDENT LIVING SERVICES - MOORCROFT","R&M BUILDINGS - CONTRACTORS","D100","GARDEN SUPPLIES","RICHARD BUCKENHAM","LUMBER/BUILD SUPPLY STORES"
"http://statistics.data.gov.uk/id/local-authority/43UM","WOKING BOROUGH COUNCIL","30/03/2021","14/04/2021","0000463825/001","WIGHTMAN & PARRISH LTD","40474600","35.82","INDEPENDENT LIVING SERVICES - THE VYNE","CLEANING MATERIALS","D920","CLEANING MATERIALS","INDEPENDENT LIVING SERVICES","CLEANING & JANITORIAL"
"http://statistics.data.gov.uk/id/local-authority/43UM","WOKING BOROUGH COUNCIL","30/03/2021","14/04/2021","0000463825/002","WIGHTMAN & PARRISH LTD","40474600","43.82","INDEPENDENT LIVING SERVICES - THE VYNE","CLEANING MATERIALS","D920","CLEANING MATERIALS","INDEPENDENT LIVING SERVICES","CLEANING & JANITORIAL"
"http://statistics.data.gov.uk/id/local-authority/43UM","WOKING BOROUGH COUNCIL","30/03/2021","14/04/2021","0000463825/003","WIGHTMAN & PARRISH LTD","40474600","18.52","INDEPENDENT LIVING SERVICES - THE VYNE","CLEANING MATERIALS","D920","CLEANING MATERIALS","INDEPENDENT LIVING SERVICES","CLEANING & JANITORIAL"
"http://statistics.data.gov.uk/id/local-authority/43UM","WOKING BOROUGH COUNCIL","30/03/2021","14/04/2021","0000463825/004","WIGHTMAN & PARRISH LTD","40474600","19.80","INDEPENDENT LIVING SERVICES - THE VYNE","CLEANING MATERIALS","D920","CLEANING MATERIALS","INDEPENDENT LIVING SERVICES","CLEANING & JANITORIAL"
"http://statistics.data.gov.uk/id/local-authority/43UM","WOKING BOROUGH COUNCIL","30/03/2021","14/04/2021","0000463825/005","WIGHTMAN & PARRISH LTD","40474600","36.14","INDEPENDENT LIVING SERVICES - THE VYNE","CLEANING MATERIALS","D920","CLEANING MATERIALS","INDEPENDENT LIVING SERVICES","CLEANING & JANITORIAL"
"http://statistics.data.gov.uk/id/local-authority/43UM","WOKING BOROUGH COUNCIL","30/03/2021","14/04/2021","0000463825/006","WIGHTMAN & PARRISH LTD","40474600","39.00","INDEPENDENT LIVING SERVICES - THE VYNE","CLEANING MATERIALS","D920","CLEANING MATERIALS","INDEPENDENT LIVING SERVICES","CLEANING & JANITORIAL"
"http://statistics.data.gov.uk/id/local-authority/43UM","WOKING BOROUGH COUNCIL","30/03/2021","14/04/2021","0000463825/007","WIGHTMAN & PARRISH LTD","40474600","6.40","INDEPENDENT LIVING SERVICES - THE VYNE","CLEANING MATERIALS","D920","CLEANING MATERIALS","INDEPENDENT LIVING SERVICES","CLEANING & JANITORIAL"
"http://statistics.data.gov.uk/id/local-authority/43UM","WOKING BOROUGH COUNCIL","06/04/2021","14/04/2021","0000463990/001","WIGHTMAN & PARRISH LTD","40474600","4.36","INDEPENDENT LIVING SERVICES - THE VYNE","CLEANING MATERIALS","D920","CLEANING MATERIALS","INDEPENDENT LIVING SERVICES","CLEANING & JANITORIAL"
"http://statistics.data.gov.uk/id/local-authority/43UM","WOKING BOROUGH COUNCIL","06/04/2021","14/04/2021","0000463990/002","WIGHTMAN & PARRISH LTD","40474600","8.30","INDEPENDENT LIVING SERVICES - THE VYNE","CLEANING MATERIALS","D920","CLEANING MATERIALS","INDEPENDENT LIVING SERVICES","CLEANING & JANITORIAL"
"http://statistics.data.gov.uk/id/local-authority/43UM","WOKING BOROUGH COUNCIL","06/04/2021","14/04/2021","0000463990/003","WIGHTMAN & PARRISH LTD","40474600","8.30","INDEPENDENT LIVING SERVICES - THE VYNE","CLEANING MATERIALS","D920","CLEANING MATERIALS","INDEPENDENT LIVING SERVICES","CLEANING & JANITORIAL"
"http://statistics.data.gov.uk/id/local-authority/43UM","WOKING BOROUGH COUNCIL","06/04/2021","14/04/2021","0000463990/004","WIGHTMAN & PARRISH LTD","40474600","8.30","INDEPENDENT LIVING SERVICES - THE VYNE","CLEANING MATERIALS","D920","CLEANING MATERIALS","INDEPENDENT LIVING SERVICES","CLEANING & JANITORIAL"
"http://statistics.data.gov.uk/id/local-authority/43UM","WOKING BOROUGH COUNCIL","06/04/2021","14/04/2021","0000463990/005","WIGHTMAN & PARRISH LTD","40474600","8.30","INDEPENDENT LIVING SERVICES - THE VYNE","CLEANING MATERIALS","D920","CLEANING MATERIALS","INDEPENDENT LIVING SERVICES","CLEANING & JANITORIAL"
"http://statistics.data.gov.uk/id/local-authority/43UM","WOKING BOROUGH COUNCIL","07/04/2021","14/04/2021","0000464007/001","WOKING AGE CONCERN","01930200","750.00","CORPORATE STRATEGY - GRANTS TO ORGANISATION","GRANTS","H100","GRANTS","CORPORATE STRATEGY","FINANCIAL SERVICES"
"http://statistics.data.gov.uk/id/local-authority/43UM","WOKING BOROUGH COUNCIL","30/03/2021","14/04/2021","0000464025/001","WOKING AND DISTRICT MEN'S SHED","40847900","6,311.00","CORPORATE STRATEGY - COMMUNITY FUND","EXPEND FROM FUND","T750","EXPEND FROM FUND","CORPORATE STRATEGY","ARTS & LEISURE SERVICES"
"http://statistics.data.gov.uk/id/local-authority/43UM","WOKING BOROUGH COUNCIL","01/03/2021","14/04/2021","0000462796/001","WOKING ASIAN BUSINESS FORUM","01987900","10,000.00","INDEPENDENT LIVING SERVICES - ALPHA RD COMMUNITY HALL","GRANTS","H100","GRANTS","INDEPENDENT LIVING SERVICES","FACILITIES & MANAGEMENT SERVICES"
"http://statistics.data.gov.uk/id/local-authority/43UM","WOKING BOROUGH COUNCIL","01/03/2021","14/04/2021","0000462795/001","WOKING ASIAN BUSINESS FORUM","01987900","14,000.00","CORPORATE STRATEGY - TOWN CENTRE FORUM","ECDEV CMG AGREED CONTINGENCY","H417","ECDEV CMG AGREED CONTINGENCY","CORPORATE STRATEGY","FACILITIES & MANAGEMENT SERVICES"
"http://statistics.data.gov.uk/id/local-authority/43UM","WOKING BOROUGH COUNCIL","01/04/2021","14/04/2021","0000464005/001","WOKING COMMUNITY TRANSPORT LTD","00046100","4,500.00","INDEPENDENT LIVING SERVICES - COMMUNITY TRANSPORT","GRANTS","H100","GRANTS","INDEPENDENT LIVING SERVICES","PUBLIC TRANSPORT"
"http://statistics.data.gov.uk/id/local-authority/43UM","WOKING BOROUGH COUNCIL","14/04/2021","14/04/2021","GPC/00014377","WOKING CONVENIENCE STORE","PROCUREMENT CARD","14.96","HOUSING SERVICES - HOME IMPS & BEN AGENCY","HANDYPERSON MATERIALS","G201","BATTERIES FOR HANDYPERSON SERVICE","GARY COCKBURN","MISC FOOD STORES - DEFAULT"
"http://statistics.data.gov.uk/id/local-authority/43UM","WOKING BOROUGH COUNCIL","08/04/2021","14/04/2021","0000463985/001","WOKING NEWS & MAIL LIMITED","40249900","100.00","CORPORATE STRATEGY - TOWN CENTRE FORUM","MARKETING","H406","MARKETING","CORPORATE STRATEGY","FACILITIES & MANAGEMENT SERVICES"
"http://statistics.data.gov.uk/id/local-authority/43UM","WOKING BOROUGH COUNCIL","09/04/2021","14/04/2021","0000464152/001","WOKING PEOPLE OF FAITH","01916800","3,750.00","CORPORATE STRATEGY - GRANTS TO ORGANISATION","GRANTS","H100","GRANTS","CORPORATE STRATEGY","FINANCIAL SERVICES"
"http://statistics.data.gov.uk/id/local-authority/43UM","WOKING BOROUGH COUNCIL","02/04/2021","14/04/2021","0000464031/001","WOKING SHOPMOBILITY","00591100","3,125.00","CORPORATE STRATEGY - GRANTS TO ORGANISATION","GRANTS","H100","GRANTS","CORPORATE STRATEGY","FINANCIAL SERVICES"
"http://statistics.data.gov.uk/id/local-authority/43UM","WOKING BOROUGH COUNCIL","14/04/2021","14/04/2021","GPC/00014374","WORTHING COUNTRY C","PROCUREMENT CARD","233.00","REVENUES AND BENEFITS - COUNCIL TAX","COURT COSTS","H620","HEARING","MR T STOCKS","FINES"
"http://statistics.data.gov.uk/id/local-authority/43UM","WOKING BOROUGH COUNCIL","14/04/2021","14/04/2021","GPC/00014375","WORTHING COUNTRY C","PROCUREMENT CARD","676.50","REVENUES AND BENEFITS - COUNCIL TAX","COURT COSTS","H620","HEARING","MR T STOCKS","FINES"
"http://statistics.data.gov.uk/id/local-authority/43UM","WOKING BOROUGH COUNCIL","14/04/2021","14/04/2021","GPC/00014372","WWWGWR-FASTENERS.C","PROCUREMENT CARD","15.42","ASSET MANAGEMENT - WOLSEY PLACE","PEACOCKS R&M HOLDING","D108","NUTS FOR ABOARDS ","MR D JONES","ARCHITECTURAL/ENG/SURVEY"
"http://statistics.data.gov.uk/id/local-authority/43UM","WOKING BOROUGH COUNCIL","15/04/2021","15/04/2021","GPC/00014390","ASDA STORES 4823","PROCUREMENT CARD","11.40","INDEPENDENT LIVING SERVICES - PPPF PERSONALISATION & PREV FD","MAIN CONTRACTOR","Q200","COMMON ROOMS","HANNAH ANDREWS","GROCERY STORES"
"http://statistics.data.gov.uk/id/local-authority/43UM","WOKING BOROUGH COUNCIL","15/04/2021","15/04/2021","GPC/00014392","BOOKER LIMITED BYFLEET","PROCUREMENT CARD","51.19","INDEPENDENT LIVING SERVICES - MEALS SERVICE - ST MARYS","PROVISIONS","G410","ADDITIONAL CAFE STOCK","MR JONNY MOLES","CATERERS"
"http://statistics.data.gov.uk/id/local-authority/43UM","WOKING BOROUGH COUNCIL","15/04/2021","15/04/2021","GPC/00014391","EBAY O*01-06909-76376","PROCUREMENT CARD","72.13","CORPORATE STRATEGY - COVID -19 PANDEMIC","MAIN CONTRACTOR","Q200","BWD CT PK PAV REPAIR","RICK HAZLEWOOD","DEPARTMENT STORES"
"http://statistics.data.gov.uk/id/local-authority/43UM","WOKING BOROUGH COUNCIL","15/04/2021","15/04/2021","GPC/00014386","HM LAND REGISTRY - ONLINE","PROCUREMENT CARD","3.00","CORPORATE STRATEGY - LEGAL","LAND REGISTRY FEE","H425","LAND REG ","PHILLIPA DAVID","GOV'T SERV - DEFAULT"
"http://statistics.data.gov.uk/id/local-authority/43UM","WOKING BOROUGH COUNCIL","15/04/2021","15/04/2021","GPC/00014393","HOME BARGAINS BYFLEET","PROCUREMENT CARD","8.30","INDEPENDENT LIVING SERVICES - PPPF PERSONALISATION & PREV FD","MAIN CONTRACTOR","Q200","COMMON ROOMS","HANNAH ANDREWS","HARDWARE STORES"
"http://statistics.data.gov.uk/id/local-authority/43UM","WOKING BOROUGH COUNCIL","15/04/2021","15/04/2021","GPC/00014387","RYMAN","PROCUREMENT CARD","98.96","CORPORATE STRATEGY - BOROUGH ELECTIONS","EQUIPMENT","G100","POSTAL VOTE EQUIPMENT","EMERA CHOWN","STATIONERY STORES"
"http://statistics.data.gov.uk/id/local-authority/43UM","WOKING BOROUGH COUNCIL","15/04/2021","15/04/2021","GPC/00014382","RYMAN","PROCUREMENT CARD","8.33","CORPORATE STRATEGY - BOROUGH ELECTIONS","STATIONERY","G620","PRINTER PAPER ELECTION","IOANNA KOUTSIONI","STATIONERY STORES"
"http://statistics.data.gov.uk/id/local-authority/43UM","WOKING BOROUGH COUNCIL","15/04/2021","15/04/2021","GPC/00014382","RYMAN","PROCUREMENT CARD","9.99","CORPORATE STRATEGY - COUNTY ELECTIONS","STATIONERY","G620","PRINTER PAPER ELECTION","IOANNA KOUTSIONI","STATIONERY STORES"
"http://statistics.data.gov.uk/id/local-authority/43UM","WOKING BOROUGH COUNCIL","15/04/2021","15/04/2021","GPC/00014382","RYMAN","PROCUREMENT CARD","10.00","CORPORATE STRATEGY - POLICE & CRIME COMMISSIONER","STATIONERY","G620","PRINTER PAPER ELECTION","IOANNA KOUTSIONI","STATIONERY STORES"
"http://statistics.data.gov.uk/id/local-authority/43UM","WOKING BOROUGH COUNCIL","15/04/2021","15/04/2021","GPC/00014385","SAINSBURYS S/MKTS","PROCUREMENT CARD","9.76","CORPORATE STRATEGY - BOROUGH ELECTIONS","EQUIPMENT","G100","TEA & COFFEE ETC FOR POSTAL VOTE STAFF","BECKY CAPON","GROCERY STORES"
"http://statistics.data.gov.uk/id/local-authority/43UM","WOKING BOROUGH COUNCIL","15/04/2021","15/04/2021","GPC/00014385","SAINSBURYS S/MKTS","PROCUREMENT CARD","9.76","CORPORATE STRATEGY - COUNTY ELECTIONS","EQUIPMENT","G100","TEA & COFFEE ETC FOR POSTAL VOTE STAFF","BECKY CAPON","GROCERY STORES"
"http://statistics.data.gov.uk/id/local-authority/43UM","WOKING BOROUGH COUNCIL","15/04/2021","15/04/2021","GPC/00014385","SAINSBURYS S/MKTS","PROCUREMENT CARD","9.76","CORPORATE STRATEGY - POLICE & CRIME COMMISSIONER","EQUIPMENT","G100","TEA & COFFEE ETC FOR POSTAL VOTE STAFF","BECKY CAPON","GROCERY STORES"
"http://statistics.data.gov.uk/id/local-authority/43UM","WOKING BOROUGH COUNCIL","15/04/2021","15/04/2021","GPC/00014384","SCREWFIX DIRECT","PROCUREMENT CARD","41.65","ASSET MANAGEMENT - FACILITIES MANAGEMENT","FACILITIES MANAGEMENT REPAIRS","D908","NEW LOCK FOR CLEANERS STORE","MR D JONES","LUMBER/BUILD SUPPLY STORES"
"http://statistics.data.gov.uk/id/local-authority/43UM","WOKING BOROUGH COUNCIL","15/04/2021","15/04/2021","GPC/00014379","SCREWFIX DIRECT","PROCUREMENT CARD","19.15","HOUSING SERVICES - HOME IMPS & BEN AGENCY","HANDYPERSON MATERIALS","G201","HANDYPERSON MATERIALS","IAN DEANE","LUMBER/BUILD SUPPLY STORES"
"http://statistics.data.gov.uk/id/local-authority/43UM","WOKING BOROUGH COUNCIL","15/04/2021","15/04/2021","GPC/00014383","SCREWFIX DIRECT","PROCUREMENT CARD","44.97","CORPORATE STRATEGY - COVID -19 PANDEMIC","MAIN CONTRACTOR","Q200","WEST BYF PAV SHOWER","RICK HAZLEWOOD","LUMBER/BUILD SUPPLY STORES"
"http://statistics.data.gov.uk/id/local-authority/43UM","WOKING BOROUGH COUNCIL","15/04/2021","15/04/2021","GPC/00014388","SCREWFIX DIRECT","PROCUREMENT CARD","4.15","CORPORATE STRATEGY - COVID -19 PANDEMIC","MAIN CONTRACTOR","Q200","PAV GUTTER","RICK HAZLEWOOD","LUMBER/BUILD SUPPLY STORES"
"http://statistics.data.gov.uk/id/local-authority/43UM","WOKING BOROUGH COUNCIL","15/04/2021","15/04/2021","GPC/00014389","TOOLSTATION UK","PROCUREMENT CARD","31.83","CORPORATE STRATEGY - BOROUGH ELECTIONS","EQUIPMENT","G100","GANG EXTENSION LEAD ELECTION","IOANNA KOUTSIONI","HARDWARE STORES"
"http://statistics.data.gov.uk/id/local-authority/43UM","WOKING BOROUGH COUNCIL","15/04/2021","15/04/2021","GPC/00014389","TOOLSTATION UK","PROCUREMENT CARD","38.19","CORPORATE STRATEGY - COUNTY ELECTIONS","EQUIPMENT","G100","GANG EXTENSION LEAD ELECTION","IOANNA KOUTSIONI","HARDWARE STORES"
"http://statistics.data.gov.uk/id/local-authority/43UM","WOKING BOROUGH COUNCIL","15/04/2021","15/04/2021","GPC/00014389","TOOLSTATION UK","PROCUREMENT CARD","38.20","CORPORATE STRATEGY - POLICE & CRIME COMMISSIONER","EQUIPMENT","G100","GANG EXTENSION LEAD ELECTION","IOANNA KOUTSIONI","HARDWARE STORES"
"http://statistics.data.gov.uk/id/local-authority/43UM","WOKING BOROUGH COUNCIL","15/04/2021","15/04/2021","GPC/00014380","WAITROSE 181","PROCUREMENT CARD","6.73","INDEPENDENT LIVING SERVICES - BROCKHILL EXTRA CARE","STEP DOWN","H300","STEP DOWN ESSENTIALS","MRS M CHILCOTT","GROCERY STORES"
"http://statistics.data.gov.uk/id/local-authority/43UM","WOKING BOROUGH COUNCIL","15/04/2021","15/04/2021","GPC/00014381","WWW.MONEYCLAIM.GOV","PROCUREMENT CARD","1,225.53","CORPORATE STRATEGY - CORPORATE & MAYORAL SUPPORT","PROCUREMENT CARD","H990","COUNTY COURT FEE","EMERA CHOWN","GOV'T SERV - DEFAULT"
"http://statistics.data.gov.uk/id/local-authority/43UM","WOKING BOROUGH COUNCIL","16/04/2021","16/04/2021","GPC/00014399","3C_*WOKING BOROUGH COUNC","PROCUREMENT CARD","5.83","INDEPENDENT LIVING SERVICES - FAMILY CENTRES","PARKING COSTS","F510","PARKING TOWN CENTRE MEETINGS","NICOLA NORMAN","AUTO PARKING LOTS/GARAGES"
"http://statistics.data.gov.uk/id/local-authority/43UM","WOKING BOROUGH COUNCIL","16/04/2021","16/04/2021","GPC/00014406","AMAZON PRIME","PROCUREMENT CARD","6.66","FINANCIAL SERVICES - BROCKHILL SOCIAL FUND","MISCELLANEOUS EXPENSES","X827","AMAZON ","MRS M CHILCOTT","CONTINUITY/SUBSCRIPTION MERCHANT"
"http://statistics.data.gov.uk/id/local-authority/43UM","WOKING BOROUGH COUNCIL","16/04/2021","16/04/2021","GPC/00014397","ASDA GEORGE COM LEEDS","PROCUREMENT CARD","77.00","INDEPENDENT LIVING SERVICES - PPPF PERSONALISATION & PREV FD","MAIN CONTRACTOR","Q200","COMMON ROOM","HANNAH ANDREWS","GROCERY STORES"
"http://statistics.data.gov.uk/id/local-authority/43UM","WOKING BOROUGH COUNCIL","31/03/2021","16/04/2021","0000464079/001","BOTTOMLINE TECHNOLOGIES LIMITED","40903700","445.56","INFORMATION TECHNOLOGY - I.T.S. ICT","HOSTED SYSTEMS","G198","HOSTED SYSTEMS","INFORMATION TECHNOLOGY","INFORMATION COMMUNICATION TECHNOLOGY"
"http://statistics.data.gov.uk/id/local-authority/43UM","WOKING BOROUGH COUNCIL","16/04/2021","16/04/2021","GPC/00014407","CO-OP GROUP 310393","PROCUREMENT CARD","4.40","INDEPENDENT LIVING SERVICES - MEALS SERVICE - ST MARYS","PROVISIONS","G410","CAFE MILK","MR JONNY MOLES","GROCERY STORES"
"http://statistics.data.gov.uk/id/local-authority/43UM","WOKING BOROUGH COUNCIL","16/04/2021","16/04/2021","GPC/00014402","COURSRA3SBCARKUWU218H","PROCUREMENT CARD","30.83","CORPORATE MANAGEMENT GROUP - STAFF TRAINING/GENERAL COSTS","TRAINING - CORPORATE","A910","PYTHON TRAINING COURSE","MRS L M BEATTIE","SCHOOLS - DEFAULT"
"http://statistics.data.gov.uk/id/local-authority/43UM","WOKING BOROUGH COUNCIL","13/04/2021","16/04/2021","0030002799/001","DAVITT JONES BOULD","40370200","352,800.00","ASSET MANAGEMENT - HIF WTC FLT3,4-5 GUILDFORD RD","PURCHASE PRICE","Q100","PURCHASE PRICE","ASSET MANAGEMENT","LEGAL SERVICES"
"http://statistics.data.gov.uk/id/local-authority/43UM","WOKING BOROUGH COUNCIL","13/04/2021","16/04/2021","0030002799/004","DAVITT JONES BOULD","40370200","135.00","ASSET MANAGEMENT - HIF WTC FLT3,4-5 GUILDFORD RD","LAND REG/SEARCHFEE","Q140","LAND REG/SEARCHFEE","ASSET MANAGEMENT","LEGAL SERVICES"
"http://statistics.data.gov.uk/id/local-authority/43UM","WOKING BOROUGH COUNCIL","13/04/2021","16/04/2021","0030002799/003","DAVITT JONES BOULD","40370200","11,760.00","ASSET MANAGEMENT - HIF WTC FLT3,4-5 GUILDFORD RD","STAMP DUTIES","Q150","STAMP DUTIES","ASSET MANAGEMENT","LEGAL SERVICES"
"http://statistics.data.gov.uk/id/local-authority/43UM","WOKING BOROUGH COUNCIL","13/04/2021","16/04/2021","0030002799/002","DAVITT JONES BOULD","40370200","876.72","ASSET MANAGEMENT - HIF WTC FLT3,4-5 GUILDFORD RD","3RD PARTY FEES","Q193","3RD PARTY FEES","ASSET MANAGEMENT","LEGAL SERVICES"
"http://statistics.data.gov.uk/id/local-authority/43UM","WOKING BOROUGH COUNCIL","16/04/2021","16/04/2021","GPC/00014409","DUNELM","PROCUREMENT CARD","45.83","INDEPENDENT LIVING SERVICES - PPPF PERSONALISATION & PREV FD","MAIN CONTRACTOR","Q200","COMMON ROOMS","HANNAH ANDREWS","FURNITURE/EQUIP STORES"
"http://statistics.data.gov.uk/id/local-authority/43UM","WOKING BOROUGH COUNCIL","08/03/2021","16/04/2021","0030002796/001","HMRC SHIPLEY","01533400","8,160.00","ASSET MANAGEMENT - HIF WTC 12 WAVERLEY COURT","STAMP DUTIES","Q150","STAMP DUTIES","ASSET MANAGEMENT","LEGAL SERVICES"
"http://statistics.data.gov.uk/id/local-authority/43UM","WOKING BOROUGH COUNCIL","16/04/2021","16/04/2021","GPC/00014408","LOYD - COMMERCIAL WAY","PROCUREMENT CARD","100.00","HOUSING SERVICES - SYRIAN REFUGEE FAMILES","CONTRIBUTION","Q623","FAMILY CASH","PHILIP OGLESBY","FINANCIAL INST/AUTO CASH"
"http://statistics.data.gov.uk/id/local-authority/43UM","WOKING BOROUGH COUNCIL","16/04/2021","16/04/2021","GPC/00014405","MFG GOLDSWORTH PARK SERVI","PROCUREMENT CARD","80.94","ASSET MANAGEMENT - BUILDING SERVICES","PETROL","F200","FUEL FOR VAN - C NORTON","MR C NORTON","SERVICE STATIONS"
"http://statistics.data.gov.uk/id/local-authority/43UM","WOKING BOROUGH COUNCIL","16/04/2021","16/04/2021","GPC/00014395","PREMIER INN 44536370","PROCUREMENT CARD","26.25","CORPORATE STRATEGY - CORPORATE STRATEGY GENERAL EXP","TRAVEL EXPENSES-OFFICERS","F600","JOANNE MCINTOSH ACCOMMODATION ELECTION","IOANNA KOUTSIONI","PREMIER INN"
"http://statistics.data.gov.uk/id/local-authority/43UM","WOKING BOROUGH COUNCIL","16/04/2021","16/04/2021","GPC/00014403","PREMIER INN 44536370","PROCUREMENT CARD","26.25","CORPORATE STRATEGY - CORPORATE STRATEGY GENERAL EXP","TRAVEL EXPENSES-OFFICERS","F600","EMERA CHOWN ACCOMMODATION ELECTION","IOANNA KOUTSIONI","PREMIER INN"
"http://statistics.data.gov.uk/id/local-authority/43UM","WOKING BOROUGH COUNCIL","16/04/2021","16/04/2021","GPC/00014413","PREMIER INN 44536370","PROCUREMENT CARD","52.50","CORPORATE STRATEGY - CORPORATE STRATEGY GENERAL EXP","TRAVEL EXPENSES-OFFICERS","F600","FRANK JEFFREY ACCOMMODATION ELECTION","IOANNA KOUTSIONI","PREMIER INN"
"http://statistics.data.gov.uk/id/local-authority/43UM","WOKING BOROUGH COUNCIL","16/04/2021","16/04/2021","0030002800/001","PUBLIC WORKS LOAN BOARD","00021400","246,734.15","FINANCIAL SERVICES - INTEREST PAYABLE & SIMILAR CHG","PWLB ANNUITY","U111","PWLB ANNUITY","FINANCIAL SERVICES","FINANCIAL SERVICES"
"http://statistics.data.gov.uk/id/local-authority/43UM","WOKING BOROUGH COUNCIL","13/04/2021","16/04/2021","0030002794/001","PUBLIC WORKS LOAN BOARD","00021400","78,200.00","FINANCIAL SERVICES - INTEREST PAYABLE & SIMILAR CHG","PWLB MATURITY LOAN","U112","PWLB MATURITY LOAN","FINANCIAL SERVICES","FINANCIAL SERVICES"
"http://statistics.data.gov.uk/id/local-authority/43UM","WOKING BOROUGH COUNCIL","16/04/2021","16/04/2021","GPC/00014401","ROWLANDS PHARMACY","PROCUREMENT CARD","11.65","INDEPENDENT LIVING SERVICES - BROCKHILL EXTRA CARE","EQUIPMENT","G100","URINE BOTTLES","IAN DEANE","DRUG STORES AND PHARMACIES"
"http://statistics.data.gov.uk/id/local-authority/43UM","WOKING BOROUGH COUNCIL","01/06/2020","16/04/2021","0000464088/001","SAGE UK","40900000","333.25","INFORMATION TECHNOLOGY - I.T.S. ICT","PC & SERVER SYSTEMS SOFTWARE","G193","PC & SERVER SYSTEMS SOFTWARE","INFORMATION TECHNOLOGY","INFORMATION COMMUNICATION TECHNOLOGY"
"http://statistics.data.gov.uk/id/local-authority/43UM","WOKING BOROUGH COUNCIL","01/04/2021","16/04/2021","0000464108/001","SAGE UK","40900000","333.25","INFORMATION TECHNOLOGY - I.T.S. ICT","PC & SERVER SYSTEMS SOFTWARE","G193","PC & SERVER SYSTEMS SOFTWARE","INFORMATION TECHNOLOGY","INFORMATION COMMUNICATION TECHNOLOGY"
"http://statistics.data.gov.uk/id/local-authority/43UM","WOKING BOROUGH COUNCIL","16/04/2021","16/04/2021","GPC/00014404","SAINSBURYS S/MKTS","PROCUREMENT CARD","0.76","CORPORATE STRATEGY - BOROUGH ELECTIONS","EQUIPMENT","G100","TEA & COFFEE POSTAL VOTE STAFF","BECKY CAPON","GROCERY STORES"
"http://statistics.data.gov.uk/id/local-authority/43UM","WOKING BOROUGH COUNCIL","16/04/2021","16/04/2021","GPC/00014404","SAINSBURYS S/MKTS","PROCUREMENT CARD","0.76","CORPORATE STRATEGY - COUNTY ELECTIONS","EQUIPMENT","G100","TEA & COFFEE POSTAL VOTE STAFF","BECKY CAPON","GROCERY STORES"
"http://statistics.data.gov.uk/id/local-authority/43UM","WOKING BOROUGH COUNCIL","16/04/2021","16/04/2021","GPC/00014404","SAINSBURYS S/MKTS","PROCUREMENT CARD","0.78","CORPORATE STRATEGY - POLICE & CRIME COMMISSIONER","EQUIPMENT","G100","TEA & COFFEE POSTAL VOTE STAFF","BECKY CAPON","GROCERY STORES"
"http://statistics.data.gov.uk/id/local-authority/43UM","WOKING BOROUGH COUNCIL","16/04/2021","16/04/2021","GPC/00014400","SCREWFIX DIRECT","PROCUREMENT CARD","46.61","CORPORATE STRATEGY - BOROUGH ELECTIONS","EQUIPMENT","G100","MASKING TAPE ELECTION","IOANNA KOUTSIONI","LUMBER/BUILD SUPPLY STORES"
"http://statistics.data.gov.uk/id/local-authority/43UM","WOKING BOROUGH COUNCIL","16/04/2021","16/04/2021","GPC/00014400","SCREWFIX DIRECT","PROCUREMENT CARD","55.93","CORPORATE STRATEGY - COUNTY ELECTIONS","EQUIPMENT","G100","MASKING TAPE ELECTION","IOANNA KOUTSIONI","LUMBER/BUILD SUPPLY STORES"
"http://statistics.data.gov.uk/id/local-authority/43UM","WOKING BOROUGH COUNCIL","16/04/2021","16/04/2021","GPC/00014400","SCREWFIX DIRECT","PROCUREMENT CARD","55.94","CORPORATE STRATEGY - POLICE & CRIME COMMISSIONER","EQUIPMENT","G100","MASKING TAPE ELECTION","IOANNA KOUTSIONI","LUMBER/BUILD SUPPLY STORES"
"http://statistics.data.gov.uk/id/local-authority/43UM","WOKING BOROUGH COUNCIL","15/04/2021","16/04/2021","0030002798/002","WEST YORKSHIRE COMBINED AUTHORITY","40599500","22,520.55","FINANCIAL SERVICES - INTEREST PAYABLE & SIMILAR CHG","TEMP LOANS","U115","TEMP LOANS","FINANCIAL SERVICES","FINANCIAL SERVICES"
"http://statistics.data.gov.uk/id/local-authority/43UM","WOKING BOROUGH COUNCIL","16/04/2021","16/04/2021","GPC/00014398","WH SMITH","PROCUREMENT CARD","9.99","CORPORATE STRATEGY - PUBLIC RELATIONS","GENERAL PUBLIC RELATIONS EXPNS","H915","DOUBLE-SIDED STICKY TAPE AND MIC JACK","MR AC DENNER","NEWS DEALERS/NEWSSTANDS"
"http://statistics.data.gov.uk/id/local-authority/43UM","WOKING BOROUGH COUNCIL","17/04/2021","17/04/2021","GPC/00014410","LIDL GB LONDON","PROCUREMENT CARD","8.62","INDEPENDENT LIVING SERVICES - MEALS SERVICE - ST MARYS","PROVISIONS","G410","CAFE STOCK","MR JONNY MOLES","GROCERY STORES"
"http://statistics.data.gov.uk/id/local-authority/43UM","WOKING BOROUGH COUNCIL","17/04/2021","17/04/2021","GPC/00014411","SAINSBURYS S/MKTS","PROCUREMENT CARD","0.73","CORPORATE STRATEGY - BOROUGH ELECTIONS","EQUIPMENT","G100","TEA & COFFEE POSTAL VOTE STAFF","BECKY CAPON","GROCERY STORES"
"http://statistics.data.gov.uk/id/local-authority/43UM","WOKING BOROUGH COUNCIL","17/04/2021","17/04/2021","GPC/00014411","SAINSBURYS S/MKTS","PROCUREMENT CARD","0.73","CORPORATE STRATEGY - COUNTY ELECTIONS","EQUIPMENT","G100","TEA & COFFEE POSTAL VOTE STAFF","BECKY CAPON","GROCERY STORES"
"http://statistics.data.gov.uk/id/local-authority/43UM","WOKING BOROUGH COUNCIL","17/04/2021","17/04/2021","GPC/00014411","SAINSBURYS S/MKTS","PROCUREMENT CARD","0.72","CORPORATE STRATEGY - POLICE & CRIME COMMISSIONER","EQUIPMENT","G100","TEA & COFFEE POSTAL VOTE STAFF","BECKY CAPON","GROCERY STORES"
"http://statistics.data.gov.uk/id/local-authority/43UM","WOKING BOROUGH COUNCIL","17/04/2021","17/04/2021","GPC/00014412","TESCO STORES 2017","PROCUREMENT CARD","32.00","INDEPENDENT LIVING SERVICES - PPPF PERSONALISATION & PREV FD","MAIN CONTRACTOR","Q200","COMMON ROOM CUTLERY","JULIE COWELL","GROCERY STORES"
"http://statistics.data.gov.uk/id/local-authority/43UM","WOKING BOROUGH COUNCIL","17/04/2021","17/04/2021","GPC/00014419","VIKING UK","PROCUREMENT CARD","4.30","CORPORATE STRATEGY - BOROUGH ELECTIONS","STATIONERY","G620","GREEN REFUSE BAGS ELECTION","IOANNA KOUTSIONI","STATIONERY/OFFICE SUPPLIES"
"http://statistics.data.gov.uk/id/local-authority/43UM","WOKING BOROUGH COUNCIL","17/04/2021","17/04/2021","GPC/00014419","VIKING UK","PROCUREMENT CARD","14.98","CORPORATE STRATEGY - BOROUGH ELECTIONS","STATIONERY","G620","GREEN REFUSE BAGS ELECTION","IOANNA KOUTSIONI","STATIONERY/OFFICE SUPPLIES"
"http://statistics.data.gov.uk/id/local-authority/43UM","WOKING BOROUGH COUNCIL","17/04/2021","17/04/2021","GPC/00014419","VIKING UK","PROCUREMENT CARD","5.16","CORPORATE STRATEGY - COUNTY ELECTIONS","STATIONERY","G620","GREEN REFUSE BAGS ELECTION","IOANNA KOUTSIONI","STATIONERY/OFFICE SUPPLIES"
"http://statistics.data.gov.uk/id/local-authority/43UM","WOKING BOROUGH COUNCIL","17/04/2021","17/04/2021","GPC/00014419","VIKING UK","PROCUREMENT CARD","17.98","CORPORATE STRATEGY - COUNTY ELECTIONS","STATIONERY","G620","GREEN REFUSE BAGS ELECTION","IOANNA KOUTSIONI","STATIONERY/OFFICE SUPPLIES"
"http://statistics.data.gov.uk/id/local-authority/43UM","WOKING BOROUGH COUNCIL","17/04/2021","17/04/2021","GPC/00014419","VIKING UK","PROCUREMENT CARD","5.17","CORPORATE STRATEGY - POLICE & CRIME COMMISSIONER","STATIONERY","G620","GREEN REFUSE BAGS ELECTION","IOANNA KOUTSIONI","STATIONERY/OFFICE SUPPLIES"
"http://statistics.data.gov.uk/id/local-authority/43UM","WOKING BOROUGH COUNCIL","17/04/2021","17/04/2021","GPC/00014419","VIKING UK","PROCUREMENT CARD","18.00","CORPORATE STRATEGY - POLICE & CRIME COMMISSIONER","STATIONERY","G620","GREEN REFUSE BAGS ELECTION","IOANNA KOUTSIONI","STATIONERY/OFFICE SUPPLIES"
"http://statistics.data.gov.uk/id/local-authority/43UM","WOKING BOROUGH COUNCIL","18/04/2021","18/04/2021","GPC/00014396","AMAZON.CO.UK","PROCUREMENT CARD","250.70","CORPORATE STRATEGY - CIVIC EXPENSES","STATIONERY","G620","SECURITY SHREDDER","MRS F M WALTHER","OTHER DIRECT MARKETERS"
"http://statistics.data.gov.uk/id/local-authority/43UM","WOKING BOROUGH COUNCIL","18/04/2021","18/04/2021","GPC/00014394","BOOKERECOMM","PROCUREMENT CARD","54.72","INDEPENDENT LIVING SERVICES - MEALS SERVICE - BROCKHILL","PROVISIONS","G410","GROCERIES FOR KITCHENS","REBECCA STEVENS","CATERERS"
"http://statistics.data.gov.uk/id/local-authority/43UM","WOKING BOROUGH COUNCIL","18/04/2021","18/04/2021","GPC/00014394","BOOKERECOMM","PROCUREMENT CARD","151.67","INDEPENDENT LIVING SERVICES - MEALS SERVICE - BROCKHILL","PROVISIONS","G410","GROCERIES FOR KITCHENS","REBECCA STEVENS","CATERERS"
"http://statistics.data.gov.uk/id/local-authority/43UM","WOKING BOROUGH COUNCIL","18/04/2021","18/04/2021","GPC/00014414","BOOKERECOMM","PROCUREMENT CARD","7.55","INDEPENDENT LIVING SERVICES - MEALS SERVICE - BROCKHILL","PROVISIONS","G410","GROCERIES FOR KITCHENS","REBECCA STEVENS","CATERERS"
"http://statistics.data.gov.uk/id/local-authority/43UM","WOKING BOROUGH COUNCIL","18/04/2021","18/04/2021","GPC/00014394","BOOKERECOMM","PROCUREMENT CARD","25.37","INDEPENDENT LIVING SERVICES - MEALS SERVICE - ST MARYS","PROVISIONS","G410","GROCERIES FOR KITCHENS","REBECCA STEVENS","CATERERS"
"http://statistics.data.gov.uk/id/local-authority/43UM","WOKING BOROUGH COUNCIL","18/04/2021","18/04/2021","GPC/00014394","BOOKERECOMM","PROCUREMENT CARD","18.88","INDEPENDENT LIVING SERVICES - MEALS SERVICE -THE VYNE","PROVISIONS","G410","GROCERIES FOR KITCHENS","REBECCA STEVENS","CATERERS"
"http://statistics.data.gov.uk/id/local-authority/43UM","WOKING BOROUGH COUNCIL","19/04/2021","19/04/2021","GPC/00014416","ALLOY SALES LTD","PROCUREMENT CARD","43.41","ASSET MANAGEMENT - FACILITIES MANAGEMENT","FACILITIES MANAGEMENT REPAIRS","D908","RECEPTION COUNTER SCREEN","MR R D SMITH","CONSTRUCTION MATERIALS - DEF"
"http://statistics.data.gov.uk/id/local-authority/43UM","WOKING BOROUGH COUNCIL","19/04/2021","19/04/2021","GPC/00014417","AMZNMKTPLACE","PROCUREMENT CARD","8.71","INDEPENDENT LIVING SERVICES - MEALS SERVICE - BROCKHILL","PROVISIONS","G410","MUFFIN CASES","REBECCA STEVENS","MISC SPECIALITY RETAIL"
"http://statistics.data.gov.uk/id/local-authority/43UM","WOKING BOROUGH COUNCIL","19/04/2021","19/04/2021","GPC/00014420","ASDA STORES 4823","PROCUREMENT CARD","14.44","INDEPENDENT LIVING SERVICES - HOME SUPPORT SERVICE","EQUIPMENT","G100","TOILETRIES","JULIE COWELL","GROCERY STORES"
"http://statistics.data.gov.uk/id/local-authority/43UM","WOKING BOROUGH COUNCIL","19/04/2021","19/04/2021","GPC/00014443","CHERTSEY SERVICE STATION","PROCUREMENT CARD","77.66","HOUSING SERVICES - HOME IMPS & BEN AGENCY","TRAVEL EXPENSES-OFFICERS","F600","FUEL FOR HANDYPERSON VAN","GARY COCKBURN","SERVICE STATIONS"
"http://statistics.data.gov.uk/id/local-authority/43UM","WOKING BOROUGH COUNCIL","19/04/2021","19/04/2021","GPC/00014415","EBAY O*16-06929-42330","PROCUREMENT CARD","38.25","INDEPENDENT LIVING SERVICES - HOME SUPPORT SERVICE","EQUIPMENT","G100","TOILETRIES","JULIE COWELL","DEPARTMENT STORES"
"http://statistics.data.gov.uk/id/local-authority/43UM","WOKING BOROUGH COUNCIL","19/04/2021","19/04/2021","GPC/00014422","EBAY O*16-06929-42331","PROCUREMENT CARD","14.57","INDEPENDENT LIVING SERVICES - HOME SUPPORT SERVICE","EQUIPMENT","G100","TOILETRIES","JULIE COWELL","DEPARTMENT STORES"
"http://statistics.data.gov.uk/id/local-authority/43UM","WOKING BOROUGH COUNCIL","19/04/2021","19/04/2021","GPC/00014423","HORACE SMITH LOCKSMITH","PROCUREMENT CARD","64.60","INDEPENDENT LIVING SERVICES - MOORCROFT","FIXTURES & FITTINGS - NEW","D800","NEW KEYS","RICHARD BUCKENHAM","HARDWARE STORES"
"http://statistics.data.gov.uk/id/local-authority/43UM","WOKING BOROUGH COUNCIL","19/04/2021","19/04/2021","GPC/00014418","SAINSBURYS S/MKTS","PROCUREMENT CARD","0.70","CORPORATE STRATEGY - BOROUGH ELECTIONS","EQUIPMENT","G100","TEA & COFFEE POSTAL VOTE STAFF","BECKY CAPON","GROCERY STORES"
"http://statistics.data.gov.uk/id/local-authority/43UM","WOKING BOROUGH COUNCIL","19/04/2021","19/04/2021","GPC/00014418","SAINSBURYS S/MKTS","PROCUREMENT CARD","0.70","CORPORATE STRATEGY - COUNTY ELECTIONS","EQUIPMENT","G100","TEA & COFFEE POSTAL VOTE STAFF","BECKY CAPON","GROCERY STORES"
"http://statistics.data.gov.uk/id/local-authority/43UM","WOKING BOROUGH COUNCIL","19/04/2021","19/04/2021","GPC/00014418","SAINSBURYS S/MKTS","PROCUREMENT CARD","0.70","CORPORATE STRATEGY - POLICE & CRIME COMMISSIONER","EQUIPMENT","G100","TEA & COFFEE POSTAL VOTE STAFF","BECKY CAPON","GROCERY STORES"
"http://statistics.data.gov.uk/id/local-authority/43UM","WOKING BOROUGH COUNCIL","19/04/2021","19/04/2021","GPC/00014421","WOKING BOROUGH COUNCIL","PROCUREMENT CARD","2.90","HOUSING SERVICES - HOMELINK","TRAVEL EXPENSES-OFFICERS","F600","PARKING WEST BYFLEET SURGERY","GARY CORDERY","GOV'T SERV - DEFAULT"
"http://statistics.data.gov.uk/id/local-authority/43UM","WOKING BOROUGH COUNCIL","20/04/2021","20/04/2021","GPC/00014425","AMZNMKTPLACE","PROCUREMENT CARD","16.65","CORPORATE STRATEGY - THE JUNCTION","PROVISIONS","G410","JUNCTION CLEANING","RICHARD BUCKENHAM","MISC SPECIALITY RETAIL"
"http://statistics.data.gov.uk/id/local-authority/43UM","WOKING BOROUGH COUNCIL","20/04/2021","20/04/2021","GPC/00014438","AMZNMKTPLACE","PROCUREMENT CARD","149.12","CORPORATE STRATEGY - WOMENS SUPPORT CENTRE SURREY","#N/A","H492","AMZNMKTPLACE","LEANNE J SPILLER","MISC SPECIALITY RETAIL"
"http://statistics.data.gov.uk/id/local-authority/43UM","WOKING BOROUGH COUNCIL","20/04/2021","20/04/2021","GPC/00014434","AMZNMKTPLACE AMAZON.CO.UK","PROCUREMENT CARD","232.50","CORPORATE STRATEGY - WOMENS SUPPORT CENTRE SURREY","#N/A","H492","AMZNMKTPLACE ","LEANNE J SPILLER","MISC SPECIALITY RETAIL"
"http://statistics.data.gov.uk/id/local-authority/43UM","WOKING BOROUGH COUNCIL","20/04/2021","20/04/2021","GPC/00014454","AMZNMKTPLACE AMAZON.CO.UK","PROCUREMENT CARD","14.32","LEISURE SERVICES - SHEERWATER LEISURE CENTRE","NEW EQUIPMENT","G105","DOOR BELL FOR LEISURE CENTRE","ROSE E L BLACKLEY","MISC SPECIALITY RETAIL"
"http://statistics.data.gov.uk/id/local-authority/43UM","WOKING BOROUGH COUNCIL","20/04/2021","20/04/2021","GPC/00014440","BOOKER LIMITED BYFLEET","PROCUREMENT CARD","4.79","INDEPENDENT LIVING SERVICES - MEALS SERVICE - ST MARYS","PROVISIONS","G410","COFFEE TAKEAWAY LIDS","MR JONNY MOLES","CATERERS"
"http://statistics.data.gov.uk/id/local-authority/43UM","WOKING BOROUGH COUNCIL","20/04/2021","20/04/2021","GPC/00014436","CO-OP GROUP FOOD","PROCUREMENT CARD","8.80","INDEPENDENT LIVING SERVICES - MEALS SERVICE - ST MARYS","PROVISIONS","G410","CAFE MILK","MR JONNY MOLES","GROCERY STORES"
"http://statistics.data.gov.uk/id/local-authority/43UM","WOKING BOROUGH COUNCIL","20/04/2021","20/04/2021","GPC/00014442","DRAINAGE SUPERSTORE","PROCUREMENT CARD","130.21","NEIGHBOURHOOD SERVICES - ALLOTMENTS-GENERAL","GROUNDS MAINT-CONTRACTORS","D200","DUCTING FOR ALLOTMENTS","MR R D SMITH","MISC SPECIALITY RETAIL"
"http://statistics.data.gov.uk/id/local-authority/43UM","WOKING BOROUGH COUNCIL","20/04/2021","20/04/2021","GPC/00014427","HM LAND REGISTRY - ONLINE","PROCUREMENT CARD","3.00","CORPORATE STRATEGY - LEGAL","LAND REGISTRY FEE","H425","TITLE PLAN","PHILLIPA DAVID","GOV'T SERV - DEFAULT"
"http://statistics.data.gov.uk/id/local-authority/43UM","WOKING BOROUGH COUNCIL","20/04/2021","20/04/2021","GPC/00014437","HM LAND REGISTRY - ONLINE","PROCUREMENT CARD","6.00","CORPORATE STRATEGY - LEGAL","LAND REGISTRY FEE","H425","FREEHOLD","PHILLIPA DAVID","GOV'T SERV - DEFAULT"
"http://statistics.data.gov.uk/id/local-authority/43UM","WOKING BOROUGH COUNCIL","20/04/2021","20/04/2021","GPC/00014428","JTM PLUMBING LTD","PROCUREMENT CARD","310.41","NEIGHBOURHOOD SERVICES - ALLOTMENTS-GENERAL","GROUNDS MAINT-CONTRACTORS","D200","MATERIALS ALLOTMENTS WRAS","MR R D SMITH","PLUMBING/HEATING EQUIPMENT"
"http://statistics.data.gov.uk/id/local-authority/43UM","WOKING BOROUGH COUNCIL","20/04/2021","20/04/2021","GPC/00014439","PMATE LTD","PROCUREMENT CARD","241.70","NEIGHBOURHOOD SERVICES - ALLOTMENTS-GENERAL","GROUNDS MAINT-CONTRACTORS","D200","TAPS FOR ALLOTMENTS","MR R D SMITH","CHEMICALS/ALLIED PRODS - DEF"
"http://statistics.data.gov.uk/id/local-authority/43UM","WOKING BOROUGH COUNCIL","20/04/2021","20/04/2021","GPC/00014435","ROBERT DYAS HOLDNG LTD","PROCUREMENT CARD","8.74","ASSET MANAGEMENT - INTEGRATED TRANSPORT PLAN","MISCELLANEOUS EXPENSES","Q660","TOOLS FOR TOW CENTRE","FAOUZI SAFFAR","HARDWARE STORES"
"http://statistics.data.gov.uk/id/local-authority/43UM","WOKING BOROUGH COUNCIL","20/04/2021","20/04/2021","GPC/00014432","SAINSBURY'S S/MKT","PROCUREMENT CARD","15.50","ASSET MANAGEMENT - PEACOCK WALK MARKET","CLEANING MATERIALS","D920","CLEANING MATERIALS","STEPHEN BARRETT","GROCERY STORES"
"http://statistics.data.gov.uk/id/local-authority/43UM","WOKING BOROUGH COUNCIL","20/04/2021","20/04/2021","GPC/00014426","THE WORKS","PROCUREMENT CARD","17.92","INDEPENDENT LIVING SERVICES - FAMILY SUPPORT PROGRAMME","FAMILY ENABLING (FSP PROJECT)","H137","FAMILY ENABLING","MAGGIE HUSSAIN","DISCOUNT STORES"
"http://statistics.data.gov.uk/id/local-authority/43UM","WOKING BOROUGH COUNCIL","20/04/2021","20/04/2021","GPC/00014441","WAITROSE 181","PROCUREMENT CARD","1.15","INDEPENDENT LIVING SERVICES - BROCKHILL EXTRA CARE","STEP DOWN","H300","MILK FOR STEPDOWN","MRS M CHILCOTT","GROCERY STORES"
"http://statistics.data.gov.uk/id/local-authority/43UM","WOKING BOROUGH COUNCIL","20/04/2021","20/04/2021","GPC/00014433","WAITROSE 181","PROCUREMENT CARD","3.00","INDEPENDENT LIVING SERVICES - MEALS SERVICE - BROCKHILL","PROVISIONS","G410","CUCUMBERS FOR KITCHEN","MRS M CHILCOTT","GROCERY STORES"
"http://statistics.data.gov.uk/id/local-authority/43UM","WOKING BOROUGH COUNCIL","20/04/2021","20/04/2021","GPC/00014424","WICKES BUILDING","PROCUREMENT CARD","-3.12","INDEPENDENT LIVING SERVICES - MOORCROFT","R&M BUILDINGS - CONTRACTORS","D100","REFUND","RICHARD BUCKENHAM","LUMBER/BUILD SUPPLY STORES"
"http://statistics.data.gov.uk/id/local-authority/43UM","WOKING BOROUGH COUNCIL","20/04/2021","20/04/2021","GPC/00014430","WICKES WOKING","PROCUREMENT CARD","91.06","HOUSING SERVICES - HOME IMPS & BEN AGENCY","HANDYPERSON MATERIALS","G201","MANDYPERSON MATERIALS","JASON BALCHIN","HOME SUPPLY WAREHOUSE STORES"
"http://statistics.data.gov.uk/id/local-authority/43UM","WOKING BOROUGH COUNCIL","20/04/2021","20/04/2021","GPC/00014429","WWW.BANNERUK.COM","PROCUREMENT CARD","12.33","CORPORATE STRATEGY - BOROUGH ELECTIONS","EQUIPMENT","G100","ELECTIONS STATIONERY","SANDRA ARCHER","STATIONERY/OFFICE SUPPLIES"
"http://statistics.data.gov.uk/id/local-authority/43UM","WOKING BOROUGH COUNCIL","20/04/2021","20/04/2021","GPC/00014431","WWW.BANNERUK.COM","PROCUREMENT CARD","10.94","CORPORATE STRATEGY - BOROUGH ELECTIONS","EQUIPMENT","G100","ELECTIONS STATIONERY","SANDRA ARCHER","STATIONERY/OFFICE SUPPLIES"
"http://statistics.data.gov.uk/id/local-authority/43UM","WOKING BOROUGH COUNCIL","20/04/2021","20/04/2021","GPC/00014429","WWW.BANNERUK.COM","PROCUREMENT CARD","12.33","CORPORATE STRATEGY - COUNTY ELECTIONS","EQUIPMENT","G100","ELECTIONS STATIONERY","SANDRA ARCHER","STATIONERY/OFFICE SUPPLIES"
"http://statistics.data.gov.uk/id/local-authority/43UM","WOKING BOROUGH COUNCIL","20/04/2021","20/04/2021","GPC/00014431","WWW.BANNERUK.COM","PROCUREMENT CARD","10.94","CORPORATE STRATEGY - COUNTY ELECTIONS","EQUIPMENT","G100","ELECTIONS STATIONERY","SANDRA ARCHER","STATIONERY/OFFICE SUPPLIES"
"http://statistics.data.gov.uk/id/local-authority/43UM","WOKING BOROUGH COUNCIL","20/04/2021","20/04/2021","GPC/00014429","WWW.BANNERUK.COM","PROCUREMENT CARD","12.34","CORPORATE STRATEGY - POLICE & CRIME COMMISSIONER","EQUIPMENT","G100","ELECTIONS STATIONERY","SANDRA ARCHER","STATIONERY/OFFICE SUPPLIES"
"http://statistics.data.gov.uk/id/local-authority/43UM","WOKING BOROUGH COUNCIL","20/04/2021","20/04/2021","GPC/00014431","WWW.BANNERUK.COM","PROCUREMENT CARD","10.93","CORPORATE STRATEGY - POLICE & CRIME COMMISSIONER","EQUIPMENT","G100","ELECTIONS STATIONERY","SANDRA ARCHER","STATIONERY/OFFICE SUPPLIES"
"http://statistics.data.gov.uk/id/local-authority/43UM","WOKING BOROUGH COUNCIL","31/03/2021","21/04/2021","0000464081/001","3C PAYMENT UK LTD","01412600","2,000.00","NEIGHBOURHOOD SERVICES - VICTORIA WAY CAR PARK","CARD HANDLING CHARGE","H617","CARD HANDLING CHARGE","NEIGHBOURHOOD SERVICES","FINANCIAL SERVICES"
"http://statistics.data.gov.uk/id/local-authority/43UM","WOKING BOROUGH COUNCIL","21/04/2021","21/04/2021","0000003783/001","ABBEY DISCTRIBUTION LTD","40946100","-4,210.47","CORPORATE STRATEGY - BOROUGH ELECTIONS","EQUIPMENT","G100","EQUIPMENT","CORPORATE STRATEGY","FURNITURE & SOFT FURNISHINGS"
"http://statistics.data.gov.uk/id/local-authority/43UM","WOKING BOROUGH COUNCIL","05/03/2021","21/04/2021","0000463127/001","ABBEY DISCTRIBUTION LTD","40946100","4,210.47","CORPORATE STRATEGY - BOROUGH ELECTIONS","EQUIPMENT","G100","EQUIPMENT","CORPORATE STRATEGY","FURNITURE & SOFT FURNISHINGS"
"http://statistics.data.gov.uk/id/local-authority/43UM","WOKING BOROUGH COUNCIL","20/04/2021","21/04/2021","0000464373/001","ABBEY DISCTRIBUTION LTD","40946100","4,012.50","CORPORATE STRATEGY - BOROUGH ELECTIONS","EQUIPMENT","G100","EQUIPMENT","CORPORATE STRATEGY","FURNITURE & SOFT FURNISHINGS"
"http://statistics.data.gov.uk/id/local-authority/43UM","WOKING BOROUGH COUNCIL","21/04/2021","21/04/2021","0000003783/002","ABBEY DISCTRIBUTION LTD","40946100","-5,052.57","CORPORATE STRATEGY - COUNTY ELECTIONS","EQUIPMENT","G100","EQUIPMENT","CORPORATE STRATEGY","FURNITURE & SOFT FURNISHINGS"
"http://statistics.data.gov.uk/id/local-authority/43UM","WOKING BOROUGH COUNCIL","05/03/2021","21/04/2021","0000463127/002","ABBEY DISCTRIBUTION LTD","40946100","5,052.57","CORPORATE STRATEGY - COUNTY ELECTIONS","EQUIPMENT","G100","EQUIPMENT","CORPORATE STRATEGY","FURNITURE & SOFT FURNISHINGS"
"http://statistics.data.gov.uk/id/local-authority/43UM","WOKING BOROUGH COUNCIL","20/04/2021","21/04/2021","0000464373/002","ABBEY DISCTRIBUTION LTD","40946100","4,815.00","CORPORATE STRATEGY - COUNTY ELECTIONS","EQUIPMENT","G100","EQUIPMENT","CORPORATE STRATEGY","FURNITURE & SOFT FURNISHINGS"
"http://statistics.data.gov.uk/id/local-authority/43UM","WOKING BOROUGH COUNCIL","21/04/2021","21/04/2021","0000003783/003","ABBEY DISCTRIBUTION LTD","40946100","-5,205.71","CORPORATE STRATEGY - POLICE & CRIME COMMISSIONER","EQUIPMENT","G100","EQUIPMENT","CORPORATE STRATEGY","FURNITURE & SOFT FURNISHINGS"
"http://statistics.data.gov.uk/id/local-authority/43UM","WOKING BOROUGH COUNCIL","05/03/2021","21/04/2021","0000463127/003","ABBEY DISCTRIBUTION LTD","40946100","5,205.71","CORPORATE STRATEGY - POLICE & CRIME COMMISSIONER","EQUIPMENT","G100","EQUIPMENT","CORPORATE STRATEGY","FURNITURE & SOFT FURNISHINGS"
"http://statistics.data.gov.uk/id/local-authority/43UM","WOKING BOROUGH COUNCIL","20/04/2021","21/04/2021","0000464373/003","ABBEY DISCTRIBUTION LTD","40946100","4,815.59","CORPORATE STRATEGY - POLICE & CRIME COMMISSIONER","EQUIPMENT","G100","EQUIPMENT","CORPORATE STRATEGY","FURNITURE & SOFT FURNISHINGS"
"http://statistics.data.gov.uk/id/local-authority/43UM","WOKING BOROUGH COUNCIL","31/03/2021","21/04/2021","0000464232/002","AFFINITY WATER","01095900","158.12","INDEPENDENT LIVING SERVICES - MEALS SERVICE - BROCKHILL","WATER","D700","WATER","INDEPENDENT LIVING SERVICES","UTILITIES"
"http://statistics.data.gov.uk/id/local-authority/43UM","WOKING BOROUGH COUNCIL","31/03/2021","21/04/2021","0000464232/001","AFFINITY WATER","01095900","632.49","HOUSING SERVICES - LANDLORDS EXPENSES","WATER","D700","WATER","HOUSING SERVICES","UTILITIES"
"http://statistics.data.gov.uk/id/local-authority/43UM","WOKING BOROUGH COUNCIL","21/04/2021","21/04/2021","GPC/00014458","AMZ","PROCUREMENT CARD","-250.70","ASSET MANAGEMENT - CIVIC OFFICES","STATIONERY","G620","REFUND OF HIGH SECURITY SHREDDER","MRS F M WALTHER","OTHER DIRECT MARKETERS"
"http://statistics.data.gov.uk/id/local-authority/43UM","WOKING BOROUGH COUNCIL","21/04/2021","21/04/2021","GPC/00014448","AMZNMKTPLACE","PROCUREMENT CARD","12.49","CORPORATE STRATEGY - THE JUNCTION","PROVISIONS","G410","JUNCTION SUPPLIES","RICHARD BUCKENHAM","MISC SPECIALITY RETAIL"
"http://statistics.data.gov.uk/id/local-authority/43UM","WOKING BOROUGH COUNCIL","21/04/2021","21/04/2021","GPC/00014445","AMZNMKTPLACE","PROCUREMENT CARD","23.84","HOUSING SERVICES - HOME IMPS & BEN AGENCY","HANDYPERSON MATERIALS","G201","BED BAR","MYCROFT HUNTER","MISC SPECIALITY RETAIL"
"http://statistics.data.gov.uk/id/local-authority/43UM","WOKING BOROUGH COUNCIL","21/04/2021","21/04/2021","GPC/00014453","AMZNMKTPLACE","PROCUREMENT CARD","29.99","INDEPENDENT LIVING SERVICES - YOUTH DEVELOPMENT","GRANTS","H100","GARDEN GAMES","RICHARD BUCKENHAM","MISC SPECIALITY RETAIL"
"http://statistics.data.gov.uk/id/local-authority/43UM","WOKING BOROUGH COUNCIL","21/04/2021","21/04/2021","GPC/00014455","AMZNMKTPLACE","PROCUREMENT CARD","49.99","INDEPENDENT LIVING SERVICES - YOUTH DEVELOPMENT","GRANTS","H100","GARDEN GAMES","RICHARD BUCKENHAM","MISC SPECIALITY RETAIL"
"http://statistics.data.gov.uk/id/local-authority/43UM","WOKING BOROUGH COUNCIL","21/04/2021","21/04/2021","GPC/00014457","AMZNMKTPLACE","PROCUREMENT CARD","12.96","INDEPENDENT LIVING SERVICES - FAMILY CENTRES","PROVISIONS","G410","DISPOSABLE APRONS & CHILDREN S LEARNING JOURNALS","NASREEN FAROOQ","MISC SPECIALITY RETAIL"
"http://statistics.data.gov.uk/id/local-authority/43UM","WOKING BOROUGH COUNCIL","30/03/2021","21/04/2021","0000464215/001","ANDREW P BAYLISS","01555800","11,847.00","HOUSING SERVICES - PRIVATE SECTOR LEASING SCHEME","LEASE PAYMENTS TO LANDLORD","H787","LEASE PAYMENTS TO LANDLORD","HOUSING SERVICES","HOUSING MANAGEMENT"
"http://statistics.data.gov.uk/id/local-authority/43UM","WOKING BOROUGH COUNCIL","31/03/2021","21/04/2021","0000464055/001","APETITO LTD","00186100","696.03","INDEPENDENT LIVING SERVICES - MEALS SERVICE - BROCKHILL","PROVISIONS","G410","PROVISIONS","INDEPENDENT LIVING SERVICES","CATERING"
"http://statistics.data.gov.uk/id/local-authority/43UM","WOKING BOROUGH COUNCIL","31/03/2021","21/04/2021","0000464056/001","APETITO LTD","00186100","1,373.64","INDEPENDENT LIVING SERVICES - MEALS SERVICE - ST MARYS","PROVISIONS","G410","PROVISIONS","INDEPENDENT LIVING SERVICES","CATERING"
"http://statistics.data.gov.uk/id/local-authority/43UM","WOKING BOROUGH COUNCIL","31/03/2021","21/04/2021","0000464054/001","APETITO LTD","00186100","9,784.92","INDEPENDENT LIVING SERVICES - MEALS SERVICE -THE VYNE","PROVISIONS","G410","PROVISIONS","INDEPENDENT LIVING SERVICES","CATERING"
"http://statistics.data.gov.uk/id/local-authority/43UM","WOKING BOROUGH COUNCIL","22/03/2021","21/04/2021","0000463551/001","ATKINSONS GUEST HOUSE","40250600","735.00","HOUSING SERVICES - HOUSING OPTIONS","BED & BREAKFAST EXPENDITURE","H786","BED & BREAKFAST EXPENDITURE","HOUSING SERVICES","HOUSING MANAGEMENT"
"http://statistics.data.gov.uk/id/local-authority/43UM","WOKING BOROUGH COUNCIL","22/03/2021","21/04/2021","0000463552/001","ATKINSONS GUEST HOUSE","40250600","735.00","HOUSING SERVICES - HOUSING OPTIONS","BED & BREAKFAST EXPENDITURE","H786","BED & BREAKFAST EXPENDITURE","HOUSING SERVICES","HOUSING MANAGEMENT"
"http://statistics.data.gov.uk/id/local-authority/43UM","WOKING BOROUGH COUNCIL","28/03/2021","21/04/2021","0000464179/002","AXIS SECURITY SERVICES LTD","40429500","52,984.28","ASSET MANAGEMENT - PEACOCKS - GENERAL","PEACOCKS R&M HOLDING","D108","PEACOCKS R&M HOLDING","ASSET MANAGEMENT","CONSULTANCY"
"http://statistics.data.gov.uk/id/local-authority/43UM","WOKING BOROUGH COUNCIL","28/03/2021","21/04/2021","0000464179/003","AXIS SECURITY SERVICES LTD","40429500","3,568.00","ASSET MANAGEMENT - WOLSEY PLACE","PEACOCKS R&M HOLDING","D108","PEACOCKS R&M HOLDING","ASSET MANAGEMENT","CONSULTANCY"
"http://statistics.data.gov.uk/id/local-authority/43UM","WOKING BOROUGH COUNCIL","28/03/2021","21/04/2021","0000464179/004","AXIS SECURITY SERVICES LTD","40429500","3,761.90","ASSET MANAGEMENT - WOLSEY PLACE","PEACOCKS R&M HOLDING","D108","PEACOCKS R&M HOLDING","ASSET MANAGEMENT","CONSULTANCY"
